Workbook

Sheet Open-Friday (hidden)
A1: ULTRA CRUZ - FRIDAY RACE
A3: Futurity | B3: Der | C3: HS | D3: Age Inct. | E3: Open C/O | F3: YOU | G3: Draw | H3: Rider Name | I3: Horse Name | J3: Pen | K3: Time | L3: Final Time | M3: Placing | N3: Money Earned | P3: D Placing | R3: Split
G4: 121 | H4: Lindsey McLeod | I4: Rocky | K4: 15.694 | P4: 1D
C5: X | G5: 78 | H5: Jimmie Smith | I5: Marthas Bullion | K5: 15.704 | P5: 2D | R5: 0.5
A6: X | C6: X | D6: A | G6: 12 | H6: Kylee Scribner | I6: Firewater Cartel | K6: 15.706 | P6: 3D | R6: 0.5
B7: X | C7: X | G7: 83 | H7: Kassie Mowry | I7: Epic Guy | K7: 15.74 | P7: 4D | R7: 0.5
A8: X | C8: X | D8: A | G8: 127 | H8: Tiany Schuster | I8: Crewzin | K8: 15.753 | P8: 5D | R8: 0.5
G9: 48 | H9: Kyle Leleux | I9: Guys Classy Colour | K9: 15.777
C10: X | D10: A | G10: 138 | H10: Stephanie Fryer | I10: The Red Maserati | K10: 15.857 | P10: # Entered
G11: 86 | H11: Molly Childers | I11: Just My Choice | K11: 15.863 | P11: =COUNTA(H4:H554) -> 226
A12: X | D12: A | G12: 77 | H12: Molli Montgomery | I12: This Fling Is Famous | K12: 15.91
C13: X | D13: A | G13: 172 | H13: Stephanie Fryer | I13: Streakin Bye Ta Fame | K13: 15.918 | P13: # Ran
G14: 216 | H14: Lisa Thornton | I14: Straight Toasted | K14: 15.924 | P14: =COUNTA(K4:K554) -> 227
A15: X | G15: 168 | H15: Ceri Ward | I15: Chasin Misty | K15: 15.94
G16: 190 | H16: Riley Fountain | I16: Royal Dame Ta Fame | K16: 15.952 | P16: # Left
D17: A | G17: 132 | H17: Kara Large | I17: Credit To Fiesta | K17: 15.957 | P17: =$P$11-$P$14 -> -1
G18: 73 | H18: Natalie Kurosky | I18: Dontbeadragbeaqueen | K18: 15.962
A19: X | G19: 62 | H19: Lindsey McLeod | I19: In The Nick A Time | K19: 15.975
A20: X | D20: A | G20: 94 | H20: Molli Montgomery | I20: First Famous Chic | K20: 15.975
A21: X | G21: 97 | H21: Stevi Hillman | I21: DTF Texas Moon | K21: 15.979
G22: 220 | H22: Kesley Gordon | I22: Pete | K22: 16.004
D23: S | G23: 196 | H23: Martha Smith | I23: FirewatermakemeHappy | K23: 16.017
D24: A | G24: 222 | H24: Katie Jo Boyd | I24: Frenchmen R Hot | K24: 16.022
B25: X | C25: X | D25: A | G25: 66 | H25: Tillar Murray | I25: JL Lava Roc | K25: 16.024
G26: 111 | H26: Kyle Leleux | I26: Ima Famous Scarlett | K26: 16.038
G27: 35 | H27: Hadley Durfey | I27: Delightful Brownies | K27: 16.077
G28: 144 | H28: Tyler Rivette | I28: Streakinflingindisco | K28: 16.083
A29: X | C29: X | D29: A | G29: 176 | H29: Tyler Rivette | I29: Flingin Roses | K29: 16.087
D30: S | G30: 167 | H30: Jenny Zant | I30: Raise Me to Fame | K30: 16.089
G31: =SUM(G30+1) -> 168 | H31: Emma Abbott | K31: 16.091
G32: 191 | H32: Lindsey Kay Reichart | I32: Real Frosted Fame | K32: 16.092
E33: X | F33: X | G33: 126 | H33: Lawcyn Bledsoe | I33: Hayzel | K33: 16.097
C34: X | D34: A | G34: 65 | H34: Tiany Schuster | I34: Version Six | K34: 16.106
G35: 177 | H35: Darcie Moody | I35: Rgr Marble Magic | K35: 16.117
A36: X | C36: X | D36: A | G36: 137 | H36: Tricia Aldridge | I36: Sinaloa Stinson | K36: 16.12
A37: X | G37: 47 | H37: Molly Childers | I37: Dash Ta Special | K37: 16.14
B38: X | G38: 70 | H38: Stevi Hillman | I38: PH TwoTimin Streaker | K38: 16.142
D39: A | G39: 92 | H39: Catherine Murray | I39: Cinnamon On Top | K39: 16.15
G40: 204 | H40: Adrianna Ruckteschler | I40: Mr Spoon | K40: 16.157
B41: X | C41: X | D41: A | G41: 116 | H41: Emily Becker | I41: Mr Elegant Shawne | K41: 16.17
B42: X | C42: X | D42: A | G42: 107 | H42: Stephanie Fryer | I42: Some Streakin French | K42: 16.171
C43: X | D43: A | G43: 214 | H43: Savannah Palmore | I43: Fortunate Colton | K43: 16.18
G44: 81 | H44: Hadley Durfey | I44: One Smooth Kelly | K44: 16.185
A45: X | G45: 41 | H45: Kassie Mowry | I45: Mistys Money Blurr | K45: 16.192
A46: X | G46: 28 | H46: Heidi Meuwissen | I46: No Lion Kims Flying | K46: 16.209
G47: 213 | H47: Dani Buhler | I47: A Holly Spark | K47: 16.218
G48: 68 | H48: Trina Murray | I48: Fuel For Dash | K48: 16.22
C49: X | D49: A | G49: 143 | H49: Susan Agnew | I49: Jet N Ta Fame | K49: 16.241
A50: X | G50: 105 | H50: Ceri Ward | I50: I Am Very Unique | K50: 16.264
G51: 119 | H51: Sydney Lumandue | I51: Cbar Frosty Tulip | K51: 16.273
G52: 71 | H52: Ceri Ward | I52: AMagicStreakOfFling | K52: 16.278
C53: X | D53: A | G53: 102 | H53: Autumn Woodruff | I53: Raw Firepower | K53: 16.278
G54: 147 | H54: Pete Oen | I54: FC Strait Ruffian | K54: 16.354
D55: A | G55: 171 | H55: Shelby Janssen | I55: Famous Amous | K55: 16.368
G56: 37 | H56: Natalie Kurosky | I56: Motivating Mover | K56: 16.369
D57: S | G57: 156 | H57: Donna Tippen | K57: 16.379
E58: x | F58: x | G58: 131 | H58: Brecklyn Tippen | K58: 16.38
G59: 15 | H59: Molly Childers | I59: Smooth Movin Guy | K59: 16.386
G60: 22 | H60: Fran Denham | I60: FrenchiesLightOnCash | K60: 16.39
G61: 80 | H61: Kyle Leleux | I61: Addie | K61: 16.394
C62: X | E62: X | F62: X | G62: 162 | H62: Taber Garcia | I62: Dashin To U | K62: 16.394
D63: A | G63: 9 | H63: Tawni VanderLans | I63: TS Return N Hayday | K63: 16.4
G64: 26 | H64: Ashley Harvey | I64: Wheres My Sox | K64: 16.403
G65: 189 | H65: Lisa Thornton | I65: LT The Lucky One | K65: 16.403
G66: 57 | H66: Kacey Kirby Faust | I66: Jackies Run Ta Fame | K66: 16.404
D67: A | G67: 208 | H67: Katie Jo Boyd | I67: Dash Ta Mirage | K67: 16.455
G68: 104 | H68: Christi Durfey | I68: Jess Blazin Otoe | K68: 16.458
G69: 226 | H69: Tami Semas | I69: Cajun Chrome | K69: 16.468
A70: X | D70: A | G70: 106 | H70: Tricia Aldridge | I70: KN First Slick Chick | K70: 16.475
A71: X | G71: 174 | H71: Kyle Leleux | I71: Heavens Sizzler | K71: 16.478
D72: A | G72: 152 | H72: Savannah Palmore | I72: Colour Me Smooth | K72: 16.498
G73: 33 | H73: Shantell Hayes | K73: 16.503
G74: 117 | H74: Mindy Holloway | I74: First Rappin Judge | K74: 16.504
G75: 17 | H75: Kayli Morris | I75: Fortune N Fuel | K75: 16.516
D76: A | G76: 76 | H76: Stephanie Fryer | I76: RR Lajollas Roll | K76: 16.532
G77: 185 | H77: Josh Seeger | I77: Dialin Nine One One | K77: 16.537
B78: X | D78: A | G78: 165 | H78: Kara Large | I78: RSL FirstRoyal Eddie | K78: 16.538
G79: 84 | H79: Jade Crago | I79: CM Nitros Kruser | K79: 16.555
D80: A | G80: 207 | H80: Kaitlyn Woodman | I80: AcesHersheyCash | K80: 16.569
A81: X | D81: A | G81: 45 | H81: Stephanie Fryer | I81: Cantstopthefeeling | K81: 16.59
D82: A | G82: 11 | H82: Casey Hammons | I82: BH Trip Ta Fame | K82: 16.606
G83: 173 | H83: Natalie Bland | I83: Captains Cat | K83: 16.644
G84: 186 | H84: Ashley Schafer | I84: Boonsstreakin Colours | K84: 16.655
G85: 153 | H85: Kortney Fisher | I85: Stolin French Kisses | K85: 16.659
B86: X | D86: A | G86: 30 | H86: Tillar Murray | I86: MV Fury Of The Fame | K86: 16.675
A87: X | D87: A | G87: 149 | H87: Emily Becker | I87: Streaking Moon Beams | K87: 16.675
G88: 135 | H88: Lacy Billingsley | I88: VF High N FaMOUS | K88: 16.683
G89: 183 | H89: Lacy Matthews | I89: Shilos Perky Pistol | K89: 16.683
D90: A | G90: 110 | H90: Natalie Kurosky | I90: Winnies Red Kai | K90: 16.684
B91: X | G91: 39 | H91: Krista Lucas | I91: TBR Streak Of Perks | K91: 16.687
B92: X | G92: 179 | H92: Erika Ashley | I92: Freighttrain C | K92: 16.707
E93: X | F93: X | G93: 181 | H93: Ella McCOy | I93: YouCanDriftorFLy | K93: 16.713
D94: S | G94: 52 | H94: Jodi Stovall | I94: Miss French Drifter | K94: 16.74
G95: 180 | H95: Laney Fowler | I95: My Epic Miracle | K95: 16.749
D96: S | G96: 120 | H96: Tammy Rokus | I96: Mitey Confederate | K96: 16.761
G97: 87 | H97: Karen Gaida | I97: Ciclone Streak | K97: 16.763
G98: 88 | H98: Ashley Harvey | I98: OE Money In My Socks | K98: 16.771
G99: 129 | H99: Sara Redden | I99: Ocho | K99: 16.78
D100: S | G100: 130 | H100: Martha Smith | I100: My Epic Moment | K100: 16.783
G101: 64 | H101: Jody McKay | I101: Flossy Stinson | K101: 16.79
G102: 166 | H102: Karen Shelley | I102: Flying Bar Bailey | K102: 16.798
G103: 108 | H103: Ashley Schafer | I103: Dashin Ta Bank | K103: 16.803
G104: 93 | H104: Lindsey McLeod | I104: Some Corona | K104: 16.812
G105: 10 | H105: Hevenli Scribner | I105: Daffy | K105: 16.815
F106: X | G106: 7 | H106: Cooper Peek | I106: Dolly | K106: 16.817
E107: X | F107: X | G107: 99 | H107: Avery Childers | I107: Circle Y Doc | K107: 16.856
D108: S | G108: 146 | H108: Simone Elmore | I108: Badger A Conchadrift | K108: 16.857
G109: 150 | H109: Cheyenne Honigman | I109: JJLonewoodLuke | K109: 16.864
G110: 200 | H110: Danielle Richards | I110: Betsys CD Star | K110: 16.907
D111: A | G111: 184 | H111: Timberly Erickson | I111: Mines Fast | K111: 16.929
G112: 6 | H112: Kristy Scribner | I112: Beggars Rockette | K112: 16.935
G113: 154 | H113: Jackie Hartt | I113: Zfour Dashing Bug | K113: 16.95
G114: 2 | H114: Hadley Durfey | I114: Brilliant Faith | K114: 16.958
A115: X | G115: 148 | H115: Tori Volk | I115: CN Holy Cow | K115: 16.98
G116: 151 | H116: Amanda Eaves | I116: Chularitas Fling | K116: 17.019
G117: 21 | H117: LJ LaRue | I117: Paidbythesecond | K117: 17.045
G118: 205 | H118: Amber Scales | I118: Hippie | K118: 17.058
G119: 211 | H119: Josh Seeger | I119: Copper | K119: 17.063
G120: 159 | H120: Jillian Carruthers | I120: Gracious Ta Fame | K120: 17.064
B121: X | G121: 218 | H121: Brandi Felder | I121: A Sly Gal | K121: 17.09
D122: A | G122: 175 | H122: Susan Agnew | I122: Splash Da Firewater | K122: 17.101
G123: 72 | H123: Wyatt Paul | I123: Flashin Annie | K123: 17.136
G124: 75 | H124: Lacy Kimball | I124: Lawmans Eye | K124: 17.165
G125: 157 | H125: Emma Abbott | K125: 17.177
G126: 25 | H126: Chancie Rogers | I126: Lucy | K126: 17.204
G127: 4 | H127: Daisy Baird | I127: Teninas Smary Cookie | K127: 17.245
G128: 8 | H128: Whitney Fisher | I128: BB French N Easy | K128: 17.245
A129: X | D129: A | G129: 14 | H129: Stephanie Fryer | I129: Litemup Imonfire | K129: 17.273
G130: 20 | H130: Kelly Govero | I130: Shake it Up Easy Jet | K130: 17.285
G131: =SUM(G130+1) -> 21 | H131: Wyatt Paul | I131: Straight To Dallas By 6 | K131: 17.3
G132: 197 | H132: Brandi Felder | I132: MP Haydays Chickadee | K132: 17.315
A133: X | D133: A | G133: 206 | H133: Blake Myers | I133: Luvondarocks | K133: 17.318
G134: 228 | H134: Emma Abbott | K134: 17.335
E135: X | F135: X | G135: 96 | H135: Chloe Powell | I135: Superman | K135: 17.338
D136: S | G136: 34 | H136: Lisa Corey | I136: Beda Dream | K136: 17.353
G137: 115 | H137: Wyatt Paul | I137: Hurricane Harvey | K137: 17.365
G138: 55 | H138: Ashley Harvey | I138: FC Strait Cajun | K138: 17.38
G139: 155 | H139: Lindsey McLeod | I139: THC Awesome Nellie | K139: 17.393
G140: 158 | H140: Jenna Graf | I140: Sadies Iceman | K140: 17.408
G141: 187 | H141: Jimmie Smith | I141: Slick Lil Will | K141: 17.434
D142: A | G142: 215 | H142: Hanna Wallace | I142: Haidas Snare | K142: 17.535
G143: 169 | H143: Carly Peercy | I143: Sheenas Last Chance | K143: 17.611
D144: S | G144: 16 | H144: Kim Eisen | I144: Velvets Special Gal | K144: 17.657
A145: X | D145: S | G145: 163 | H145: Martha Smith | I145: CanIGetAHallelujah | K145: 17.686
A146: X | D146: A | G146: 54 | H146: Autumn Woodruff | I146: Spoonfulla | K146: 17.708
D147: A | G147: 36 | H147: Kacy Riley | I147: Rut Row | K147: 17.716
G148: 140 | H148: Ashley Schafer | I148: Positively Smooth | K148: 17.724
G149: 217 | H149: Jimmie Smith | I149: Slick Swagger | K149: 17.864
D150: A | G150: 164 | H150: Katelyn Fitzke | I150: CP Zan Smooth Buzz | K150: 17.905
F151: X | G151: 229 | H151: Haley King | K151: 17.913
D152: A | G152: 128 | H152: Karissa Jones | I152: Anita Lot Of CAsh | K152: 17.921
E153: X | F153: X | G153: 112 | H153: Maddison Hammond | I153: Slim Jim | K153: 17.969
G154: 113 | H154: Rayna Longeway | I154: KN Say Hello To Fab | K154: 18.01
G155: 210 | H155: Laci Sullivan | I155: Blonde Success | K155: 18.048
G156: 56 | H156: Christi Durfey | I156: One Of A Kind Guy | K156: 18.106
D157: S | G157: 178 | H157: Simone Elmore | I157: Mitey | K157: 18.207
D158: A | G158: 24 | H158: Jesse Budd | I158: Flicker Nic (Whiskey) | K158: 18.388
G159: =SUM(G158+1) -> 25 | H159: Delaney Siebert | I159: Coronas Little Guy | K159: 18.389
D160: A | G160: 43 | H160: Tiffany Durham | I160: Dashin Luke Perry | K160: 18.544
B161: X | G161: 170 | H161: Brandi Felder | I161: Graves Leavin Tucson | K161: 18.576
D162: S | G162: 95 | H162: Jodi Stovall | I162: Charming Lavern | K162: 19.092
A163: X | D163: A | G163: 67 | H163: Holly Fenoglio | I163: Midnight Flyin | K163: 19.491
G164: 194 | H164: Amy Vincik | I164: Cahil | K164: broken
F165: X | G165: 203 | H165: Grace Ornelas | I165: Yeti | K165: broken
G166: 221 | H166: Kelsey Blakey | I166: Fastmann Furrtreeous | K166: broken
G167: 51 | H167: Karen Gaida | I167: Kiss This Guy Two | K167: nt
E168: X | F168: X | G168: 69 | H168: Lawcyn Bledsoe | I168: Chicks Dig Bogie | K168: nt
A169: X | D169: A | G169: 90 | H169: Pete Oen | I169: Dash Ta Torres | K169: nt
B170: X | C170: X | D170: A | G170: 98 | H170: Tiany Schuster | I170: Micguyver | K170: nt
B171: X | G171: 134 | H171: Ceri Ward | I171: Hiccup | K171: nt15.658
C172: X | G172: 50 | H172: Jimmie Smith | I172: Lever Action | K172: nt15.774
G173: 109 | H173: Jimmie Smith | I173: Traffic Kat | K173: nt15.820
B174: X | G174: 46 | H174: Stevi Hillman | I174: Twaynas Guy | K174: nt15.826
B175: X | G175: 1 | H175: Natalie Kurosky | I175: Turn N With Ease | K175: nt15.870
G176: 145 | H176: Natalie Bland | I176: Epic Nick | K176: nt15.908
A177: X | D177: A | G177: 118 | H177: Pete Oen | I177: VC GoGO Fling | K177: nt15.945
G178: 13 | H178: Schelli Creacy | I178: Nico | K178: nt15.971
B179: X | D179: A | G179: 139 | H179: Shelby Janssen | I179: Shes A Man Eater | K179: nt15.982
G180: 212 | H180: Laney Fowler | I180: Nellies Sugar Rio | K180: nt16.004
G181: =SUM(G180+1) -> 213 | H181: Dani Buhler | I181: Flashy French Kirk | K181: nt16.046
G182: 91 | H182: Lacy Billingsley | I182: Dirty Dizco Diane 37 | K182: nt16.059
A183: X | D183: A | G183: 61 | H183: Molli Montgomery | I183: Toast Your Socks Off | K183: nt16.071
D184: S | G184: 101 | H184: Kathy Rush | I184: MS Flamin Tres Seis | K184: nt16.076
B185: X | C185: X | G185: 5 | H185: Kassie Mowry | I185: CP He Will Be Epic | K185: nt16.109
G186: 79 | H186: Lauren England | I186: The Pink Pistol | K186: nt16.111
B187: X | D187: A | G187: 23 | H187: Molli Montgomery | I187: Kindafeelinheavenly | K187: nt16.121
D188: A | G188: 60 | H188: Catherine Murray | I188: JL Fourtafame | K188: nt16.168
D189: A | G189: 74 | H189: Rayna Longeway | I189: Dirty Dan Stinson | K189: nt16.192
E190: X | F190: X | G190: 59 | H190: Maddison Hammond | I190: The Last Handyman | K190: nt16.214
G191: 27 | H191: Courtney Worthington | I191: Rey Of Fame | K191: nt16.269
A192: X | G192: 141 | H192: Jimmie Smith | I192: Guys Im A Bunny Cat | K192: nt16.347
G193: 224 | H193: Lori Hickman | I193: Clancy | K193: nt16.352
G194: 123 | H194: Debbie Richardson | I194: Call Me Misty May | K194: nt16.394
G195: 219 | H195: Kristi Tuinei | I195: Zippys Cash Ta Fame | K195: nt16.404
G196: =SUM(G195+1) -> 220 | H196: Ceri Ward | I196: Wait N On Fame | K196: nt16.469
A197: X | G197: =SUM(G196+1) -> 221 | H197: Jade Crago | I197: High Road Ta Fame | K197: nt16.475
G198: 63 | H198: Chancie Rogers | I198: One Third Sugar | K198: nt16.514
A199: X | G199: 19 | H199: Mecca Hickox | I199: MV Gonna Be Famous | K199: nt16.519
G200: 122 | H200: Ashley Harvey | I200: World Famous Louise | K200: nt16.539
G201: 89 | H201: Tristen Spivey | I201: WR Perfect Cut | K201: nt16.557
... 353 more rows

Sheet Senior
A1: Futurity | B1: Der | C1: Age Inct. | D1: BBR | E1: Draw | F1: Rider Name | G1: Horse Name | H1: Pen | I1: Time | J1: Final Time | K1: Placing | L1: Money Earned
E2: 1 | F2: Lynn Saunders | G2: Popcorn | I2: 15.986 | K2: 1D 1st | L2: 134
E3: 2 | F3: Martha Smith | G3: FirewatermakemeHappy | I3: 16.017 | K3: 1D 2nd | L3: 90
E4: 3 | F4: Jenny Zant | G4: Raise Me to Fame | I4: 16.089
E5: 4 | F5: Kathy Muehlen | G5: Fly Away Gal | I5: 16.119
E6: 5 | F6: Donna Tippen | I6: 16.379
E7: 6 | F7: Lynn Saunders | G7: Chumley | I7: 16.414
E8: 7 | F8: Sherri Barnes | G8: Famous Little Jet | I8: 16.445
E9: 8 | F9: Sherri Barnes | G9: Racing For Perks | I9: 16.501 | K9: 2D 1st | L9: 115
E10: 9 | F10: Ken English | G10: VF Born Ta B A Star | I10: 16.611 | K10: 2D 2nd | L10: 77
E11: 10 | F11: Terry Vogel | G11: Dinky Jets Famous Jr | I11: 16.668
E12: 11 | F12: Connie Randolf | G12: HotRod Kitty Catt | I12: 16.679
E13: 12 | F13: Jodi Stovall | G13: Miss French Drifter | I13: 16.74
E14: 13 | F14: Tammy Rokus | G14: Mitey Confederate | I14: 16.761
E15: 14 | F15: Martha Smith | G15: My Epic Moment | I15: 16.783
E16: 15 | F16: Simone Elmore | G16: Badger A Conchadrift | I16: 16.857
E17: 16 | F17: Renea Osborne | G17: Hurricane | I17: 16.89
E18: 17 | F18: Marlyn Bland | G18: Nicks Super Chance | I18: 16.992 | K18: 3D 1st | L18: 77
E19: 18 | F19: Jo Kirby | G19: Heavenly Joak | I19: 17.074 | K19: 3D 2nd | L19: 51
E20: 19 | F20: Terry Vogel | G20: Imablueyedblondbitz | I20: 17.122
E21: 20 | F21: Johnell Ray | G21: Smooth Your Jets | I21: 17.267
E22: 21 | F22: Lisa Corey | G22: Beda Dream | I22: 17.353
E23: 22 | F23: Ken English | G23: Flirtin With Fyre | I23: 17.391
E24: 23 | F24: Karen Davis | G24: JL Canthidebeautiful | I24: 17.542 | K24: 4D 1st | L24: 58
E25: 24 | F25: Kim Eisen | G25: Velvets Special Gal | I25: 17.657 | K25: 4D 2nd | L25: 38
E26: 25 | F26: Martha Smith | G26: CanIGetAHallelujah | I26: 17.686
E27: 26 | F27: Lee Vogel | G27: BB Boogyingfrenchman | I27: 17.879
E28: 27 | F28: Simone Elmore | G28: Mitey | I28: 18.207
E29: 28 | F29: Jodi Stovall | G29: Charming Lavern | I29: 19.092
E30: 29 | F30: Kathy Rush | G30: MS Flamin Tres Seis | I30: nt16.076
E31: 30 | F31: Karen Davis | G31: Fundiferousfrost | I31: nt16.311
E32: 31 | F32: Josie Jarrett | G32: Jazz Lite | I32: nt18.078
E33: 32 | F33: Kathy Rush | G33: Rosalee Firewater | I33: nt19.235
E34: 33 | F34: Glenda Barnett | G34: Bogies Royale Opey | I34: scratch
E35: 34
E36: 35
E37: 36
E38: 37
E39: 38
E40: 39
E41: 40
E42: 41
E43: 42
E44: 43
E45: 44
E46: 45
E47: 46
E48: 47
E49: 48
E50: 49
E51: 50
E52: 51
E53: 52
E54: 53
E55: 54
E56: 55
E57: 56
E58: 57
E59: 58
E60: 59
E61: 60
E62: 61
E63: 62
E64: 63
E65: 64
E66: 65
E67: 66
E68: 67
E69: 68
E70: 69
E71: 70
E72: 71
E73: 72
E74: 73
E75: 74
E76: 75
E77: 76
E78: 77
E79: 78
E80: 79
E81: 80
E82: 81
E83: 82
E84: 83
E85: 84
E86: 85
E87: 86
E88: 87
E89: 88
E90: 89
E91: 90
E92: 91
E93: 92
E94: 93
E95: 94
E96: 95
E97: 96
E98: 97
E99: 98
E100: 99
E101: 100
E102: 101
E103: 102
E104: 103
E105: 104
E106: 105
E107: 106
E108: 107
E109: 108
E110: 109
E111: 110
E112: 111
E113: 112
E114: 113
E115: 114
E116: 115
E117: 116
E118: 117
E119: 118
E120: 119
E121: 120
E122: 121
E123: 122
E124: 123
E125: 124
E126: 125
E127: 126
E128: 127
E129: 128
E130: 129
E131: 130
E132: 131
E133: 132
E134: 133 | J134: =IF(OR(H134=5,H134=10, H134=15, H134="BP",H134="SCR"),"NT",I134) -> 0
E135: 134 | J135: 0
E136: 135 | J136: 0
E137: 136 | J137: 0
E138: 137 | J138: 0
E139: 138 | J139: 0
E140: 139 | J140: 0
E141: 140 | J141: 0
E142: 141 | J142: 0
E143: 142 | J143: 0
E144: 143 | J144: 0
E145: 144 | J145: 0
E146: 145 | J146: 0
E147: 146 | J147: 0
E148: 147 | J148: 0
E149: 148 | J149: 0
E150: 149 | J150: 0
E151: 150 | J151: 0
E152: 151 | J152: 0
E153: 152 | J153: 0
E154: 153 | J154: 0
E155: 154 | J155: 0
E156: 155 | J156: 0
E157: 156 | J157: 0
E158: 157 | J158: 0
E159: 158 | J159: 0
E160: 159 | J160: 0
E161: 160 | J161: 0
E162: 161 | J162: 0
E163: 162 | J163: 0
E164: 163 | J164: 0
E165: 164 | J165: 0
E166: 165 | J166: 0
E167: 166 | J167: 0
E168: 167 | J168: 0
E169: 168 | J169: 0
E170: 169 | J170: 0
E171: 170 | J171: 0
E172: 171 | J172: 0
E173: 172 | J173: 0
E174: 173 | J174: 0
E175: 174 | J175: 0
E176: 175 | J176: 0
E177: 176 | J177: 0
E178: 177 | J178: 0
E179: 178 | J179: 0
E180: 179 | J180: 0
E181: 180 | J181: 0
E182: 181 | J182: 0
E183: 182 | J183: 0
E184: 183 | J184: 0
E185: 184 | J185: 0
E186: 185 | J186: 0
E187: 186 | J187: 0
E188: 187 | J188: 0
E189: 188 | J189: 0
E190: 189 | J190: 0
E191: 190 | J191: 0
E192: 191 | J192: 0
E193: 192 | J193: 0
E194: 193 | J194: 0
E195: 194 | J195: =IF(OR(H195=5,H195=10, H195=15, H195="BP",H195="SCR"),"NT",I195) -> 0
E196: 195 | J196: 0
E197: 196 | J197: 0
E198: 197 | J198: 0
E199: 198 | J199: 0
E200: 199 | J200: 0
... 101 more rows

Sheet Open - Combined
A1: ULTRA CRUZ - SaturDAY RACE
A3: Futurity | B3: Der | C3: HS | D3: Age Inct. | E3: Open C/O | F3: YOU | G3: Draw | H3: Rider Name | I3: Horse Name | J3: Pen | K3: Time | L3: Final Time | M3: Placing | N3: Money Earned | P3: D Placing | R3: Split
G4: 276 | H4: Cayla Small | I4: Slick N Black | K4: 15.645 | M4: 1D 1st | N4: 1388.52 | P4: 1D
G5: 121 | H5: Lindsey McLeod | I5: Rocket Scientist | K5: 15.694 | M5: 1D 2nd | N5: 1096.2 | P5: 2D | R5: 0.5
G6: 177 | H6: Kelly Bruner | I6: Suzytresseis | K6: 15.695 | M6: 1D 3rd | N6: 876.96 | P6: 3D | R6: 0.5
C7: X | G7: 78 | H7: Jimmie Smith | I7: Marthas Bullion | K7: 15.704 | M7: 1D 4th | N7: 730.8 | P7: 4D | R7: 0.5
A8: X | C8: X | D8: A | G8: 12 | H8: Kylee Scribner | I8: Firewater Cartel | K8: 15.706 | M8: 1D 5th | N8: 657.72 | P8: 5D | R8: 0.5
C9: X | G9: 106 | H9: Ryann Pedone | I9: Feel The Sting | K9: 15.725 | M9: 1D 6th | N9: 584.64
B10: X | C10: X | G10: 83 | H10: Kassie Mowry | I10: Epic Guy | K10: 15.74 | M10: 1D 7th | N10: 511.56 | P10: # Entered
A11: X | D11: A | G11: 173 | H11: Jolene Montgomery | I11: Jet Fuel Only | K11: 15.747 | M11: 1D 8th | N11: 438.48 | P11: =COUNTA(H4:H581) -> 573
A12: X | C12: X | D12: A | G12: 127 | H12: Tiany Schuster | I12: Crewzin | K12: 15.753 | M12: 1D 9th | N12: 365.4
E13: X | F13: X | G13: 2 | H13: Charli Snow | I13: Sudden Hero | K13: 15.755 | M13: 1D 10th | N13: 292.32 | P13: # Ran
G14: 48 | H14: Kyle Leleux | I14: Guys Classy Colour | K14: 15.777 | M14: 1D 11th | N14: 219.24 | P14: =COUNTA(K4:K581) -> 578
B15: X | G15: =SUM(G14+1) -> 49 | H15: Jordon Briggs | I15: Famous Lil Jet | K15: 15.79 | M15: 1D 12th | N15: 146.16
G16: 261 | H16: Kasey Kretschmar | I16: KN Fabulous Salsa | K16: 15.797 | P16: # Left
G17: 146 | H17: Kelly Bruner | I17: French Zone | K17: 15.817 | P17: =$P$11-$P$14 -> -5
C18: X | D18: A | G18: 138 | H18: Stephanie Fryer | I18: The Red Maserati | K18: 15.857
A19: X | G19: 159 | H19: Nisa Berry | I19: NB Keep N Time | K19: 15.858
G20: 86 | H20: Molly Childers | I20: Just My Choice | K20: 15.863
C21: X | G21: 166 | H21: Cheyenne Wimberley | I21: VQ Sucker Punch | K21: 15.893
A22: X | D22: A | G22: 144 | H22: Jolene Montgomery | I22: Famous Sierra | K22: 15.901
A23: X | D23: A | G23: 77 | H23: Molli Montgomery | I23: This Fling Is Famous | K23: 15.91
C24: X | D24: A | G24: 172 | H24: Stephanie Fryer | I24: Streakin Bye Ta Fame | K24: 15.918
G25: 216 | H25: Lisa Thornton | I25: Straight Toasted | K25: 15.924
C26: X | G26: 143 | H26: Ryann Pedone | I26: Streakin Queenie | K26: 15.935
C27: X | G27: 28 | H27: Mike Robertson | I27: Simba The Texas Jet | K27: 15.94
A28: X | G28: 168 | H28: Ceri Ward | I28: Chasin Misty | K28: 15.94
G29: 190 | H29: Riley Fountain | I29: Royal Dame Ta Fame | K29: 15.952
D30: A | G30: 132 | H30: Kara Large | I30: Credit To Fiesta | K30: 15.957
G31: 73 | H31: Natalie Kurosky | I31: Dontbeadragbeaqueen | K31: 15.962
A32: X | D32: A | G32: 94 | H32: Molli Montgomery | I32: First Famous Chic | K32: 15.975
A33: X | G33: 62 | H33: Lindsey McLeod | I33: In The Nick A Time | K33: 15.975
A34: X | G34: 97 | H34: Stevi Hillman | I34: DTF Texas Moon | K34: 15.979
D35: S | G35: 201 | H35: Lynn Saunders | I35: Popcorn | K35: 15.986
G36: 220 | H36: Kesley Gordon | I36: Pete | K36: 16.004
D37: S | G37: 196 | H37: Martha Smith | I37: FirewatermakemeHappy | K37: 16.017
D38: A | G38: 222 | H38: Katie Jo Boyd | I38: Frenchmen R Hot | K38: 16.022
B39: X | C39: X | D39: A | G39: 66 | H39: Tillar Murray | I39: JL Lava Roc | K39: 16.024
B40: X | C40: X | G40: 22 | H40: Shea-Lynn McConnell | I40: Smooth N Heavenly | K40: 16.031
C41: X | D41: A | G41: 217 | H41: Alyssa Urbanek | I41: Fueled With Dinero | K41: 16.033
G42: 111 | H42: Kyle Leleux | I42: Ima Famous Scarlett | K42: 16.038
B43: X | G43: 105 | H43: Jordon Briggs | I43: One First Class Lady | K43: 16.043
G44: 15 | H44: Bianca Dos Santos | I44: Dashin Quickly | K44: 16.046
G45: 114 | H45: Emma Smith | I45: Easy Like A Boss | K45: 16.05
C46: X | D46: A | G46: 234 | H46: Shelby McCamey | I46: Frenchy | K46: 16.056
G47: 35 | H47: Hadley Durfey | I47: Delightful Brownies | K47: 16.077
G48: 144 | H48: Tyler Rivette | I48: Streakinflingindisco | K48: 16.083
A49: X | C49: X | D49: A | G49: 176 | H49: Tyler Rivette | I49: Flingin Roses | K49: 16.087
D50: S | G50: 167 | H50: Jenny Zant | I50: Raise Me to Fame | K50: 16.089
G51: 90 | H51: Maci Berry | I51: Shezamaximumbugleo | K51: 16.089
G52: 102 | H52: Jordan Robinson | I52: Smigglin Doubles | K52: 16.089
G53: =SUM(G52+1) -> 103 | H53: Emma Abbott | K53: 16.091
E54: X | F54: X | G54: 191 | H54: Lindsey Kay Reichart | I54: Real Frosted Fame | K54: 16.092
E55: X | F55: X | G55: 126 | H55: Lawcyn Bledsoe | I55: Hayzel | K55: 16.097
C56: X | D56: A | G56: 65 | H56: Tiany Schuster | I56: Version Six | K56: 16.106
G57: 296 | H57: Sierra Melby | I57: PlainlyImSpecial | K57: 16.107
G58: 177 | H58: Darcie Moody | I58: Rgr Marble Magic | K58: 16.117
D59: S | G59: 24 | H59: Kathy Muehlen | I59: Fly Away Gal | K59: 16.119
A60: X | C60: X | D60: A | G60: 137 | H60: Tricia Aldridge | I60: Sinaloa Stinson | K60: 16.12
B61: X | G61: 128 | H61: Kim Schultze | I61: French Me Or Else | K61: 16.12
E62: X | F62: X | G62: 151 | H62: Fallon Forbes | I62: ANother Bug Leo | K62: 16.124
A63: X | G63: 47 | H63: Molly Childers | I63: Dash Ta Special | K63: 16.14
B64: X | G64: 70 | H64: Stevi Hillman | I64: PH TwoTimin Streaker | K64: 16.142
D65: A | G65: 92 | H65: Catherine Murray | I65: Cinnamon On Top | K65: 16.15 | M65: 2D 1st | N65: 1157.1
E66: X | F66: X | G66: 291 | H66: Kaden Burger | I66: Turbos French Zip | K66: 16.152 | M66: 2D 2nd | N66: 913.5
G67: 221 | H67: Jessi Fish | I67: Hot N Frosted | K67: 16.155 | M67: 2D 3rd | N67: 730.8
G68: 204 | H68: Adrianna Ruckteschler | I68: Mr Spoon | K68: 16.157 | M68: 2D 4th | N68: 609
G69: 137 | H69: Cheyenne Wimberley | I69: Streakn Images | K69: 16.16 | M69: 2D 5th | N69: 548.1
B70: X | C70: X | D70: A | G70: 116 | H70: Emily Becker | I70: Mr Elegant Shawne | K70: 16.17 | M70: 2D 6/7th | N70: 457
G71: 342 | H71: Tyra Kane | I71: Running Jetolena | K71: 16.17 | M71: 2D 6/7th | N71: 457
B72: X | C72: X | D72: A | G72: 107 | H72: Stephanie Fryer | I72: Some Streakin French | K72: 16.171 | M72: 2D 8th | N72: 365.4
B73: X | G73: 193 | H73: Nisa Berry | I73: A Kings Famous Fling | K73: 16.172 | M73: 2D 9th | N73: 305
C74: X | D74: A | G74: 214 | H74: Savannah Palmore | I74: Fortunate Colton | K74: 16.18 | M74: 2D 10/11th | N74: 264
G75: 322 | H75: Erin Reich | I75: Run Leo Run | K75: 16.18 | M75: 2D 10/11th | N75: 264
G76: 81 | H76: Hadley Durfey | I76: One Smooth Kelly | K76: 16.185 | M76: 2D 12th | N76: 121.8
A77: X | D77: A | G77: 12 | H77: Jolene Montgomery | I77: Dancin Ta Heaven | K77: 16.188
A78: X | G78: 41 | H78: Kassie Mowry | I78: Mistys Money Blurr | K78: 16.192
G79: 299 | H79: Cayla Small | I79: Design N Red | K79: 16.198
A80: X | G80: 28 | H80: Heidi Meuwissen | I80: No Lion Kims Flying | K80: 16.209
B81: X | D81: A | G81: 45 | H81: Emily Taylor | I81: Czech My Dashin Image | K81: 16.215
G82: 213 | H82: Dani Buhler | I82: A Holly Spark | K82: 16.218
G83: 68 | H83: Trina Murray | I83: Fuel For Dash | K83: 16.22
A84: X | G84: 320 | H84: Kristen Hendewerk | I84: Tennessee Fuel | K84: 16.221
D85: A | G85: 78 | H85: Emily Taylor | I85: Sun Frosted Wonder | K85: 16.237
C86: X | D86: A | G86: 143 | H86: Susan Agnew | I86: Jet N Ta Fame | K86: 16.241
C87: X | E87: X | F87: X | G87: 182 | H87: Patton Ann Lynch | I87: Firin To Be Hero | K87: 16.244
G88: 185 | H88: Cassidy Deen | I88: Outta Clear Blue | K88: 16.244
B89: X | G89: 259 | H89: Alleigh Harper | I89: Rockette AFLame | K89: 16.25
A90: X | G90: 105 | H90: Ceri Ward | I90: I Am Very Unique | K90: 16.264
G91: 204 | H91: Andrea Cline | I91: Famous LaJolla | K91: 16.267
G92: 295 | H92: Michelle Alley | I92: Seis Caress | K92: 16.27
G93: 119 | H93: Sydney Lumandue | I93: Cbar Frosty Tulip | K93: 16.273
C94: X | D94: A | G94: 102 | H94: Autumn Woodruff | I94: Raw Firepower | K94: 16.278
G95: 71 | H95: Ceri Ward | I95: AMagicStreakOfFling | K95: 16.278
B96: X | G96: 57 | H96: Krista Whitley | I96: Frenchmans Splash | K96: 16.279
A97: X | G97: 100 | H97: Krista Whitley | I97: Fabulace Fame | K97: 16.283
G98: 275 | H98: Sierra Melby | I98: Streakers Queen | K98: 16.315
G99: 341 | H99: Davie King | I99: Jessie | K99: 16.323
G100: 235 | H100: Courtney Moose | I100: Classic Ivory | K100: 16.324
G101: 170 | H101: Ben Beall | I101: Dennis | K101: 16.331
G102: 282 | H102: Jamie Olsen | I102: Miss Famous Beduino | K102: 16.338
G103: 54 | H103: Kristi Tuinei | I103: Zippys Cash Ta Fame | K103: 16.348
G104: 83 | H104: Raley Zebrauskas | I104: Shortys Dualinbadger | K104: 16.351
G105: 147 | H105: Pete Oen | I105: FC Strait Ruffian | K105: 16.354
D106: A | G106: 171 | H106: Shelby Janssen | I106: Famous Amous | K106: 16.368
G107: 37 | H107: Natalie Kurosky | I107: Motivating Mover | K107: 16.369
D108: S | G108: 156 | H108: Donna Tippen | K108: 16.379
E109: x | F109: x | G109: 131 | H109: Brecklyn Tippen | K109: 16.38
B110: X | G110: 157 | H110: Cassidy Champlin | I110: Wood Bea French Girl | K110: 16.383
G111: 313 | H111: Shelly Shields | I111: Blue Blazin Hot Fling | K111: 16.384
G112: 15 | H112: Molly Childers | I112: Smooth Movin Guy | K112: 16.386
D113: A | G113: 52 | H113: Lydia Butler | I113: Beduino N Fire Water | K113: 16.388
G114: 22 | H114: Fran Denham | I114: FrenchiesLightOnCash | K114: 16.39
B115: X | G115: 253 | H115: Tracy Lambert | I115: Heavens Illuminator | K115: 16.391
C116: X | E116: X | F116: X | G116: 162 | H116: Taber Garcia | I116: Dashin To U | K116: 16.394
G117: 74 | H117: Kenzi Pogue | I117: Cruzin Beduino | K117: 16.394
G118: 80 | H118: Kyle Leleux | I118: Addie | K118: 16.394
D119: A | G119: 171 | H119: Kelly Allen | I119: Bobby | K119: 16.395
D120: A | G120: 9 | H120: Tawni VanderLans | I120: TS Return N Hayday | K120: 16.4
G121: 26 | H121: Ashley Harvey | I121: Wheres My Sox | K121: 16.403
G122: 189 | H122: Lisa Thornton | I122: LT The Lucky One | K122: 16.403
G123: 57 | H123: Kacey Kirby Faust | I123: Jackies Run Ta Fame | K123: 16.404
G124: 135 | H124: Jessi Fish | I124: Truckles French Strip | K124: 16.412
D125: S | G125: 242 | H125: Lynn Saunders | I125: Chumley | K125: 16.414
E126: X | F126: X | G126: 121 | H126: Biloxi Shultz | I126: CTR Sun N Cee | K126: 16.422
D127: A | G127: 251 | H127: Amanda Lee | I127: Buds Poco Hermano | K127: 16.426
G128: 321 | H128: Megan Boone | I128: Firey Hot CoCo | K128: 16.433
A129: X | G129: 91 | H129: Lacey Donegan | I129: Designed To Gab | K129: 16.434
G130: 77 | H130: Raylene Cox | I130: Ya Give Me Fever | K130: 16.44
D131: S | G131: 164 | H131: Sherri Barnes | I131: Famous Little Jet | K131: 16.445
G132: 228 | H132: Cassidy Deen | I132: Guys Six Pack | K132: 16.449
D133: A | G133: 208 | H133: Katie Jo Boyd | I133: Dash Ta Mirage | K133: 16.455
G134: 104 | H134: Christi Durfey | I134: Jess Blazin Otoe | K134: 16.458
G135: 226 | H135: Tami Semas | I135: Cajun Chrome | K135: 16.468
A136: X | D136: A | G136: 106 | H136: Tricia Aldridge | I136: KN First Slick Chick | K136: 16.475
G137: 41 | H137: Jo FIsher | I137: Fancy | K137: 16.477
A138: X | G138: 174 | H138: Kyle Leleux | I138: Heavens Sizzler | K138: 16.478
A139: X | D139: A | G139: 46 | H139: Jolene Montgomery | I139: Eye Want It All | K139: 16.479
G140: 44 | H140: Shea Fisher | I140: Betty | K140: 16.479
A141: X | G141: 107 | H141: Scamper Cole | I141: Ima Epic Hustler | K141: 16.483
G142: 92 | H142: Roberta Chott | I142: Guys Hot Frost | K142: 16.486
D143: A | G143: 152 | H143: Savannah Palmore | I143: Colour Me Smooth | K143: 16.498
G144: 179 | H144: Ivy Hurst | I144: Red Vanilla | K144: 16.498
D145: S | G145: 202 | H145: Sherri Barnes | I145: Racing For Perks | K145: 16.501
G146: 197 | H146: Sadie Weldon | I146: WB Runaway Pumpkin | K146: 16.501
G147: 33 | H147: Shantell Hayes | K147: 16.503
G148: 117 | H148: Mindy Holloway | I148: First Rappin Judge | K148: 16.504
G149: 58 | H149: Lacey Donegan | I149: Just The Way You Are | K149: 16.516
G150: 17 | H150: Kayli Morris | I150: Fortune N Fuel | K150: 16.516
G151: 215 | H151: Kasey Kretschmar | I151: SO Famous First Lady | K151: 16.518
G152: 332 | H152: Sierra Melby | I152: Scoop Of Fame | K152: 16.52
G153: 240 | H153: Kelly Bruner | I153: Shadrach | K153: 16.521
G154: 273 | H154: Paige Dove | K154: 16.523
G155: 211 | H155: Fawn Aldrich | I155: Stripping Royalty | K155: 16.524
G156: 210 | H156: Becky Dillard | I156: Shesa Hot Loop | K156: 16.531
D157: A | G157: 76 | H157: Stephanie Fryer | I157: RR Lajollas Roll | K157: 16.532
G158: 98 | H158: Clintonna Todd | I158: Lieutenant Mike | K158: 16.532
G159: 306 | H159: Kim Scott | I159: JK Frostwood Drift | K159: 16.536
G160: 185 | H160: Josh Seeger | I160: Dialin Nine One One | K160: 16.537
B161: X | D161: A | G161: 165 | H161: Kara Large | I161: RSL FirstRoyal Eddie | K161: 16.538
G162: 300 | H162: Kalli Stegman | I162: Bling It to the Max | K162: 16.541
G163: 84 | H163: Jade Crago | I163: CM Nitros Kruser | K163: 16.555
D164: A | G164: 207 | H164: Kaitlyn Woodman | I164: AcesHersheyCash | K164: 16.569
E165: X | F165: X | G165: 237 | H165: Josie Hartmann | I165: Hes Honor | K165: 16.575
A166: X | D166: A | G166: 45 | H166: Stephanie Fryer | I166: Cantstopthefeeling | K166: 16.59
G167: 117 | H167: Nisa Berry | I167: Ivory Candy | K167: 16.593
G168: 196 | H168: Ashley Schafer | I168: Our Bobby McGee | K168: 16.593
B169: X | D169: A | G169: 184 | H169: Catherine Asmussen | I169: Frenchmans Drama | K169: 16.603
G170: 181 | H170: Jaylan Clary | I170: Happy Dayz | K170: 16.605
D171: A | G171: 11 | H171: Casey Hammons | I171: BH Trip Ta Fame | K171: 16.606
D172: S | G172: 110 | H172: Ken English | I172: VF Born Ta B A Star | K172: 16.611
G173: 294 | H173: Brooke Hickey | I173: Lola | K173: 16.617
G174: 336 | H174: Kylee Cook | I174: GH Jag 07 | K174: 16.629
G175: 312 | H175: Sierra Melby | I175: One Famous Baker | K175: 16.635
E176: X | F176: X | G176: 199 | H176: Josie Hartmann | I176: TR Illuminator Cash | K176: 16.639
G177: 173 | H177: Natalie Bland | I177: Captains Cat | K177: 16.644
G178: 31 | H178: Terri Stitle | I178: Rapido Rose | K178: 16.65 | M178: 3D 1st | N178: 925.68
G179: 186 | H179: Ashley Schafer | I179: Boonsstreakin Colours | K179: 16.655 | M179: 3D 2nd | N179: 730.8
G180: 297 | H180: Lisa Lucia | I180: Just Got Caught | K180: 16.658 | M180: 3D 3rd | N180: 585
G181: 153 | H181: Kortney Fisher | I181: Stolin French Kisses | K181: 16.659 | M181: 3D 4th | N181: 487.2
D182: S | G182: 195 | H182: Terry Vogel | I182: Dinky Jets Famous Jr | K182: 16.668 | M182: 3D 5th | N182: 438.48
G183: 205 | H183: Amy Wilson | I183: KN No Moe Siss | K183: 16.672 | M183: 3D 6th | N183: 389.76
B184: X | D184: A | G184: 30 | H184: Tillar Murray | I184: MV Fury Of The Fame | K184: 16.675 | M184: 3D 7/8th | N184: 317
A185: X | D185: A | G185: 149 | H185: Emily Becker | I185: Streaking Moon Beams | K185: 16.675 | M185: 3D 7/8th | N185: 317
D186: S | G186: 68 | H186: Connie Randolf | I186: HotRod Kitty Catt | K186: 16.679 | M186: 3D 9th | N186: 243.6
G187: 135 | H187: Lacy Billingsley | I187: VF High N FaMOUS | K187: 16.683 | M187: 3D 10/11th | N187: 171
G188: 183 | H188: Lacy Matthews | I188: Shilos Perky Pistol | K188: 16.683 | M188: 3D 10/11th | N188: 171
D189: A | G189: 110 | H189: Natalie Kurosky | I189: Winnies Red Kai | K189: 16.684 | M189: 3D 12th | N189: 97.44
B190: X | G190: 39 | H190: Krista Lucas | I190: TBR Streak Of Perks | K190: 16.687
G191: 286 | H191: Jancie Shelburne | I191: Ima Chrome Cowboy | K191: 16.688
G192: 160 | H192: Kim Schultze | I192: The Goodbye Bars | K192: 16.69
G193: 139 | H193: Sadie Weldon | I193: Boots Classy Perks | K193: 16.693
E194: X | F194: X | G194: 88 | H194: Fallon Forbes | I194: Don’t Care Who UR | K194: 16.703
B195: X | G195: 179 | H195: Erika Ashley | I195: Freighttrain C | K195: 16.707
D196: A | G196: 132 | H196: Tiffany Durham | I196: Colonels Kerosene | K196: 16.709
G197: 141 | H197: Ivy Hurst | I197: Hall Of Famer | K197: 16.71
E198: X | F198: X | G198: 126 | H198: Stormi Branch | I198: Demon | K198: 16.711
E199: X | F199: X | G199: 181 | H199: Ella McCOy | I199: YouCanDriftorFLy | K199: 16.713
D200: A | G200: 309 | H200: Brittany Fellows | I200: Le Jane | K200: 16.716
G201: 344 | H201: Davie King | I201: Alvin | K201: 16.718
... 380 more rows

Sheet Adult
A1: Futurity | B1: Der | C1: Age Inct. | D1: BBR | E1: Draw | F1: Rider Name | G1: Horse Name | H1: Pen | I1: Time | J1: Final Time | K1: Placing | L1: Money Earned
E2: 1 | F2: Kylee Scribner | G2: Firewater Cartel | I2: 15.706 | K2: 1D 1st | L2: 244
E3: 2 | F3: Jolene Montgomery | G3: Jet Fuel Only | I3: 15.747 | K3: 1D 2nd | L3: 183
E4: 3 | F4: Tiany Schuster | G4: Crewzin | I4: 15.753 | K4: 1D 3rd | L4: 122
E5: 4 | F5: Stephanie Fryer | G5: The Red Maserati | I5: 15.857 | K5: 1D 4th | L5: 61
E6: 5 | F6: Jolene Montgomery | G6: Famous Sierra | I6: 15.901
E7: 6 | F7: Molli Montgomery | G7: This Fling Is Famous | I7: 15.91
E8: 7 | F8: Stephanie Fryer | G8: Streakin Bye Ta Fame | I8: 15.918
E9: 8 | F9: Kara Large | G9: Credit To Fiesta | I9: 15.957
E10: 9 | F10: Molli Montgomery | G10: First Famous Chic | I10: 15.975
E11: 10 | F11: Katie Jo Boyd | G11: Frenchmen R Hot | I11: 16.022
E12: 11 | F12: Tillar Murray | G12: JL Lava Roc | I12: 16.024
E13: 12 | F13: Alyssa Urbanek | G13: Fueled With Dinero | I13: 16.033
E14: 13 | F14: Shelby McCamey | G14: Frenchy | I14: 16.056
E15: 14 | F15: Tyler Rivette | G15: Flingin Roses | I15: 16.087
E16: 15 | F16: Tiany Schuster | G16: Version Six | I16: 16.106
E17: 16 | F17: Tricia Aldridge | G17: Sinaloa Stinson | I17: 16.12
E18: 17 | F18: Catherine Murray | G18: Cinnamon On Top | I18: 16.15
E19: 18 | F19: Emily Becker | G19: Mr Elegant Shawne | I19: 16.17
E20: 19 | F20: Stephanie Fryer | G20: Some Streakin French | I20: 16.171
E21: 20 | F21: Savannah Palmore | G21: Fortunate Colton | I21: 16.18
E22: 21 | F22: Jolene Montgomery | G22: Dancin Ta Heaven | I22: 16.188
E23: 22 | F23: Emily Taylor | G23: Czech My Dashin Image | I23: 16.215 | K23: 2D 1st | L23: 209
E24: 23 | F24: Emily Taylor | G24: Sun Frosted Wonder | I24: 16.237 | K24: 2D 2nd | L24: 157
E25: 24 | F25: Susan Agnew | G25: Jet N Ta Fame | I25: 16.241 | K25: 2D 3rd | L25: 104
E26: 25 | F26: Autumn Woodruff | G26: Raw Firepower | I26: 16.278 | K26: 2D 4th | L26: 52
E27: 26 | F27: Shelby Janssen | G27: Famous Amous | I27: 16.368
E28: 27 | F28: Lydia Butler | G28: Beduino N Fire Water | I28: 16.388
E29: 28 | F29: Kelly Allen | G29: Bobby | I29: 16.395
E30: 29 | F30: Tawni VanderLans | G30: TS Return N Hayday | I30: 16.4
E31: 30 | F31: Amanda Lee | G31: Buds Poco Hermano | I31: 16.426
E32: 31 | F32: Katie Jo Boyd | G32: Dash Ta Mirage | I32: 16.455
E33: 32 | F33: Tricia Aldridge | G33: KN First Slick Chick | I33: 16.475
E34: 33 | F34: Jolene Montgomery | G34: Eye Want It All | I34: 16.479
E35: 34 | F35: Savannah Palmore | G35: Colour Me Smooth | I35: 16.498
E36: 35 | F36: Stephanie Fryer | G36: RR Lajollas Roll | I36: 16.532
E37: 36 | F37: Kara Large | G37: RSL FirstRoyal Eddie | I37: 16.538
E38: 37 | F38: Kaitlyn Woodman | G38: AcesHersheyCash | I38: 16.569
E39: 38 | F39: Stephanie Fryer | G39: Cantstopthefeeling | I39: 16.59
E40: 39 | F40: Catherine Asmussen | G40: Frenchmans Drama | I40: 16.603
E41: 40 | F41: Casey Hammons | G41: BH Trip Ta Fame | I41: 16.606
E42: 41 | F42: Tillar Murray | G42: MV Fury Of The Fame | I42: 16.675
E43: 42 | F43: Emily Becker | G43: Streaking Moon Beams | I43: 16.675
E44: 43 | F44: Natalie Kurosky | G44: Winnies Red Kai | I44: 16.684
E45: 44 | F45: Tiffany Durham | G45: Colonels Kerosene | I45: 16.709 | K45: 3D 1st | L45: 139
E46: 45 | F46: Brittany Fellows | G46: Le Jane | I46: 16.716 | K46: 3D 2nd | L46: 104
E47: 46 | F47: Kelly Mancinelli | G47: Nicks Twister | I47: 16.749 | K47: 3D 3rd | L47: 70
E48: 47 | F48: Serena Jenkins | G48: Top Dude Money | I48: 16.767 | K48: 3D 4th | L48: 35
E49: 48 | F49: Jolene Montgomery | G49: KN This Guys Streakin | I49: 16.774
E50: 49 | F50: Laura Pearson | G50: Honkey Tonk CD's | I50: 16.845
E51: 50 | F51: Bayley Darbro | G51: Gotalotofnitro | I51: 16.853
E52: 51 | F52: Kelly Allen | G52: Sally | I52: 16.882
E53: 52 | F53: Dena Milner | G53: Garry Owen Sire | I53: 16.921
E54: 53 | F54: Timberly Erickson | G54: Mines Fast | I54: 16.929
E55: 54 | F55: Kelly Allen | G55: John Smith | I55: 17.022
E56: 55 | F56: Jennifer Cullen | G56: Chasin Annies Fame | I56: 17.026
E57: 56 | F57: Evan McKinzie | G57: NNN Sixums Firewater | I57: 17.06
E58: 57 | F58: Tiffany Durham | G58: Dual Reys Win Money | I58: 17.07
E59: 58 | F59: John Sharp | G59: DDD Smoakin Baby | I59: 17.098
E60: 59 | F60: Susan Agnew | G60: Splash Da Firewater | I60: 17.101
E61: 60 | F61: Zena Mullins | G61: Peppy Lady Got Cash | I61: 17.148
E62: 61 | F62: Stephanie Fryer | G62: Litemup Imonfire | I62: 17.273 | K62: 4D 1st | L62: 104
E63: 62 | F63: Blake Myers | G63: Luvondarocks | I63: 17.318 | K63: 4D 2nd | L63: 78
E64: 63 | F64: Megan Walker | G64: Kama Woodbridge | I64: 17.319 | K64: 4D 3rd | L64: 52
E65: 64 | F65: Brooke Kelley | G65: Nu Bueno Karma | I65: 17.338 | K65: 4D 4th | L65: 26
E66: 65 | F66: Nicole Buell | G66: Dirty Money | I66: 17.357
E67: 66 | F67: Hanna Wallace | G67: Haidas Snare | I67: 17.535
E68: 67 | F68: Dena Milner | G68: Stoli Elit | I68: 17.546
E69: 68 | F69: Madelin Castro | G69: Shyla | I69: 17.558
E70: 69 | F70: Noah Grimes | G70: California Clone | I70: 17.644
E71: 70 | F71: Autumn Woodruff | G71: Spoonfulla | I71: 17.708 | J71: =IF(OR(H71=5,H71=10, H71=15, H71="BP",H71="SCR"),"NT",I71) -> 17.708
E72: 71 | F72: Kacy Riley | G72: Rut Row | I72: 17.716 | J72: 17.716
E73: 72 | F73: Katie Kapanick | G73: Pistol Packin Lark | I73: 17.747 | J73: 17.747
E74: 73 | F74: Katelyn Fitzke | G74: CP Zan Smooth Buzz | I74: 17.905 | J74: 17.905
E75: 74 | F75: Karissa Jones | G75: Anita Lot Of CAsh | I75: 17.921 | J75: 17.921
E76: 75 | F76: Kinsey Chandler | G76: Favorite Misstake | I76: 18.14 | J76: 18.14
E77: 76 | F77: Jesse Budd | G77: Flicker Nic (Whiskey) | I77: 18.388 | J77: 18.388
E78: 77 | F78: Tiffany Durham | G78: Dashin Luke Perry | I78: 18.544 | J78: 18.544
E79: 78 | F79: Holly Fenoglio | G79: Midnight Flyin | I79: 19.491 | J79: 19.491
E80: 79 | F80: Pete Oen | G80: Dash Ta Torres | I80: nt | J80: nt
E81: 80 | F81: Tiany Schuster | G81: Micguyver | I81: nt | J81: nt
E82: 81 | F82: Kendra Moore | G82: Spider Man | I82: nt15.770 | J82: nt15.770
E83: 82 | F83: Megan Best | G83: LCR Cash In Guys | I83: nt15.889 | J83: nt15.889
E84: 83 | F84: Pete Oen | G84: VC GoGO Fling | I84: nt15.945 | J84: nt15.945
E85: 84 | F85: Shelby Janssen | G85: Shes A Man Eater | I85: nt15.982 | J85: nt15.982
E86: 85 | F86: Molli Montgomery | G86: Toast Your Socks Off | I86: nt16.071 | J86: nt16.071
E87: 86 | F87: Molli Montgomery | G87: Kindafeelinheavenly | I87: nt16.121 | J87: nt16.121
E88: 87 | F88: Catherine Murray | G88: JL Fourtafame | I88: nt16.168 | J88: nt16.168
E89: 88 | F89: Rayna Longeway | G89: Dirty Dan Stinson | I89: nt16.192 | J89: nt16.192
E90: 89 | F90: Ashley Moore | G90: Mucho Fast David | I90: nt16.436 | J90: nt16.436
E91: 90 | F91: Holly Fenoglio | G91: Dashing Ta Fortune | I91: nt16.625 | J91: nt16.625
E92: 91 | F92: Blake Myers | G92: Swampy | I92: nt16.789 | J92: nt16.789
E93: 92 | F93: Savannah Palmore | G93: Promise Me A Jet | I93: nt16.845 | J93: nt16.845
E94: 93 | F94: Deanna Schelby | G94: Beauty | I94: nt16.871 | J94: nt16.871
E95: 94 | F95: Kelly Allen | G95: Billy Bob | I95: nt17.037 | J95: nt17.037
E96: 95 | F96: Brittany Fellows | G96: Tommy | I96: nt17.086 | J96: nt17.086
E97: 96 | F97: Cortnie Young | G97: Streakin Easily | I97: nt17.093 | J97: nt17.093
E98: 97 | F98: Catherine Asmussen | G98: A Tempting Romance | I98: nt22.299 | J98: nt22.299
E99: 98 | F99: Emily Taylor | I99: scratch | J99: scratch
E100: 99 | F100: Keyla Costa | G100: Zumanity Cristal CMV | I100: scratch | J100: scratch
E101: 100 | F101: Keyla Costa | G101: Spotlite Ta Fame | I101: scratch | J101: scratch
E102: 101 | F102: Holly Fenoglio | G102: Dash Ta Flames | I102: scratch | J102: scratch
E103: 102 | J103: 0
E104: 103 | J104: 0
E105: 104 | J105: 0
E106: 105 | J106: 0
E107: 106 | J107: 0
E108: 107 | J108: 0
E109: 108 | J109: 0
E110: 109 | J110: 0
E111: 110 | J111: 0
E112: 111 | J112: 0
E113: 112 | J113: 0
E114: 113 | J114: 0
E115: 114 | J115: 0
E116: 115 | J116: 0
E117: 116 | J117: 0
E118: 117 | J118: 0
E119: 118 | J119: 0
E120: 119 | J120: 0
E121: 120 | J121: 0
E122: 121 | J122: 0
E123: 122 | J123: 0
E124: 123 | J124: 0
E125: 124 | J125: 0
E126: 125 | J126: 0
E127: 126 | J127: 0
E128: 127 | J128: 0
E129: 128 | J129: 0
E130: 129 | J130: 0
E131: 130 | J131: =IF(OR(H131=5,H131=10, H131=15, H131="BP",H131="SCR"),"NT",I131) -> 0
E132: 131 | J132: 0
E133: 132 | J133: 0
E134: 133 | J134: 0
E135: 134 | J135: 0
E136: 135 | J136: 0
E137: 136 | J137: 0
E138: 137 | J138: 0
E139: 138 | J139: 0
E140: 139 | J140: 0
E141: 140 | J141: 0
E142: 141 | J142: 0
E143: 142 | J143: 0
E144: 143 | J144: 0
E145: 144 | J145: 0
E146: 145 | J146: 0
E147: 146 | J147: 0
E148: 147 | J148: 0
E149: 148 | J149: 0
E150: 149 | J150: 0
E151: 150 | J151: 0
E152: 151 | J152: 0
E153: 152 | J153: 0
E154: 153 | J154: 0
E155: 154 | J155: 0
E156: 155 | J156: 0
E157: 156 | J157: 0
E158: 157 | J158: 0
E159: 158 | J159: 0
E160: 159 | J160: 0
E161: 160 | J161: 0
E162: 161 | J162: 0
E163: 162 | J163: 0
E164: 163 | J164: 0
E165: 164 | J165: 0
E166: 165 | J166: 0
E167: 166 | J167: 0
E168: 167 | J168: 0
E169: 168 | J169: 0
E170: 169 | J170: 0
E171: 170 | J171: 0
E172: 171 | J172: 0
E173: 172 | J173: 0
E174: 173 | J174: 0
E175: 174 | J175: 0
E176: 175 | J176: 0
E177: 176 | J177: 0
E178: 177 | J178: 0
E179: 178 | J179: 0
E180: 179 | J180: 0
E181: 180 | J181: 0
E182: 181 | J182: 0
E183: 182 | J183: 0
E184: 183 | J184: 0
E185: 184 | J185: 0
E186: 185 | J186: 0
E187: 186 | J187: 0
E188: 187 | J188: 0
E189: 188 | J189: 0
E190: 189 | J190: 0
E191: 190 | J191: 0
E192: 191 | J192: 0
E193: 192 | J193: 0
E194: 193 | J194: 0
E195: 194 | J195: =IF(OR(H195=5,H195=10, H195=15, H195="BP",H195="SCR"),"NT",I195) -> 0
E196: 195 | J196: 0
E197: 196 | J197: 0
E198: 197 | J198: 0
E199: 198 | J199: 0
E200: 199 | J200: 0
... 101 more rows

Sheet Youth
A1: Futurity | B1: Der | C1: Age Inct. | D1: BBR | E1: Draw | F1: Rider Name | G1: Horse Name | H1: Pen | I1: Time | J1: Placing | K1: Money Earned
E2: 1 | F2: Charli Snow | G2: Sudden Hero | I2: 15.755 | J2: 1D 1st | K2: 196
E3: 2 | F3: Lindsey Kay Reichart | G3: Real Frosted Fame | I3: 16.092 | J3: 1D 2nd | K3: 117.6
E4: 3 | F4: Lawcyn Bledsoe | G4: Hayzel | I4: 16.097 | J4: 1D 3rd | K4: 78.4
E5: 4 | F5: Fallon Forbes | G5: ANother Bug Leo | I5: 16.124
E6: 5 | F6: Kaden Burger | G6: Turbos French Zip | I6: 16.152
E7: 6 | F7: Patton Ann Lynch | G7: Firin To Be Hero | I7: 16.244
E8: 7 | F8: Brecklyn Tippen | I8: 16.38 | J8: 2D 1st | K8: 168
E9: 8 | F9: Taber Garcia | G9: Dashin To U | I9: 16.394 | J9: 2D 2nd | K9: 101
E10: 9 | F10: Biloxi Shultz | G10: CTR Sun N Cee | I10: 16.422 | J10: 2D 3rd | K10: 67
E11: 10 | F11: Josie Hartmann | G11: Hes Honor | I11: 16.575
E12: 11 | F12: Josie Hartmann | G12: TR Illuminator Cash | I12: 16.639
E13: 12 | F13: Fallon Forbes | G13: Don’t Care Who UR | I13: 16.703
E14: 13 | F14: Stormi Branch | G14: Demon | I14: 16.711
E15: 14 | F15: Ella McCOy | G15: YouCanDriftorFLy | I15: 16.713
E16: 15 | F16: Biloxi Shultz | G16: Senor La Jolla | I16: 16.763 | J16: 3D 1st | K16: 112
E17: 16 | F17: Emily Williams | G17: Ruby | I17: 16.777 | J17: 3D 2nd | K17: 67
E18: 17 | F18: Paige Clayton | G18: Imafrenchcaptain | I18: 16.808 | J18: 3D 3rd | K18: 45
E19: 18 | F19: Briley Reeves | G19: RR Cajuns Cash | I19: 16.816
E20: 19 | F20: Cooper Peek | G20: Dolly | I20: 16.817
E21: 20 | F21: Avery Childers | G21: Circle Y Doc | I21: 16.856
E22: 21 | F22: Presleigh Akers | G22: Short NitaLena | I22: 16.869
E23: 22 | F23: Fallon Forbes | G23: Latte To GO | I23: 16.936
E24: 23 | F24: Bayler Smith | G24: Shooter | I24: 16.986
E25: 24 | F25: Fallon Forbes | G25: Cantina Rascal | I25: 17.01
E26: 25 | F26: Briley Reeves | G26: MV Thoughts of Fame | I26: 17.012
E27: 26 | F27: Bayler Smith | G27: Georgie | I27: 17.299 | J27: 4D 1st | K27: 84
E28: 27 | F28: Jaidyn Ornelas | G28: Firstee | I28: 17.31 | J28: 4D 2nd | K28: 50
E29: 28 | F29: Chloe Powell | G29: Superman | I29: 17.338 | J29: 4D 3rd | K29: 34
E30: 29 | F30: Charli Snow | G30: Scootin Little Chic | I30: 17.342
E31: 30 | F31: Haley King | I31: 17.913
E32: 31 | F32: Maddison Hammond | G32: Slim Jim | I32: 17.969
E33: 32 | F33: Taylor Anderson | G33: Famous Bully Brown | I33: 18.081
E34: 33 | F34: Cheyenne Huffman | G34: Gotalotofnitro | I34: 18.389
E35: 34 | F35: Berkeley Muth | G35: Diesel | I35: 20.684
E36: 35 | F36: Stormi Branch | G36: Peppy | I36: 23.039
E37: 36 | F37: Grace Ornelas | G37: Yeti | I37: broken
E38: 37 | F38: Lawcyn Bledsoe | G38: Chicks Dig Bogie | I38: nt
E39: 38 | F39: Maddison Hammond | G39: The Last Handyman | I39: nt16.214
E40: 39 | F40: Acey Pinkston | G40: Blazin Baby J | I40: nt16.420
E41: 40 | F41: Fallon Forbes | G41: Eye Jess Zoomed Bye | I41: nt16.479
E42: 41 | F42: Taber Garcia | G42: Dashalicious | I42: nt16.582
E43: 42 | F43: Ceeli Pinkston | I43: nt16.684
E44: 43 | F44: Brynn Owens | G44: This Buds For View | I44: nt16.805
E45: 44 | F45: Kaylee Buchanan | G45: A Widow High | I45: nt16.893
E46: 45 | F46: Ellie Hunter | G46: Classic Sunray | I46: nt16.963
E47: 46 | F47: Acey Pinkston | G47: KM Famous Daisy Dukes | I47: nt17.314
E48: 47 | F48: Kynzington Muth | G48: Rewind And Deal | I48: nt17.372
E49: 48 | F49: Taegan Sanders | G49: May | I49: nt17.839
E50: 49 | F50: Lauren Moore | G50: Joes A Player | I50: nt17.897
E51: 50 | F51: RUthAnn Hutchinson | G51: Winnie | I51: nt31.510
E52: 51
E53: 52
E54: 53
E55: 54
E56: 55
E57: 56
E58: 57
E59: 58
E60: 59
E61: 60
E62: 61
E63: 62
E64: 63
E65: 64
E66: 65
E67: 66
E68: 67
E69: 68
E70: 69
E71: 70
E72: 71
E73: 72
E74: 73
E75: 74
E76: 75
E77: 76
E78: 77
E79: 78
E80: 79
E81: 80
E82: 81
E83: 82
E84: 83
E85: 84
E86: 85
E87: 86
E88: 87
E89: 88
E90: 89
E91: 90
E92: 91
E93: 92
E94: 93
E95: 94
E96: 95
E97: 96
E98: 97
E99: 98
E100: 99
E101: 100
E102: 101
E103: 102
E104: 103
E105: 104
E106: 105
E107: 106
E108: 107
E109: 108
E110: 109
E111: 110
E112: 111
E113: 112
E114: 113
E115: 114
E116: 115
E117: 116
E118: 117
E119: 118
E120: 119
E121: 120
E122: 121
E123: 122
E124: 123
E125: 124
E126: 125
E127: 126
E128: 127
E129: 128
E130: 129
E131: 130
E132: 131
E133: 132
E134: 133
E135: 134
E136: 135
E137: 136
E138: 137
E139: 138
E140: 139
E141: 140
E142: 141
E143: 142
E144: 143
E145: 144
E146: 145
E147: 146
E148: 147
E149: 148
E150: 149
E151: 150
E152: 151
E153: 152
E154: 153
E155: 154
E156: 155
E157: 156
E158: 157
E159: 158
E160: 159
E161: 160
E162: 161
E163: 162
E164: 163
E165: 164
E166: 165
E167: 166
E168: 167
E169: 168
E170: 169
E171: 170
E172: 171
E173: 172
E174: 173
E175: 174
E176: 175
E177: 176
E178: 177
E179: 178
E180: 179
E181: 180
E182: 181
E183: 182
E184: 183
E185: 184
E186: 185
E187: 186
E188: 187
E189: 188
E190: 189
E191: 190
E192: 191
E193: 192
E194: 193
E195: 194
E196: 195
E197: 196
E198: 197
E199: 198
E200: 199
... 101 more rows

Sheet Derby
A1: Futurity | B1: Der | C1: Age Inct. | D1: BBR | E1: Draw | F1: Rider Name | G1: Horse Name | H1: c/o | I1: Time | J1: Final Time | K1: Placing | L1: Money Earned
E2: 1 | F2: Kassie Mowry | G2: Epic Guy | I2: 15.74 | K2: 1st | L2: 393
E3: 2 | F3: Jordon Briggs | G3: Famous Lil Jet | I3: 15.79 | K3: 2nd | L3: 328
E4: 3 | F4: Tillar Murray | G4: JL Lava Roc | I4: 16.024 | K4: 3rd | L4: 280
E5: 4 | F5: Shea-Lynn McConnell | G5: Smooth N Heavenly | I5: 16.031 | K5: 4th | L5: 213
E6: 5 | F6: Jordon Briggs | G6: One First Class Lady | I6: 16.043 | K6: 5th | L6: 164
E7: 6 | F7: Kim Schultze | G7: French Me Or Else | I7: 16.12 | K7: 6th | L7: 114
E8: 7 | F8: Stevi Hillman | G8: PH TwoTimin Streaker | I8: 16.142 | K8: 7th | L8: 82
E9: 8 | F9: Emily Becker | G9: Mr Elegant Shawne | I9: 16.17 | K9: 8th | L9: 66
E10: 9 | F10: Stephanie Fryer | G10: Some Streakin French | I10: 16.171
E11: 10 | F11: Nisa Berry | G11: A Kings Famous Fling | I11: 16.172
E12: 11 | F12: Emily Taylor | G12: Czech My Dashin Image | I12: 16.215
E13: 13 | F13: Alleigh Harper | G13: Rockette AFLame | I13: 16.25
E14: 14 | F14: Krista Whitley | G14: Frenchmans Splash | I14: 16.279
E15: 15 | F15: Cassidy Champlin | G15: Wood Bea French Girl | I15: 16.383
E16: 16 | F16: Tracy Lambert | G16: Heavens Illuminator | I16: 16.391
E17: 17 | F17: Kara Large | G17: RSL FirstRoyal Eddie | I17: 16.538
E18: 18 | F18: Catherine Asmussen | G18: Frenchmans Drama | I18: 16.603
E19: 19 | F19: Tillar Murray | G19: MV Fury Of The Fame | I19: 16.675
E20: 20 | F20: Krista Lucas | G20: TBR Streak Of Perks | I20: 16.687
E21: 21 | F21: Erika Ashley | G21: Freighttrain C | I21: 16.707
E22: 22 | F22: Jordon Briggs | G22: Look Judge | I22: 16.753
E23: 23 | F23: Aubrey Smith | G23: Coco Bongo | I23: 16.754
E24: 24 | F24: Brandi Felder | G24: A Sly Gal | I24: 17.09
E25: 25 | F25: Kinsey Chandler | G25: Favorite Misstake | I25: 18.14
E26: 26 | F26: Brandi Felder | G26: Graves Leavin Tucson | I26: 18.576
E27: 27 | F27: Tiany Schuster | G27: Micguyver | I27: nt
E28: 28 | F28: Ceri Ward | G28: Hiccup | I28: nt15.658 | J28: =IF(OR(H28=5,H28=10, H28=15, H28="BP",H28="SCR"),"NT",I28) -> nt15.658
E29: 29 | F29: Stevi Hillman | G29: Twaynas Guy | I29: nt15.826 | J29: nt15.826
E30: 30 | F30: Natalie Kurosky | G30: Turn N With Ease | I30: nt15.870 | J30: nt15.870
E31: 31 | F31: Andrea Cline | G31: Blurry Bug Leo | I31: nt15.918 | J31: nt15.918
E32: 32 | F32: Shelby Janssen | G32: Shes A Man Eater | I32: nt15.982 | J32: nt15.982
E33: 33 | F33: Cheyenne Wimberley | G33: Royal Blue Fame | I33: nt16.028 | J33: nt16.028
E34: 34 | F34: Aubrey Smith | G34: Eddies Lil Cat | I34: nt16.067 | J34: nt16.067
E35: 35 | F35: Kassie Mowry | G35: CP He Will Be Epic | I35: nt16.109 | J35: nt16.109
E36: 36 | F36: Molli Montgomery | G36: Kindafeelinheavenly | I36: nt16.121 | J36: nt16.121
E37: 37 | F37: Schyler Magdziak | G37: Flits Khamacasse | I37: nt16.480 | J37: nt16.480
E38: 38 | F38: Taber Garcia | G38: Dashalicious | I38: nt16.582 | J38: nt16.582
E39: 39 | F39: Holly Fenoglio | G39: Dashing Ta Fortune | I39: nt16.625 | J39: nt16.625
E40: 40 | F40: Savannah Palmore | G40: Promise Me A Jet | I40: nt16.845 | J40: nt16.845
E41: 41 | F41: Kyle Leleux | G41: A Streak Of Scarlett | I41: nt28.309 | J41: nt28.309
E42: 42 | F42: Emily Taylor | I42: scratch | J42: scratch
E43: 43 | F43: Keyla Costa | G43: Zumanity Cristal CMV | I43: scratch | J43: scratch
E44: 44 | J44: 0
E45: 45 | J45: 0
E46: 46 | J46: 0
E47: 47 | J47: 0
E48: 48 | J48: 0
E49: 49 | J49: 0
E50: 50 | J50: 0
E51: 51 | J51: 0
E52: 52 | J52: 0
E53: 53 | J53: 0
E54: 54 | J54: 0
E55: 55 | J55: 0
E56: 56 | J56: 0
E57: 57 | J57: 0
E58: 58 | J58: 0
E59: 59 | J59: 0
E60: 60 | J60: 0
E61: 61 | J61: 0
E62: 62 | J62: 0
E63: 63 | J63: 0
E64: 64 | J64: 0
E65: 65 | J65: 0
E66: 66 | J66: 0
E67: 67 | J67: 0
E68: 68 | J68: 0
E69: 69 | J69: 0
E70: 70 | J70: 0
E71: 71 | J71: 0
E72: 72 | J72: 0
E73: 73 | J73: 0
E74: 74 | J74: 0
E75: 75 | J75: 0
E76: 76 | J76: 0
E77: 77 | J77: 0
E78: 78 | J78: 0
E79: 79 | J79: 0
E80: 80 | J80: 0
E81: 81 | J81: =IF(OR(H81=5,H81=10, H81=15, H81="BP",H81="SCR"),"NT",I81) -> 0
E82: 82 | J82: 0
E83: 83 | J83: 0
E84: 84 | J84: 0
E85: 85 | J85: 0
E86: 86 | J86: 0
E87: 87 | J87: 0
E88: 88 | J88: 0
E89: 89 | J89: 0
E90: 90 | J90: 0
E91: 91 | J91: 0
E92: 92 | J92: 0
E93: 93 | J93: 0
E94: 94 | J94: 0
E95: 95 | J95: 0
E96: 96 | J96: 0
E97: 97 | J97: 0
E98: 98 | J98: 0
E99: 99 | J99: 0
E100: 100 | J100: 0
E101: 101 | J101: 0
E102: 102 | J102: 0
E103: 103 | J103: 0
E104: 104 | J104: 0
E105: 105 | J105: 0
E106: 106 | J106: 0
E107: 107 | J107: 0
E108: 108 | J108: 0
E109: 109 | J109: 0
E110: 110 | J110: 0
E111: 111 | J111: 0
E112: 112 | J112: 0
E113: 113 | J113: 0
E114: 114 | J114: 0
E115: 115 | J115: 0
E116: 116 | J116: 0
E117: 117 | J117: 0
E118: 118 | J118: 0
E119: 119 | J119: 0
E120: 120 | J120: 0
E121: 121 | J121: 0
E122: 122 | J122: 0
E123: 123 | J123: 0
E124: 124 | J124: 0
E125: 125 | J125: 0
E126: 126 | J126: 0
E127: 127 | J127: 0
E128: 128 | J128: 0
E129: 129 | J129: 0
E130: 130 | J130: 0
E131: 131 | J131: 0
E132: 132 | J132: 0
E133: 133 | J133: 0
E134: 134 | J134: 0
E135: 135 | J135: 0
E136: 136 | J136: 0
E137: 137 | J137: 0
E138: 138 | J138: 0
E139: 139 | J139: 0
E140: 140 | J140: 0
E141: 141 | J141: 0
E142: 142 | J142: 0
E143: 143 | J143: 0
E144: 144 | J144: 0
E145: 145 | J145: =IF(OR(H145=5,H145=10, H145=15, H145="BP",H145="SCR"),"NT",I145) -> 0
E146: 146 | J146: 0
E147: 147 | J147: 0
E148: 148 | J148: 0
E149: 149 | J149: 0
E150: 150 | J150: 0
E151: 151 | J151: 0
E152: 152 | J152: 0
E153: 153 | J153: 0
E154: 154 | J154: 0
E155: 155 | J155: 0
E156: 156 | J156: 0
E157: 157 | J157: 0
E158: 158 | J158: 0
E159: 159 | J159: 0
E160: 160 | J160: 0
E161: 161 | J161: 0
E162: 162 | J162: 0
E163: 163 | J163: 0
E164: 164 | J164: 0
E165: 165 | J165: 0
E166: 166 | J166: 0
E167: 167 | J167: 0
E168: 168 | J168: 0
E169: 169 | J169: 0
E170: 170 | J170: 0
E171: 171 | J171: 0
E172: 172 | J172: 0
E173: 173 | J173: 0
E174: 174 | J174: 0
E175: 175 | J175: 0
E176: 176 | J176: 0
E177: 177 | J177: 0
E178: 178 | J178: 0
E179: 179 | J179: 0
E180: 180 | J180: 0
E181: 181 | J181: 0
E182: 182 | J182: 0
E183: 183 | J183: 0
E184: 184 | J184: 0
E185: 185 | J185: 0
E186: 186 | J186: 0
E187: 187 | J187: 0
E188: 188 | J188: 0
E189: 189 | J189: 0
E190: 190 | J190: 0
E191: 191 | J191: 0
E192: 192 | J192: 0
E193: 193 | J193: 0
E194: 194 | J194: 0
E195: 195 | J195: 0
E196: 196 | J196: 0
E197: 197 | J197: 0
E198: 198 | J198: 0
E199: 199 | J199: 0
E200: 200 | J200: 0
... 100 more rows

Sheet Highstakes
A1: Futurity | B1: Der | C1: Age Inct. | D1: BBR | E1: Draw | F1: Rider Name | G1: Horse Name | H1: c/o | I1: Time | J1: Final Time | K1: Placing | L1: Money Earned
E2: 1 | F2: Jimmie Smith | G2: Marthas Bullion | I2: 15.704 | K2: 1st | L2: 580
E3: 2 | F3: Kylee Scribner | G3: Firewater Cartel | I3: 15.706 | K3: 2nd | L3: 475
E4: 3 | F4: Ryann Pedone | G4: Feel The Sting | I4: 15.725 | K4: 3rd | L4: 422
E5: 4 | F5: Kassie Mowry | G5: Epic Guy | I5: 15.74 | K5: 4th | L5: 370
E6: 5 | F6: Tiany Schuster | G6: Crewzin | I6: 15.753 | K6: 5th | L6: 317
E7: 6 | F7: Stephanie Fryer | G7: The Red Maserati | I7: 15.857 | K7: 6th | L7: 264
E8: 7 | F8: Cheyenne Wimberley | G8: VQ Sucker Punch | I8: 15.893 | K8: 7th | L8: 211
E9: 8 | F9: Stephanie Fryer | G9: Streakin Bye Ta Fame | I9: 15.918
E10: 9 | F10: Ryann Pedone | G10: Streakin Queenie | I10: 15.935
E11: 10 | F11: Mike Robertson | G11: Simba The Texas Jet | I11: 15.94
E12: 11 | F12: Tillar Murray | G12: JL Lava Roc | I12: 16.024
E13: 12 | F13: Shea-Lynn McConnell | G13: Smooth N Heavenly | I13: 16.031
E14: 13 | F14: Alyssa Urbanek | G14: Fueled With Dinero | I14: 16.033
E15: 14 | F15: Shelby McCamey | G15: Frenchy | I15: 16.056
E16: 15 | F16: Tyler Rivette | G16: Flingin Roses | I16: 16.087
E17: 16 | F17: Tiany Schuster | G17: Version Six | I17: 16.106
E18: 17 | F18: Tricia Aldridge | G18: Sinaloa Stinson | I18: 16.12
E19: 18 | F19: Emily Becker | G19: Mr Elegant Shawne | I19: 16.17
E20: 19 | F20: Stephanie Fryer | G20: Some Streakin French | I20: 16.171
E21: 20 | F21: Savannah Palmore | G21: Fortunate Colton | I21: 16.18
E22: 21 | F22: Susan Agnew | G22: Jet N Ta Fame | I22: 16.241
E23: 22 | F23: Patton Ann Lynch | G23: Firin To Be Hero | I23: 16.244
E24: 23 | F24: Autumn Woodruff | G24: Raw Firepower | I24: 16.278
E25: 24 | F25: Taber Garcia | G25: Dashin To U | I25: 16.394
E26: 25 | F26: Tiany Schuster | G26: Micguyver | I26: nt
E27: 26 | F27: Jimmie Smith | G27: Lever Action | I27: nt15.774
E28: 27 | F28: Cheyenne Wimberley | G28: Royal Blue Fame | I28: nt16.028
E29: 28 | F29: Kassie Mowry | G29: CP He Will Be Epic | I29: nt16.109
E30: 29 | F30: SheaLynn McConnell | G30: Louie Bug | I30: nt16.328
E31: 30 | F31: Acey Pinkston | G31: Blazin Baby J | I31: nt16.420
E32: 31 | F32: Taber Garcia | G32: Dashalicious | I32: nt16.582
E33: 32 | F33: Acey Pinkston | G33: KM Famous Daisy Dukes | I33: nt17.314
E34: 33 | F34: Catherine Asmussen | G34: A Tempting Romance | I34: nt22.299
E35: 34
E36: 35
E37: 36
E38: 37
E39: 38
E40: 39
E41: 40 | J41: =IF(OR(H41=5,H41=10, H41=15, H41="BP",H41="SCR"),"NT",I41) -> 0
E42: 41 | J42: 0
E43: 42 | J43: 0
E44: 43 | J44: 0
E45: 44 | J45: 0
E46: 45 | J46: 0
E47: 46 | J47: 0
E48: 47 | J48: 0
E49: 48 | J49: 0
E50: 49 | J50: 0
E51: 50 | J51: 0
E52: 51 | J52: 0
E53: 52 | J53: 0
E54: 53 | J54: 0
E55: 54 | J55: 0
E56: 55 | J56: 0
E57: 56 | J57: 0
E58: 57 | J58: 0
E59: 58 | J59: 0
E60: 59 | J60: 0
E61: 60 | J61: 0
E62: 61 | J62: 0
E63: 62 | J63: 0
E64: 63 | J64: 0
E65: 64 | J65: 0
E66: 65 | J66: 0
E67: 66 | J67: 0
E68: 67 | J68: 0
E69: 68 | J69: 0
E70: 69 | J70: 0
E71: 70 | J71: 0
E72: 71 | J72: 0
E73: 72 | J73: 0
E74: 73 | J74: 0
E75: 74 | J75: 0
E76: 75 | J76: 0
E77: 76 | J77: 0
E78: 77 | J78: 0
E79: 78 | J79: 0
E80: 79 | J80: 0
E81: 80 | J81: 0
E82: 81 | J82: 0
E83: 82 | J83: 0
E84: 83 | J84: 0
E85: 84 | J85: 0
E86: 85 | J86: 0
E87: 86 | J87: 0
E88: 87 | J88: 0
E89: 88 | J89: 0
E90: 89 | J90: 0
E91: 90 | J91: 0
E92: 91 | J92: 0
E93: 92 | J93: 0
E94: 93 | J94: 0
E95: 94 | J95: 0
E96: 95 | J96: 0
E97: 96 | J97: 0
E98: 97 | J98: 0
E99: 98 | J99: 0
E100: 99 | J100: 0
E101: 100 | J101: 0
E102: 101 | J102: 0
E103: 102 | J103: 0
E104: 103 | J104: =IF(OR(H104=5,H104=10, H104=15, H104="BP",H104="SCR"),"NT",I104) -> 0
E105: 104 | J105: 0
E106: 105 | J106: 0
E107: 106 | J107: 0
E108: 107 | J108: 0
E109: 108 | J109: 0
E110: 109 | J110: 0
E111: 110 | J111: 0
E112: 111 | J112: 0
E113: 112 | J113: 0
E114: 113 | J114: 0
E115: 114 | J115: 0
E116: 115 | J116: 0
E117: 116 | J117: 0
E118: 117 | J118: 0
E119: 118 | J119: 0
E120: 119 | J120: 0
E121: 120 | J121: 0
E122: 121 | J122: 0
E123: 122 | J123: 0
E124: 123 | J124: 0
E125: 124 | J125: 0
E126: 125 | J126: 0
E127: 126 | J127: 0
E128: 127 | J128: 0
E129: 128 | J129: 0
E130: 129 | J130: 0
E131: 130 | J131: 0
E132: 131 | J132: 0
E133: 132 | J133: 0
E134: 133 | J134: 0
E135: 134 | J135: 0
E136: 135 | J136: 0
E137: 136 | J137: 0
E138: 137 | J138: 0
E139: 138 | J139: 0
E140: 139 | J140: 0
E141: 140 | J141: 0
E142: 141 | J142: 0
E143: 142 | J143: 0
E144: 143 | J144: 0
E145: 144 | J145: 0
E146: 145 | J146: 0
E147: 146 | J147: 0
E148: 147 | J148: 0
E149: 148 | J149: 0
E150: 149 | J150: 0
E151: 150 | J151: 0
E152: 151 | J152: 0
E153: 152 | J153: 0
E154: 153 | J154: 0
E155: 154 | J155: 0
E156: 155 | J156: 0
E157: 156 | J157: 0
E158: 157 | J158: 0
E159: 158 | J159: 0
E160: 159 | J160: 0
E161: 160 | J161: 0
E162: 161 | J162: 0
E163: 162 | J163: 0
E164: 163 | J164: 0
E165: 164 | J165: 0
E166: 165 | J166: 0
E167: 166 | J167: 0
E168: 167 | J168: =IF(OR(H168=5,H168=10, H168=15, H168="BP",H168="SCR"),"NT",I168) -> 0
E169: 168 | J169: 0
E170: 169 | J170: 0
E171: 170 | J171: 0
E172: 171 | J172: 0
E173: 172 | J173: 0
E174: 173 | J174: 0
E175: 174 | J175: 0
E176: 175 | J176: 0
E177: 176 | J177: 0
E178: 177 | J178: 0
E179: 178 | J179: 0
E180: 179 | J180: 0
E181: 180 | J181: 0
E182: 181 | J182: 0
E183: 182 | J183: 0
E184: 183 | J184: 0
E185: 184 | J185: 0
E186: 185 | J186: 0
E187: 186 | J187: 0
E188: 187 | J188: 0
E189: 188 | J189: 0
E190: 189 | J190: 0
E191: 190 | J191: 0
E192: 191 | J192: 0
E193: 192 | J193: 0
E194: 193 | J194: 0
E195: 194 | J195: 0
E196: 195 | J196: 0
E197: 196 | J197: 0
E198: 197 | J198: 0
E199: 198 | J199: 0
E200: 199 | J200: 0
... 101 more rows

Sheet Futurity
A1: Futurity | B1: Der | C1: Age Inct. | D1: BBR | E1: Draw | F1: Rider Name | G1: Horse Name | H1: c/o | I1: Time | J1: Final Time | K1: Placing | L1: Money Earned
E2: 1 | F2: Kylee Scribner | G2: Firewater Cartel | I2: 15.706 | K2: 1D 1st | L2: 480
E3: 2 | F3: Jolene Montgomery | G3: Jet Fuel Only | I3: 15.747 | K3: 1D 2nd | L3: 360
E4: 3 | F4: Tiany Schuster | G4: Crewzin | I4: 15.753 | K4: 1D 3rd | L4: 240
E5: 4 | F5: Nisa Berry | G5: NB Keep N Time | I5: 15.858 | K5: 1D 4th | L5: 120
E6: 5 | F6: Jolene Montgomery | G6: Famous Sierra | I6: 15.901
E7: 6 | F7: Molli Montgomery | G7: This Fling Is Famous | I7: 15.91
E8: 7 | F8: Ceri Ward | G8: Chasin Misty | I8: 15.94
E9: 8 | F9: Molli Montgomery | G9: First Famous Chic | I9: 15.975
E10: 9 | F10: Lindsey McLeod | G10: In The Nick A Time | I10: 15.975
E11: 10 | F11: Stevi Hillman | G11: DTF Texas Moon | I11: 15.979
E12: 11 | F12: Tyler Rivette | G12: Flingin Roses | I12: 16.087
E13: 12 | F13: Tricia Aldridge | G13: Sinaloa Stinson | I13: 16.12
E14: 13 | F14: Molly Childers | G14: Dash Ta Special | I14: 16.14
E15: 14 | F15: Jolene Montgomery | G15: Dancin Ta Heaven | I15: 16.188
E16: 15 | F16: Kassie Mowry | G16: Mistys Money Blurr | I16: 16.192
E17: 16 | F17: Heidi Meuwissen | G17: No Lion Kims Flying | I17: 16.209 | K17: 2D 1st | L17: 320
E18: 17 | F18: Kristen Hendewerk | G18: Tennessee Fuel | I18: 16.221 | K18: 2D 2nd | L18: 240
E19: 18 | F19: Ceri Ward | G19: I Am Very Unique | I19: 16.264 | K19: 2D 3rd | L19: 160
E20: 19 | F20: Krista Whitley | G20: Fabulace Fame | I20: 16.283 | K20: 2D 4th | L20: 80
E21: 20 | F21: Lacey Donegan | G21: Designed To Gab | I21: 16.434
E22: 21 | F22: Tricia Aldridge | G22: KN First Slick Chick | I22: 16.475
E23: 22 | F23: Kyle Leleux | G23: Heavens Sizzler | I23: 16.478
E24: 23 | F24: Jolene Montgomery | G24: Eye Want It All | I24: 16.479
E25: 24 | F25: Scamper Cole | G25: Ima Epic Hustler | I25: 16.483
E26: 25 | F26: Stephanie Fryer | G26: Cantstopthefeeling | I26: 16.59
E27: 26 | F27: Emily Becker | G27: Streaking Moon Beams | I27: 16.675
E28: 27 | F28: Jolene Montgomery | G28: KN This Guys Streakin | I28: 16.774
E29: 28 | F29: Ryann Pedone | G29: Pressured By Destiny | I29: 16.916
E30: 29 | F30: Tori Volk | G30: CN Holy Cow | I30: 16.98
E31: 30 | F31: Jessica Lear | G31: GL Fly Girl | I31: 17.005
E32: 31 | F32: Kelly Mancinelli | G32: Mango Smoothie | I32: 17.221
E33: 32 | F33: Stephanie Fryer | G33: Litemup Imonfire | I33: 17.273
E34: 33 | F34: Blake Myers | G34: Luvondarocks | I34: 17.318
E35: 34 | F35: Megan Walker | G35: Kama Woodbridge | I35: 17.319
E36: 35 | F36: Mandi Cleveland | G36: Rare Corona Gone | I36: 17.417
E37: 36 | F37: Baylee Bookman | G37: WhoGivesABugnFlit | I37: 17.588
E38: 37 | F38: Martha Smith | G38: CanIGetAHallelujah | I38: 17.686
E39: 38 | F39: Scamper Cole | G39: VF Eddie Flashed Me | I39: 17.699
E40: 39 | F40: Autumn Woodruff | G40: Spoonfulla | I40: 17.708
E41: 40 | F41: Ally Plunkett | G41: DH Frost Em Jess | I41: 18.411
E42: 41 | F42: Holly Fenoglio | G42: Midnight Flyin | I42: 19.491
E43: 42 | F43: Pete Oen | G43: Dash Ta Torres | I43: nt
E44: 43 | F44: Kelly Bruner | G44: Tufferfnell | I44: nt15.840
E45: 44 | F45: Pete Oen | G45: VC GoGO Fling | I45: nt15.945
E46: 45 | F46: Molli Montgomery | G46: Toast Your Socks Off | I46: nt16.071
E47: 46 | F47: Jimmie Smith | G47: Guys Im A Bunny Cat | I47: nt16.347
E48: 47 | F48: Jade Crago | G48: High Road Ta Fame | I48: nt16.475
E49: 48 | F49: Mecca Hickox | G49: MV Gonna Be Famous | I49: nt16.519
E50: 49 | F50: Jordon Briggs | G50: Cinnamon Stoli | I50: nt17.465
E51: 50 | F51: Kathy Rush | G51: Rosalee Firewater | I51: nt19.235
E52: 51
E53: 52
E54: 53
E55: 54
E56: 55
E57: 56
E58: 57
E59: 58
E60: 59
E61: 60
E62: 61
E63: 62
E64: 63 | J64: =IF(OR(H64=5,H64=10, H64=15, H64="BP",H64="SCR"),"NT",I64) -> 0
E65: 64 | J65: 0
E66: 65 | J66: 0
E67: 66 | J67: 0
E68: 67 | J68: 0
E69: 68 | J69: 0
E70: 69 | J70: 0
E71: 70 | J71: 0
E72: 71 | J72: 0
E73: 72 | J73: 0
E74: 73 | J74: 0
E75: 74 | J75: 0
E76: 75 | J76: 0
E77: 76 | J77: 0
E78: 77 | J78: 0
E79: 78 | J79: 0
E80: 79 | J80: 0
E81: 80 | J81: 0
E82: 81 | J82: 0
E83: 82 | J83: 0
E84: 83 | J84: 0
E85: 84 | J85: 0
E86: 85 | J86: 0
E87: 86 | J87: 0
E88: 87 | J88: 0
E89: 88 | J89: 0
E90: 89 | J90: 0
E91: 90 | J91: 0
E92: 91 | J92: 0
E93: 92 | J93: 0
E94: 93 | J94: 0
E95: 94 | J95: 0
E96: 95 | J96: =IF(OR(H96=5,H96=10, H96=15, H96="BP",H96="SCR"),"NT",I96) -> 0
E97: 96 | J97: 0
E98: 97 | J98: 0
E99: 98 | J99: 0
E100: 99 | J100: 0
E101: 100 | J101: 0
E102: 101 | J102: 0
E103: 102 | J103: 0
E104: 103 | J104: 0
E105: 104 | J105: 0
E106: 105 | J106: 0
E107: 106 | J107: 0
E108: 107 | J108: 0
E109: 108 | J109: 0
E110: 109 | J110: 0
E111: 110 | J111: 0
E112: 111 | J112: 0
E113: 112 | J113: 0
E114: 113 | J114: 0
E115: 114 | J115: 0
E116: 115 | J116: 0
E117: 116 | J117: 0
E118: 117 | J118: 0
E119: 118 | J119: 0
E120: 119 | J120: 0
E121: 120 | J121: 0
E122: 121 | J122: 0
E123: 122 | J123: 0
E124: 123 | J124: 0
E125: 124 | J125: 0
E126: 125 | J126: 0
E127: 126 | J127: 0
E128: 127 | J128: 0
E129: 128 | J129: 0
E130: 129 | J130: 0
E131: 130 | J131: 0
E132: 131 | J132: 0
E133: 132 | J133: 0
E134: 133 | J134: 0
E135: 134 | J135: 0
E136: 135 | J136: 0
E137: 136 | J137: 0
E138: 137 | J138: 0
E139: 138 | J139: 0
E140: 139 | J140: 0
E141: 140 | J141: 0
E142: 141 | J142: 0
E143: 142 | J143: 0
E144: 143 | J144: 0
E145: 144 | J145: 0
E146: 145 | J146: 0
E147: 146 | J147: 0
E148: 147 | J148: 0
E149: 148 | J149: 0
E150: 149 | J150: 0
E151: 150 | J151: 0
E152: 151 | J152: 0
E153: 152 | J153: 0
E154: 153 | J154: 0
E155: 154 | J155: 0
E156: 155 | J156: 0
E157: 156 | J157: 0
E158: 157 | J158: 0
E159: 158 | J159: 0
E160: 159 | J160: =IF(OR(H160=5,H160=10, H160=15, H160="BP",H160="SCR"),"NT",I160) -> 0
E161: 160 | J161: 0
E162: 161 | J162: 0
E163: 162 | J163: 0
E164: 163 | J164: 0
E165: 164 | J165: 0
E166: 165 | J166: 0
E167: 166 | J167: 0
E168: 167 | J168: 0
E169: 168 | J169: 0
E170: 169 | J170: 0
E171: 170 | J171: 0
E172: 171 | J172: 0
E173: 172 | J173: 0
E174: 173 | J174: 0
E175: 174 | J175: 0
E176: 175 | J176: 0
E177: 176 | J177: 0
E178: 177 | J178: 0
E179: 178 | J179: 0
E180: 179 | J180: 0
E181: 180 | J181: 0
E182: 181 | J182: 0
E183: 182 | J183: 0
E184: 183 | J184: 0
E185: 184 | J185: 0
E186: 185 | J186: 0
E187: 186 | J187: 0
E188: 187 | J188: 0
E189: 188 | J189: 0
E190: 189 | J190: 0
E191: 190 | J191: 0
E192: 191 | J192: 0
E193: 192 | J193: 0
E194: 193 | J194: 0
E195: 194 | J195: 0
E196: 195 | J196: 0
E197: 196 | J197: 0
E198: 197 | J198: 0
E199: 198 | J199: 0
E200: 199 | J200: 0
... 101 more rows

Sheet 12 & Under (hidden)
A1: Futurity | B1: Der | C1: Age Inct. | D1: R/O | E1: Draw | F1: Rider Name | G1: Horse Name | H1: Time | I1: Final Time | J1: Placing | K1: Money Earned
E33: 32
E34: 33
E35: 34
E36: 35
E37: 36
E38: 37
E39: 38
E40: 39
E41: 40
E42: 41
E43: 42
E44: 43
E45: 44
E46: 45
E47: 46
E48: 47
E49: 48
E50: 49
E51: 50
E52: 51
E53: 52
E54: 53
E55: 54
E56: 55
E57: 56
E58: 57
E59: 58
E60: 59
E61: 60
E62: 61
E63: 62
E64: 63
E65: 64
E66: 65
E67: 66
E68: 67
E69: 68
E70: 69
E71: 70
E72: 71
E73: 72
E74: 73
E75: 74
E76: 75
E77: 76
E78: 77
E79: 78
E80: 79
E81: 80
E82: 81
E83: 82
E84: 83
E85: 84
E86: 85
E87: 86
E88: 87
E89: 88
E90: 89
E91: 90
E92: 91
E93: 92
E94: 93
E95: 94
E96: 95
E97: 96
E98: 97
E99: 98
E100: 99
E101: 100
E102: 101
E103: 102
E104: 103
E105: 104
E106: 105
E107: 106
E108: 107
E109: 108
E110: 109
E111: 110
E112: 111
E113: 112
E114: 113
E115: 114
E116: 115
E117: 116
E118: 117
E119: 118
E120: 119
E121: 120
E122: 121
E123: 122
E124: 123
E125: 124
E126: 125
E127: 126
E128: 127
E129: 128
E130: 129
E131: 130
E132: 131
E133: 132
E134: 133
E135: 134
E136: 135
E137: 136
E138: 137
E139: 138
E140: 139
E141: 140
E142: 141
E143: 142
E144: 143
E145: 144
E146: 145
E147: 146
E148: 147
E149: 148
E150: 149
E151: 150
E152: 151
E153: 152
E154: 153
E155: 154
E156: 155
E157: 156
E158: 157
E159: 158
E160: 159
E161: 160
E162: 161
E163: 162
E164: 163
E165: 164
E166: 165
E167: 166
E168: 167
E169: 168
E170: 169
E171: 170
E172: 171
E173: 172
E174: 173
E175: 174
E176: 175
E177: 176
E178: 177
E179: 178
E180: 179
E181: 180
E182: 181
E183: 182
E184: 183
E185: 184
E186: 185
E187: 186
E188: 187
E189: 188
E190: 189
E191: 190
E192: 191
E193: 192
E194: 193
E195: 194
E196: 195
E197: 196
E198: 197
E199: 198
E200: 199
E201: 200
E202: 201
E203: 202
E204: 203
E205: 204
E206: 205
E207: 206
E208: 207
E209: 208
E210: 209
E211: 210
E212: 211
E213: 212
E214: 213
E215: 214
E216: 215
E217: 216
E218: 217
E219: 218
E220: 219
E221: 220
E222: 221
E223: 222
E224: 223
E225: 224
E226: 225
E227: 226
E228: 227
E229: 228
E230: 229
E231: 230
... 70 more rows

Sheet Future Champs - Combined (hidden)
A1: Draw | B1: Rider Name | C1: Horse Name | D1: Pen | E1: Time | F1: Final Time | G1: Placing | H1: Money Earned
A2: 5 | B2: Haley King | C2: Vanity | D2: 17.913
A3: 1 | B3: Blaine Bussell | C3: Chuck | D3: 18.505
A4: 14 | B4: Maclaine DeGroot | C4: Monkey | D4: 18.58
A5: 9 | B5: Blaine Bussell | C5: Sage | D5: 18.987
A6: 10 | B6: Bella Blaylock | D6: 19.806
A7: 6 | B7: Peyton King | C7: Maisy | D7: 21.819
A8: 13 | B8: Kyndall Pedone | C8: Thumper | D8: 28.268
A9: 2 | B9: Reatas Worthington | C9: Rooster | D9: 30.293
A10: 3 | B10: Bentley Becker | C10: Lizzy | D10: 30.918
A11: 4 | B11: RuthAnn Hutchison | C11: Ruby | D11: 32.357
A12: 8 | B12: Wyatt Williams | C12: Peanut | D12: 33.713
A13: 7 | B13: COraLee Williams | C13: Cooper | D13: 52.485
A14: 12 | B14: Ava Smith | C14: Dude | D14: nt33.529
A15: 11 | B15: Adley Hardin | D15: scratch
A16: 15
A17: 16
A18: 17 | F18: =IF(OR(D18=5,D18=10, D18=15, D18="BP",D18="SCR"),"NT",E18) -> 0
A19: 18 | F19: =IF(OR(D19=5,D19=10, D19=15, D19="BP",D19="SCR"),"NT",E19) -> 0
A20: 19 | F20: =IF(OR(D20=5,D20=10, D20=15, D20="BP",D20="SCR"),"NT",E20) -> 0
A21: 20 | F21: =IF(OR(D21=5,D21=10, D21=15, D21="BP",D21="SCR"),"NT",E21) -> 0

Sheet Future Champs-Saturday (hidden)
A1: Draw | B1: Rider Name | C1: Horse Name | D1: Pen | E1: Time | F1: Final Time | G1: Placing | H1: Money Earned
A2: 1 | B2: Bella Blaylock | E2: 19.806
A3: 2 | B3: Adley Hardin | C3: scratch
A4: 3 | B4: Ava Smith | C4: Dude | E4: nt33.529
A5: 4 | B5: Kyndall Pedone | C5: Thumper | E5: 28.268
A6: 5 | B6: Maclaine DeGroot | C6: Monkey | E6: 18.58
A7: 6
A8: 7
A9: 8
A10: 9
A11: 10
A12: 11
A13: 12
A14: 13
A15: 14
A16: 15
A17: 16
A18: 17 | F18: =IF(OR(D18=5,D18=10, D18=15, D18="BP",D18="SCR"),"NT",E18) -> 0
A19: 18 | F19: =IF(OR(D19=5,D19=10, D19=15, D19="BP",D19="SCR"),"NT",E19) -> 0
A20: 19 | F20: =IF(OR(D20=5,D20=10, D20=15, D20="BP",D20="SCR"),"NT",E20) -> 0
A21: 20 | F21: =IF(OR(D21=5,D21=10, D21=15, D21="BP",D21="SCR"),"NT",E21) -> 0

Sheet BFA 2D Payout (hidden)
A1: BFA 2D Payout
A2: Entry Fee | B2: # Entries | C2: % Payback | D2: Added $ | E2: Total Payout | F2: Each Go
A3: 25 | B3: 19 | C3: 0.8 | D3: 200 | E3: =(A3*$C$3)*B3+D3 -> 580 | F3: 0.3
F4: =$E$3*$F$3 -> 174
A5: $5,000-7,500 Pays 5 Places 4 to 1D 1 to 2D
A6: Placings | B6: 1D | D6: 2D
A7: 1st | B7: =($F$4*$C$7) -> 57.42 | C7: 0.33 | D7: =$F$4*$E$7 -> 12.18 | E7: 0.07
A8: 2nd | B8: =$F$4*$C$8 -> 46.98 | C8: 0.27
A9: 3rd | B9: =$F$4*$C$9 -> 34.8 | C9: 0.2
A10: 4th | B10: =$F$4*$C$10 -> 22.62 | C10: 0.13
A11: Totals | B11: =SUM(B7:B10) -> 161.82 | D11: =SUM(D7:D10) -> 12.18 | E11: =(C7+C8+C9+C10+E7+E8) -> 1
A12: =B11+D11 -> 174
A13: $7,501 - 10,000 Pays 6 Places 4 to 1D, 2 to 2D
A14: Placings | B14: 1D | D14: 2D
A15: 1st | B15: =$F$4*$C$15 -> 50.46 | C15: 0.29 | D15: =$F$4*$E$15 -> 15.66 | E15: 0.09
A16: 2nd | B16: =+$F$4*$C$16 -> 41.76 | C16: 0.24 | D16: =F4*E16 -> 8.7 | E16: 0.05
A17: 3rd | B17: =$F$4*$C$17 -> 33.06 | C17: 0.19
A18: 4th | B18: =$F$4*$C$18 -> 24.36 | C18: 0.14
A19: Totals | B19: =SUM(B15:B18) -> 149.64 | D19: =D16+D15 -> 24.36 | E19: =SUM(C15+C16+C17+C18+E15+E16) -> 1
A20: =D19+B19 -> 174
A21: $10,001 - $15,000 Payes 8 Places 5 to 1D, 3 to 2D
A22: Placings | B22: 1D | D22: 2D
A23: 1st | B23: =F4*C23 -> 41.76 | C23: 0.24 | D23: =F4*E23 -> 12.18 | E23: 0.07
A24: 2nd | B24: =F4*C24 -> 34.8 | C24: 0.2 | D24: =F4*E24 -> 8.7 | E24: 0.05
A25: 3rd | B25: =F4*C25 -> 29.58 | C25: 0.17 | D25: =F4*E25 -> 6.96 | E25: 0.04
A26: 4th | B26: =F4*C26 -> 22.62 | C26: 0.13
A27: 5th | B27: =F4*C27 -> 17.4 | C27: 0.1
A28: Totals | B28: =SUM(B23:B27) -> 146.16 | D28: =SUM(D23:D27) -> 27.84 | E28: =C23+C24+C25+C26+C27+E23+E24+E25 -> 1
A29: =B28+D28 -> 174
A30: $15,001 - $25,000 Payes 11 Places 7 to 1D, 4 to 2D
A31: Placings | B31: 1D | D31: 2D
A32: 1st | B32: =$F$4*C32 -> 36.54 | C32: 0.21 | D32: =$F$4*E32 -> 8.7 | E32: 0.05
A33: 2nd | B33: =$F$4*C33 -> 31.32 | C33: 0.18 | D33: =$F$4*E33 -> 6.96 | E33: 0.04
A34: 3rd | B34: 26.1 | C34: 0.15 | D34: 5.22 | E34: 0.03
A35: 4th | B35: 19.14 | C35: 0.11 | D35: 3.48 | E35: 0.02
A36: 5th | B36: 13.92 | C36: 0.08
A37: 6th | B37: 12.18 | C37: 0.07
A38: 7th | B38: 10.44 | C38: 0.06
A39: Totals | B39: =SUM(B32:B38) -> 149.64 | D39: =SUM(D32:D38) -> 24.36 | E39: =C32+C33+C34+C35+C36+C37+C38+E32+E33+E34+E35 -> 1
A40: =SUM(B39+D39) -> 174
A41: $25,001 - $35,000 Payes 12 Places 8 to 1D, 4 to 2D
A42: Placings | B42: 1D | D42: 2D
A43: 1st | B43: =$F$4*C43 -> 33.06 | C43: 0.19 | D43: =$F$4*E43 -> 8.7 | E43: 0.05
A44: 2nd | B44: =$F$4*C44 -> 26.1 | C44: 0.15 | D44: =$F$4*E44 -> 6.96 | E44: 0.04
A45: 3rd | B45: 20.88 | C45: 0.12 | D45: 5.22 | E45: 0.03
A46: 4th | B46: 17.4 | C46: 0.1 | D46: 3.48 | E46: 0.02
A47: 5th | B47: 15.66 | C47: 0.09
A48: 6th | B48: 13.92 | C48: 0.08
A49: 7th | B49: 12.18 | C49: 0.07
A50: 8th | B50: 10.44 | C50: 0.06
A51: Totals | B51: =SUM(B43:B50) -> 149.64 | D51: =SUM(D43:D46) -> 24.36 | E51: =C43+C44+C45+C46+C47+C48+C49+C50+E43+E44+E45+E46 -> 1
A52: =D51+B51 -> 174

Sheet 2D Payout
A1: 2D Payout
A2: Entry Fee | B2: # Entries | C2: % Payback | D2: Added $ | E2: Total Payout
A3: 100 | B3: 33 | C3: 0.8 | D3: 0 | E3: =(A3*$C$3)*B3+D3 -> 2640
A5: % in each D | B5: 0.6 | C5: 0.4 | D5: Total % = | E5: =SUM(B5:C5) -> 1
B6: 1D | C6: 2D
B7: =(($A$3*$B$3*$C$3*$B$5)+($D$3*$B$5)) -> 1584 | C7: =(($A$3*$B$3*$C$3*$C$5)+($D$3*$C$5)) -> 1056
A8: Totals | B8: =SUM(B7) -> 1584 | C8: =SUM(C7) -> 1056 | D8: =SUM(B8:C8) -> 2640
A10: For 1-7 riders 1 place
A11: Placings | B11: 1D | C11: 2D
A12: 1st | B12: =$B$7*$E$12 -> 1584 | C12: =$C$7*$E$5 -> 1056 | D12: è | E12: 1
A13: Totals | B13: =SUM(B12:B12) -> 1584 | C13: =SUM(C12:C12) -> 1056 | D13: =SUM(B13:C13) -> 2640 | E13: =SUM(E12) -> 1
A15: For 8-11 riders 2 places
A16: Placings | B16: 1D | C16: 2D
A17: 1st | B17: =$B$7*$E$17 -> 950.4 | C17: =$C$7*$E$17 -> 633.6 | D17: è | E17: 0.6
A18: 2nd | B18: =$B$7*$E$18 -> 633.6 | C18: =$C$7*$E$18 -> 422.4 | D18: è | E18: 0.4
A19: Totals | B19: =SUM(B17:B18) -> 1584 | C19: =SUM(C17:C18) -> 1056 | D19: =SUM(B19:C19) -> 2640 | E19: =SUM(E17:E18) -> 1
A21: For 12-15 riders 3 places
A22: Placings | B22: 1D | C22: 2D
A23: 1st | B23: =$B$7*$E$23 -> 792 | C23: =$C$7*$E$23 -> 528 | D23: è | E23: 0.5
A24: 2nd | B24: =$B$7*$E$24 -> 475.2 | C24: =$C$7*$E$24 -> 316.8 | D24: è | E24: 0.3
A25: 3rd | B25: =$B$7*$E$25 -> 316.8 | C25: =$C$7*$E$25 -> 211.2 | D25: è | E25: 0.2
A26: Totals | B26: =SUM(B23:B25) -> 1584 | C26: =SUM(C23:C25) -> 1056 | D26: =SUM(B26:C26) -> 2640 | E26: =SUM(E23:E25) -> 1
A28: For 16-19 riders 4 places
A29: Placings | B29: 1D | C29: 2D
A30: 1st | B30: =$B$7*$E$30 -> 633.6 | C30: =$C$7*$E$30 -> 422.4 | D30: è | E30: 0.4
A31: 2nd | B31: =$B$7*$E$31 -> 475.2 | C31: =$C$7*$E$31 -> 316.8 | D31: è | E31: 0.3
A32: 3rd | B32: =$B$7*$E$32 -> 316.8 | C32: =$C$7*$E$32 -> 211.2 | D32: è | E32: 0.2
A33: 4th | B33: =$B$7*$E$33 -> 158.4 | C33: =$C$7*$E$33 -> 105.6 | D33: è | E33: 0.1
A34: Totals | B34: =SUM(B30:B33) -> 1584 | C34: =SUM(C30:C33) -> 1056 | D34: =SUM(B34:C34) -> 2640 | E34: =SUM(E30:E33) -> 1
A36: For 20-23 riders 5 places
A37: Placings | B37: 1D | C37: 2D
A38: 1st | B38: =$B$7*$E$38 -> 475.2 | C38: =$C$7*$E$38 -> 316.8 | D38: è | E38: 0.3
A39: 2nd | B39: =$B$7*$E$39 -> 396 | C39: =$C$7*$E$39 -> 264 | D39: è | E39: 0.25
A40: 3rd | B40: =$B$7*$E$40 -> 316.8 | C40: =$C$7*$E$40 -> 211.2 | D40: è | E40: 0.2
A41: 4th | B41: =$B$7*$E$41 -> 237.6 | C41: =$C$7*$E$41 -> 158.4 | D41: è | E41: 0.15
A42: 5th | B42: =$B$7*$E$42 -> 158.4 | C42: =$C$7*$E$42 -> 105.6 | D42: è | E42: 0.1
A43: Totals | B43: =SUM(B38:B42) -> 1584 | C43: =SUM(C38:C42) -> 1056 | D43: =SUM(B43:C43) -> 2640 | E43: =SUM(E38:E42) -> 1
A45: For 24-27 riders 6 places
A46: Placings | B46: 1D | C46: 2D
A47: 1st | B47: =$B$7*$E$47 -> 396 | C47: =$C$7*$E$47 -> 264 | D47: è | E47: 0.25
A48: 2nd | B48: =$B$7*$E$48 -> 316.8 | C48: =$C$7*$E$48 -> 211.2 | D48: è | E48: 0.2
A49: 3rd | B49: =$B$7*$E$49 -> 285.12 | C49: =$C$7*$E$49 -> 190.08 | D49: è | E49: 0.18
A50: 4th | B50: =$B$7*$E$50 -> 237.6 | C50: =$C$7*$E$50 -> 158.4 | D50: è | E50: 0.15
A51: 5th | B51: =$B$7*$E$51 -> 190.08 | C51: =$C$7*$E$51 -> 126.72 | D51: è | E51: 0.12
A52: 6th | B52: =$B$7*$E$52 -> 158.4 | C52: =$C$7*$E$52 -> 105.6 | D52: è | E52: 0.1
A53: Totals | B53: =SUM(B47:B52) -> 1584 | C53: =SUM(C47:C52) -> 1056 | D53: =SUM(B53:C53) -> 2640 | E53: =SUM(E47:E52) -> 1
A55: For 28-31 riders 7 places
A56: Placings | B56: 1D | C56: 2D
A57: 1st | B57: =$B$7*$E$57 -> 348.48 | C57: =$C$7*$E$57 -> 232.32 | D57: è | E57: 0.22
A58: 2nd | B58: =$B$7*$E$58 -> 285.12 | C58: =$C$7*$E$58 -> 190.08 | D58: è | E58: 0.18
A59: 3rd | B59: =$B$7*$E$59 -> 253.44 | C59: =$C$7*$E$59 -> 168.96 | D59: è | E59: 0.16
A60: 4th | B60: =$B$7*$E$60 -> 221.76 | C60: =$C$7*$E$60 -> 147.84 | D60: è | E60: 0.14
A61: 5th | B61: =$B$7*$E$61 -> 190.08 | C61: =$C$7*$E$61 -> 126.72 | D61: è | E61: 0.12
A62: 6th | B62: =$B$7*$E$62 -> 158.4 | C62: =$C$7*$E$62 -> 105.6 | D62: è | E62: 0.1
A63: 7th | B63: =$B$7*$E$63 -> 126.72 | C63: =$C$7*$E$63 -> 84.48 | D63: è | E63: 0.08
A64: Totals | B64: =SUM(B57:B63) -> 1584 | C64: =SUM(C57:C63) -> 1056 | D64: =SUM(B64:C64) -> 2640 | E64: =SUM(E57:E63) -> 1
A66: For 32 or more riders 8 places
A67: Placings | B67: 1D | C67: 2D
A68: 1st | B68: =$B$7*$E$68 -> 364.32 | C68: =$C$7*$E$68 -> 242.88 | D68: è | E68: 0.23
A69: 2nd | B69: =$B$7*$E$69 -> 316.8 | C69: =$C$7*$E$69 -> 211.2 | D69: è | E69: 0.2
A70: 3rd | B70: =$B$7*$E$70 -> 269.28 | C70: =$C$7*$E$70 -> 179.52 | D70: è | E70: 0.17
A71: 4th | B71: =$B$7*$E$71 -> 221.76 | C71: =$C$7*$E$71 -> 147.84 | D71: è | E71: 0.14
A72: 5th | B72: =$B$7*$E$72 -> 174.24 | C72: =$C$7*$E$72 -> 116.16 | D72: è | E72: 0.11
A73: 6th | B73: =$B$7*$E$73 -> 126.72 | C73: =$C$7*$E$73 -> 84.48 | D73: è | E73: 0.08
A74: 7th | B74: =$B$7*$E$74 -> 79.2 | C74: =$C$7*$E$74 -> 52.8 | D74: è | E74: 0.05
A75: 8th | B75: =$B$7*$E$75 -> 31.68 | C75: =$C$7*$E$75 -> 21.12 | D75: è | E75: 0.02
A76: Totals | B76: =SUM(B68:B75) -> 1584 | C76: =SUM(C68:C75) -> 1056 | D76: =SUM(B76:C76) -> 2640 | E76: =SUM(E68:E75) -> 1

Sheet 3D Payout (hidden)
A1: 3D Payout
A2: Entry Fee | B2: # Entries | C2: % Payback | D2: $ From Entry | E2: Added $ | F2: Total Payout
A3: 10 | B3: 3 | C3: 0.8 | D3: =$A$3*$C$3*$B$3 -> 24 | F3: =$D$3+$E$3 -> 24
A5: % in each D | B5: 0.5 | C5: 0.3 | D5: 0.2 | E5: Total % = | F5: =SUM(B5:D5) -> 1
B6: 1D | C6: 2D | D6: 3D
B7: =(($A$3*$B$3*$C$3*$B$5)+($E$3*$B$5)) -> 12 | C7: =(($A$3*$B$3*$C$3*$C$5)+($E$3*$C$5)) -> 7.2 | D7: =(($A$3*$B$3*$C$3*$D$5)+($E$3*$D$5)) -> 4.8
A8: Totals | B8: =SUM(B7) -> 12 | C8: =SUM(C7) -> 7.2 | D8: 4.8 | E8: =SUM(B8:D8) -> 24
A10: For 1-10 riders 1 place
A11: Placings | B11: 1D | C11: 2D | D11: 3D
A12: 1st | B12: =$B$7*$F$12 -> 12 | C12: =$C$7*$F$12 -> 7.2 | D12: =$D$7*$F$12 -> 4.8 | E12: è | F12: 1
A13: Totals | B13: =SUM(B12:B12) -> 12 | C13: =SUM(C12:C12) -> 7.2 | D13: =SUM(D12:D12) -> 4.8 | E13: =SUM(B13:D13) -> 24 | F13: =SUM(F12) -> 1
A15: For 11-15 riders 2 places
A16: Placings | B16: 1D | C16: 2D | D16: 3D
A17: 1st | B17: =$B$7*$F$17 -> 7.2 | C17: =$C$7*$F$17 -> 4.32 | D17: =$D$7*$F$17 -> 2.88 | E17: è | F17: 0.6
A18: 2nd | B18: =$B$7*$F$18 -> 4.8 | C18: =$C$7*$F$18 -> 2.88 | D18: =$D$7*$F$18 -> 1.92 | E18: è | F18: 0.4
A19: Totals | B19: =SUM(B17:B18) -> 12 | C19: =SUM(C17:C18) -> 7.2 | D19: =SUM(D17:D18) -> 4.8 | E19: =SUM(B19:D19) -> 24 | F19: =SUM(F17:F18) -> 1
A21: For 16-30 riders 3 places
A22: Placings | B22: 1D | C22: 2D | D22: 3D
A23: 1st | B23: =$B$7*$F$23 -> 6 | C23: =$C$7*$F$23 -> 3.6 | D23: =$D$7*$F$23 -> 2.4 | E23: è | F23: 0.5
A24: 2nd | B24: =$B$7*$F$24 -> 3.6 | C24: =$C$7*$F$24 -> 2.16 | D24: =$D$7*$F$24 -> 1.44 | E24: è | F24: 0.3
A25: 3rd | B25: =$B$7*$F$25 -> 2.4 | C25: =$C$7*$F$25 -> 1.44 | D25: =$D$7*$F$25 -> 0.96 | E25: è | F25: 0.2
A26: Totals | B26: =SUM(B23:B25) -> 12 | C26: =SUM(C23:C25) -> 7.2 | D26: =SUM(D22:D25) -> 4.8 | E26: =SUM(B26:D26) -> 24 | F26: =SUM(F23:F25) -> 1
A28: For 31-60 riders 4 places
A29: Placings | B29: 1D | C29: 2D | D29: 3D
A30: 1st | B30: =$B$7*$F$30 -> 5.04 | C30: =$C$7*$F$30 -> 3.024 | D30: =$D$7*$F$30 -> 2.016 | E30: è | F30: 0.42
A31: 2nd | B31: =$B$7*$F$31 -> 3.48 | C31: =$C$7*$F$31 -> 2.088 | D31: =$D$7*$F$31 -> 1.392 | E31: è | F31: 0.29
A32: 3rd | B32: =$B$7*$F$32 -> 2.28 | C32: =$C$7*$F$32 -> 1.368 | D32: =$D$7*$F$32 -> 0.912 | E32: è | F32: 0.19
A33: 4th | B33: =$B$7*$F$33 -> 1.2 | C33: =$C$7*$F$33 -> 0.72 | D33: =$D$7*$F$33 -> 0.48 | E33: è | F33: 0.1
A34: Totals | B34: =SUM(B30:B33) -> 12 | C34: =SUM(C30:C33) -> 7.2 | D34: =SUM(D30:D33) -> 4.8 | E34: =SUM(B34:D34) -> 24 | F34: =SUM(F30:F33) -> 1
A36: For 61-90 riders 5 places
A37: Placings | B37: 1D | C37: 2D | D37: 3D
A38: 1st | B38: =$B$7*$F$38 -> 4.56 | C38: =$C$7*$F$38 -> 2.736 | D38: =$D$7*$F$38 -> 1.824 | E38: è | F38: 0.38
A39: 2nd | B39: =$B$7*$F$39 -> 3.36 | C39: =$C$7*$F$39 -> 2.016 | D39: =$D$7*$F$39 -> 1.344 | E39: è | F39: 0.28
A40: 3rd | B40: =$B$7*$F$40 -> 2.16 | C40: =$C$7*$F$40 -> 1.296 | D40: =$D$7*$F$40 -> 0.864 | E40: è | F40: 0.18
A41: 4th | B41: =$B$7*$F$41 -> 1.2 | C41: =$C$7*$F$41 -> 0.72 | D41: =$D$7*$F$41 -> 0.48 | E41: è | F41: 0.1
A42: 5th | B42: =$B$7*$F$42 -> 0.72 | C42: =$C$7*$F$42 -> 0.432 | D42: =$D$7*$F$42 -> 0.288 | E42: è | F42: 0.06
A43: Totals | B43: =SUM(B38:B42) -> 12 | C43: =SUM(C38:C42) -> 7.2 | D43: =SUM(D38:D42) -> 4.8 | E43: =SUM(B43:D43) -> 24 | F43: =SUM(F38:F42) -> 1
A45: For 91-120 riders 6 places
A46: Placings | B46: 1D | C46: 2D | D46: 3D
A47: 1st | B47: =$B$7*$F$47 -> 4.32 | C47: =$C$7*$F$47 -> 2.592 | D47: =$D$7*$F$47 -> 1.728 | E47: è | F47: 0.36
A48: 2nd | B48: =$B$7*$F$48 -> 3.12 | C48: =$C$7*$F$48 -> 1.872 | D48: =$D$7*$F$48 -> 1.248 | E48: è | F48: 0.26
A49: 3rd | B49: =$B$7*$F$49 -> 1.92 | C49: =$C$7*$F$49 -> 1.152 | D49: =$D$7*$F$49 -> 0.768 | E49: è | F49: 0.16
A50: 4th | B50: =$B$7*$F$50 -> 1.2 | C50: =$C$7*$F$50 -> 0.72 | D50: =$D$7*$F$50 -> 0.48 | E50: è | F50: 0.1
A51: 5th | B51: =$B$7*$F$51 -> 0.84 | C51: =$C$7*$F$51 -> 0.504 | D51: =$D$7*$F$51 -> 0.336 | E51: è | F51: 0.07
A52: 6th | B52: =$B$7*$F$52 -> 0.6 | C52: =$C$7*$F$52 -> 0.36 | D52: =$D$7*$F$52 -> 0.24 | E52: è | F52: 0.05
A53: Totals | B53: =SUM(B47:B52) -> 12 | C53: =SUM(C47:C52) -> 7.2 | D53: =SUM(D47:D52) -> 4.8 | E53: =SUM(B53:D53) -> 24 | F53: =SUM(F47:F52) -> 1
A55: For 121-200 riders 7 places
A56: Placings | B56: 1D | C56: 2D | D56: 3D
A57: 1st | B57: =$B$7*$F$57 -> 3.12 | C57: =$C$7*$F$57 -> 1.872 | D57: =$D$7*$F$57 -> 1.248 | E57: è | F57: 0.26
A58: 2nd | B58: =$B$7*$F$58 -> 2.4 | C58: =$C$7*$F$58 -> 1.44 | D58: =$D$7*$F$58 -> 0.96 | E58: è | F58: 0.2
A59: 3rd | B59: =$B$7*$F$59 -> 1.8 | C59: =$C$7*$F$59 -> 1.08 | D59: =$D$7*$F$59 -> 0.72 | E59: è | F59: 0.15
A60: 4th | B60: =$B$7*$F$60 -> 1.44 | C60: =$C$7*$F$60 -> 0.864 | D60: =$D$7*$F$60 -> 0.576 | E60: è | F60: 0.12
A61: 5th | B61: =$B$7*$F$61 -> 1.2 | C61: =$C$7*$F$61 -> 0.72 | D61: =$D$7*$F$61 -> 0.48 | E61: è | F61: 0.1
A62: 6th | B62: =$B$7*$F$62 -> 1.08 | C62: =$C$7*$F$62 -> 0.648 | D62: =$D$7*$F$62 -> 0.432 | E62: è | F62: 0.09
A63: 7th | B63: =$B$7*$F$63 -> 0.96 | C63: =$C$7*$F$63 -> 0.576 | D63: =$D$7*$F$63 -> 0.384 | E63: è | F63: 0.08
A64: Totals | B64: =SUM(B57:B63) -> 12 | C64: =SUM(C57:C63) -> 7.2 | D64: =SUM(D57:D63) -> 4.8 | E64: =SUM(B64:D64) -> 24 | F64: =SUM(F57:F63) -> 1
A66: For 201 or more riders 8 places
A67: Placings | B67: 1D | C67: 2D | D67: 3D
A68: 1st | B68: =$B$7*0.24 -> 2.88 | C68: =$C$7*0.24 -> 1.728 | D68: =$D$7*0.24 -> 1.152 | E68: è | F68: 0.24
A69: 2nd | B69: =$B$7*0.18 -> 2.16 | C69: =$C$7*0.18 -> 1.296 | D69: =$D$7*0.18 -> 0.864 | E69: è | F69: 0.18
A70: 3rd | B70: =$B$7*0.15 -> 1.8 | C70: =$C$7*0.15 -> 1.08 | D70: =$D$7*0.15 -> 0.72 | E70: è | F70: 0.15
A71: 4th | B71: =$B$7*0.12 -> 1.44 | C71: =$C$7*0.12 -> 0.864 | D71: =$D$7*0.12 -> 0.576 | E71: è | F71: 0.12
A72: 5th | B72: =$B$7*0.1 -> 1.2 | C72: =$C$7*0.1 -> 0.72 | D72: =$D$7*0.1 -> 0.48 | E72: è | F72: 0.1
A73: 6th | B73: =$B$7*0.08 -> 0.96 | C73: =$C$7*0.08 -> 0.576 | D73: =$D$7*0.08 -> 0.384 | E73: è | F73: 0.08
A74: 7th | B74: =$B$7*0.07 -> 0.84 | C74: =$C$7*0.07 -> 0.504 | D74: =$D$7*0.07 -> 0.336 | E74: è | F74: 0.07
A75: 8th | B75: =$B$7*0.06 -> 0.72 | C75: =$C$7*0.06 -> 0.432 | D75: =$D$7*0.06 -> 0.288 | E75: è | F75: 0.06
A76: Totals | B76: =SUM(B68:B75) -> 12 | C76: =SUM(C68:C75) -> 7.2 | D76: =SUM(D68:D75) -> 4.8 | E76: =SUM(B76:D76) -> 24 | F76: =SUM(F68:F75) -> 1

Sheet 4D Payout BBR (hidden)
A1: 4D Payout BBR
A2: Entry Fee | B2: # Entries | C2: % Payback | D2: $ From Entry | E2: Added $ | F2: Total Payout
A3: 40 | B3: 200 | C3: 0.8 | D3: =$A$3*$C$3*$B$3 -> 6400 | E3: 1100 | F3: =($A$3*$C$3)*$B$3+$E$3 -> 7500
A5: % in each D | B5: 0.35 | C5: 0.3 | D5: 0.2 | E5: 0.15 | F5: Total % Payout | G5: =SUM(B5:E5) -> 1
B6: 1D | C6: 2D | D6: 3D | E6: 4D
B7: =(($A$3*$B$3*$C$3*0.35)+($E$3/4)) -> 2515 | C7: =(($A$3*$B$3*$C$3*0.3)+($E$3/4)) -> 2195 | D7: =(($A$3*$B$3*$C$3*0.2)+($E$3/4)) -> 1555 | E7: =(($A$3*$B$3*$C$3*0.15)+($E$3/4)) -> 1235
A8: Totals | B8: =SUM(B7) -> 2515 | C8: =SUM(C7) -> 2195 | D8: 1555 | E8: 1235 | F8: =SUM(B8:E8) -> 7500
A10: For 1-16 riders 1 place
A11: Placings | B11: 1D | C11: 2D | D11: 3D | E11: 4D
A12: 1st | B12: =$B$7*$G$12 -> 2515 | C12: =$C$7*$G$12 -> 2195 | D12: =$D$7*$G$12 -> 1555 | E12: =$E$7*$G$12 -> 1235 | F12: è | G12: 1
A13: Totals | B13: =SUM(B12:B12) -> 2515 | C13: =SUM(C12:C12) -> 2195 | D13: =SUM(D12:D12) -> 1555 | E13: =SUM(E12:E12) -> 1235 | F13: =SUM(B13:E13) -> 7500 | G13: =SUM(G12) -> 1
A15: For 17-33 riders 2 places
A16: Placings | B16: 1D | C16: 2D | D16: 3D | E16: 4D
A17: 1st | B17: =$B$7*$G$17 -> 1509 | C17: =$C$7*$G$17 -> 1317 | D17: =$D$7*$G$17 -> 933 | E17: =$E$7*$G$17 -> 741 | F17: è | G17: 0.6
A18: 2nd | B18: =$B$7*$G$18 -> 1006 | C18: =$C$7*$G$18 -> 878 | D18: =$D$7*$G$18 -> 622 | E18: =$E$7*$G$18 -> 494 | F18: è | G18: 0.4
A19: Totals | B19: =SUM(B17:B18) -> 2515 | C19: =SUM(C17:C18) -> 2195 | D19: =SUM(D17:D18) -> 1555 | E19: =SUM(E17:E18) -> 1235 | F19: =SUM(B19:E19) -> 7500 | G19: =SUM(G17:G18) -> 1
A21: For 34-66 riders 3 places
A22: Placings | B22: 1D | C22: 2D | D22: 3D | E22: 4D
A23: 1st | B23: =$B$7*$G$23 -> 1257.5 | C23: =$C$7*$G$23 -> 1097.5 | D23: =$D$7*$G$23 -> 777.5 | E23: =$E$7*$G$23 -> 617.5 | F23: è | G23: 0.5
A24: 2nd | B24: =$B$7*$G$24 -> 754.5 | C24: =$C$7*$G$24 -> 658.5 | D24: =$D$7*$G$24 -> 466.5 | E24: =$E$7*$G$24 -> 370.5 | F24: è | G24: 0.3
A25: 3rd | B25: =$B$7*$G$25 -> 503 | C25: =$C$7*$G$25 -> 439 | D25: =$D$7*$G$25 -> 311 | E25: =$E$7*$G$25 -> 247 | F25: è | G25: 0.2
A26: Totals | B26: =SUM(B23:B25) -> 2515 | C26: =SUM(C23:C25) -> 2195 | D26: =SUM(D23:D25) -> 1555 | E26: =SUM(E23:E25) -> 1235 | F26: =SUM(B26:E26) -> 7500 | G26: =SUM(G23:G25) -> 1
A28: For 97-95 riders 4 places
A29: Placings | B29: 1D | C29: 2D | D29: 3D | E29: 4D
A30: 1st | B30: =$B$7*$G$30 -> 1006 | C30: =$C$7*$G$30 -> 878 | D30: =$D$7*$G$30 -> 622 | E30: =$E$7*$G$30 -> 494 | F30: è | G30: 0.4
A31: 2nd | B31: =$B$7*$G$31 -> 754.5 | C31: =$C$7*$G$31 -> 658.5 | D31: =$D$7*$G$31 -> 466.5 | E31: =$E$7*$G$31 -> 370.5 | F31: è | G31: 0.3
A32: 3rd | B32: =$B$7*$G$32 -> 503 | C32: =$C$7*$G$32 -> 439 | D32: =$D$7*$G$32 -> 311 | E32: =$E$7*$G$32 -> 247 | F32: è | G32: 0.2
A33: 4th | B33: =$B$7*$G$33 -> 251.5 | C33: =$C$7*$G$33 -> 219.5 | D33: =$D$7*$G$33 -> 155.5 | E33: =$E$7*$G$33 -> 123.5 | F33: è | G33: 0.1
A34: Totals | B34: =SUM(B30:B33) -> 2515 | C34: =SUM(C30:C33) -> 2195 | D34: =SUM(D30:D33) -> 1555 | E34: =SUM(E30:E33) -> 1235 | F34: =SUM(B34:E34) -> 7500 | G34: =SUM(G30:G33) -> 1
A36: For 96-133 riders 5 places
A37: Placings | B37: 1D | C37: 2D | D37: 3D | E37: 4D
A38: 1st | B38: =$B$7*$G$38 -> 829.95 | C38: =$C$7*$G$38 -> 724.35 | D38: =$D$7*G38 -> 513.15 | E38: =$E$7*$G$38 -> 407.55 | F38: è | G38: 0.33
A39: 2nd | B39: =$B$7*$G$39 -> 679.05 | C39: =$C$7*$G$39 -> 592.65 | D39: =$D$7*$G$39 -> 419.85 | E39: =$E$7*$G$39 -> 333.45 | F39: è | G39: 0.27
A40: 3rd | B40: =$B$7*$G$40 -> 503 | C40: =$C$7*$G$40 -> 439 | D40: =$D$7*$G$40 -> 311 | E40: =$E$7*$G$40 -> 247 | F40: è | G40: 0.2
A41: 4th | B41: =$B$7*$G$41 -> 326.95 | C41: =$C$7*$G$41 -> 285.35 | D41: =$D$7*$G$41 -> 202.15 | E41: =$E$7*$G$41 -> 160.55 | F41: è | G41: 0.13
A42: 5th | B42: =$B$7*$G$42 -> 176.05 | C42: =$C$7*$G$42 -> 153.65 | D42: =$D$7*$G$42 -> 108.85 | E42: =$E$7*$G$42 -> 86.45 | F42: è | G42: 0.07
A43: Totals | B43: =SUM(B38:B42) -> 2515 | C43: =SUM(C38:C42) -> 2195 | D43: =SUM(D38:D42) -> 1555 | E43: =SUM(E38:E42) -> 1235 | F43: =SUM(B43:E43) -> 7500 | G43: =SUM(G38:G42) -> 1
A45: For 134-166 riders 6 places
A46: Placings | B46: 1D | C46: 2D | D46: 3D | E46: 4D
A47: 1st | B47: =$B$7*$G$47 -> 729.35 | C47: =$C$7*$G$47 -> 636.55 | D47: =$D$7*$G$47 -> 450.95 | E47: =$E$7*$G$47 -> 358.15 | F47: è | G47: 0.29
A48: 2nd | B48: =$B$7*$G$48 -> 603.6 | C48: =$C$7*$G$48 -> 526.8 | D48: =$D$7*$G$48 -> 373.2 | E48: =$E$7*$G$48 -> 296.4 | F48: è | G48: 0.24
A49: 3rd | B49: =$B$7*$G$49 -> 477.85 | C49: =$C$7*$G$49 -> 417.05 | D49: =$D$7*$G$49 -> 295.45 | E49: =$E$7*$G$49 -> 234.65 | F49: è | G49: 0.19
A50: 4th | B50: =$B$7*$G$50 -> 352.1 | C50: =$C$7*$G$50 -> 307.3 | D50: =$D$7*$G$50 -> 217.7 | E50: =$E$7*$G$50 -> 172.9 | F50: è | G50: 0.14
A51: 5th | B51: =$B$7*$G$51 -> 226.35 | C51: =$C$7*$G$51 -> 197.55 | D51: =$D$7*$G$51 -> 139.95 | E51: =$E$7*$G$51 -> 111.15 | F51: è | G51: 0.09
A52: 6th | B52: =$B$7*$G$52 -> 125.75 | C52: =$C$7*$G$52 -> 109.75 | D52: =$D$7*$G$52 -> 77.75 | E52: =$E$7*$G$52 -> 61.75 | F52: è | G52: 0.05
A53: Totals | B53: =SUM(B47:B52) -> 2515 | C53: =SUM(C47:C52) -> 2195 | D53: =SUM(D47:D52) -> 1555 | E53: =SUM(E47:E52) -> 1235 | F53: =SUM(B53:E53) -> 7500 | G53: =SUM(G47:G52) -> 1
A55: For 167-222 riders 8 places
A56: Placings | B56: 1D | C56: 2D | D56: 3D | E56: 4D
A57: 1st | B57: =$B$7*$G$57 -> 603.6 | C57: =$C$7*$G$57 -> 526.8 | D57: =$D$7*$G$57 -> 373.2 | E57: =$E$7*$G$57 -> 296.4 | F57: è | G57: 0.24
A58: 2nd | B58: =$B$7*$G$58 -> 503 | C58: =$C$7*$G$58 -> 439 | D58: =$D$7*$G$58 -> 311 | E58: =$E$7*$G$58 -> 247 | F58: è | G58: 0.2
A59: 3rd | B59: =$B$7*$G$59 -> 427.55 | C59: =$C$7*$G$59 -> 373.15 | D59: =$D$7*$G$59 -> 264.35 | E59: =$E$7*$G$59 -> 209.95 | F59: è | G59: 0.17
A60: 4th | B60: =$B$7*$G$60 -> 326.95 | C60: =$C$7*$G$60 -> 285.35 | D60: =$D$7*$G$60 -> 202.15 | E60: =$E$7*$G$60 -> 160.55 | F60: è | G60: 0.13
A61: 5th | B61: =$B$7*$G$61 -> 251.5 | C61: =$C$7*$G$61 -> 219.5 | D61: =$D$7*$G$61 -> 155.5 | E61: =$E$7*$G$61 -> 123.5 | F61: è | G61: 0.1
A62: 6th | B62: =$B$7*$G$62 -> 176.05 | C62: =$C$7*$G$62 -> 153.65 | D62: =$D$7*$G$62 -> 108.85 | E62: =$E$7*$G$62 -> 86.45 | F62: è | G62: 0.07
A63: 7th | B63: =$B$7*$G$63 -> 125.75 | C63: =$C$7*$G$63 -> 109.75 | D63: =$D$7*$G$63 -> 77.75 | E63: =$E$7*$G$63 -> 61.75 | F63: è | G63: 0.05
A64: 8th | B64: =$B$7*$G$64 -> 100.6 | C64: =$C$7*$G$64 -> 87.8 | D64: =$D$7*$G$64 -> 62.2 | E64: =$E$7*$G$64 -> 49.4 | F64: è | G64: 0.04
A65: Totals | B65: =SUM(B57:B64) -> 2515 | C65: =SUM(C57:C64) -> 2195 | D65: =SUM(D57:D64) -> 1555 | E65: =SUM(E57:E64) -> 1235 | F65: =SUM(B65:E65) -> 7500 | G65: =SUM(G57:G64) -> 1
A67: For 223-333 riders 10 places
A68: Placings | B68: 1D | C68: 2D | D68: 3D | E68: 4D
A69: 1st | B69: =$B$7*$G$69 -> 528.15 | C69: =$C$7*$G$69 -> 460.95 | D69: =$D$7*$G$69 -> 326.55 | E69: =$E$7*$G$69 -> 259.35 | F69: è | G69: 0.21
A70: 2nd | B70: =$B$7*$G$70 -> 452.7 | C70: =$C$7*$G$70 -> 395.1 | D70: =$D$7*$G$70 -> 279.9 | E70: =$E$7*$G$70 -> 222.3 | F70: è | G70: 0.18
A71: 3rd | B71: =$B$7*$G$71 -> 377.25 | C71: =$C$7*$G$71 -> 329.25 | D71: =$D$7*$G$71 -> 233.25 | E71: =$E$7*$G$71 -> 185.25 | F71: è | G71: 0.15
A72: 4th | B72: =$B$7*$G$72 -> 301.8 | C72: =$C$7*$G$72 -> 263.4 | D72: =$D$7*$G$72 -> 186.6 | E72: =$E$7*$G$72 -> 148.2 | F72: è | G72: 0.12
A73: 5th | B73: =$B$7*$G$73 -> 226.35 | C73: =$C$7*$G$73 -> 197.55 | D73: =$D$7*$G$73 -> 139.95 | E73: =$E$7*$G$73 -> 111.15 | F73: è | G73: 0.09
A74: 6th | B74: =$B$7*$G$74 -> 176.05 | C74: =$C$7*$G$74 -> 153.65 | D74: =$D$7*$G$74 -> 108.85 | E74: =$E$7*$G$74 -> 86.45 | F74: è | G74: 0.07
A75: 7th | B75: =$B$7*$G$75 -> 150.9 | C75: =$C$7*$G$75 -> 131.7 | D75: =$D$7*$G$75 -> 93.3 | E75: =$E$7*$G$75 -> 74.1 | F75: è | G75: 0.06
A76: 8th | B76: =$B$7*$G$76 -> 125.75 | C76: =$C$7*$G$76 -> 109.75 | D76: =$D$7*$G$76 -> 77.75 | E76: =$E$7*$G$76 -> 61.75 | F76: è | G76: 0.05
A77: 9th | B77: =$B$7*$G$77 -> 100.6 | C77: =$C$7*$G$77 -> 87.8 | D77: =$D$7*$G$77 -> 62.2 | E77: =$E$7*$G$77 -> 49.4 | F77: è | G77: 0.04
A78: 10th | B78: =$B$7*$G$78 -> 75.45 | C78: =$C$7*$G$78 -> 65.85 | D78: =$D$7*$G$78 -> 46.65 | E78: =$E$7*$G$78 -> 37.05 | F78: è | G78: 0.03
A79: Totals | B79: =SUM(B69:B78) -> 2515 | C79: =SUM(C69:C78) -> 2195 | D79: =SUM(D69:D78) -> 1555 | E79: =SUM(E69:E78) -> 1235 | F79: =B79+C79+D79+E79 -> 7500 | G79: =SUM(G69:G78) -> 1
A81: For 334-500 riders 12 places
A82: Placings | B82: 1D | C82: 2D | D82: 3D | E82: 4D
A83: 1st | B83: =$B$7*$G$83 -> 477.85 | C83: =$C$7*$G$83 -> 417.05 | D83: =$D$7*$G$83 -> 295.45 | E83: =$E$7*$G$83 -> 234.65 | F83: è | G83: 0.19
A84: 2nd | B84: =$B$7*$G$84 -> 377.25 | C84: =$C$7*$G$84 -> 329.25 | D84: =$D$7*$G$84 -> 233.25 | E84: =$E$7*$G$84 -> 185.25 | F84: è | G84: 0.15
A85: 3rd | B85: =$B$7*$G$85 -> 301.8 | C85: =$C$7*$G$85 -> 263.4 | D85: =$D$7*$G$85 -> 186.6 | E85: =$E$7*$G$85 -> 148.2 | F85: è | G85: 0.12
A86: 4th | B86: =$B$7*$G$86 -> 251.5 | C86: =$C$7*$G$86 -> 219.5 | D86: =$D$7*$G$86 -> 155.5 | E86: =$E$7*$G$86 -> 123.5 | F86: è | G86: 0.1
A87: 5th | B87: =$B$7*$G$87 -> 226.35 | C87: =$C$7*$G$87 -> 197.55 | D87: =$D$7*$G$87 -> 139.95 | E87: =$E$7*$G$87 -> 111.15 | F87: è | G87: 0.09
A88: 6th | B88: =$B$7*$G$88 -> 201.2 | C88: =$C$7*$G$88 -> 175.6 | D88: =$D$7*$G$88 -> 124.4 | E88: =$E$7*$G$88 -> 98.8 | F88: è | G88: 0.08
A89: 7th | B89: =$B$7*$G$89 -> 176.05 | C89: =$C$7*$G$89 -> 153.65 | D89: =$D$7*$G$89 -> 108.85 | E89: =$E$7*$G$89 -> 86.45 | F89: è | G89: 0.07
A90: 8th | B90: =$B$7*$G$90 -> 150.9 | C90: =$C$7*$G$90 -> 131.7 | D90: =$D$7*$G$90 -> 93.3 | E90: =$E$7*$G$90 -> 74.1 | F90: è | G90: 0.06
A91: 9th | B91: =$B$7*$G$91 -> 125.75 | C91: =$C$7*$G$91 -> 109.75 | D91: =$D$7*$G$91 -> 77.75 | E91: =$E$7*$G$91 -> 61.75 | F91: è | G91: 0.05
A92: 10th | B92: =$B$7*$G$92 -> 100.6 | C92: =$C$7*$G$92 -> 87.8 | D92: =$D$7*$G$92 -> 62.2 | E92: =$E$7*$G$92 -> 49.4 | F92: è | G92: 0.04
A93: 11th | B93: =$B$7*$G$93 -> 75.45 | C93: =$C$7*$G$93 -> 65.85 | D93: =$D$7*$G$93 -> 46.65 | E93: =$E$7*$G$93 -> 37.05 | F93: è | G93: 0.03
A94: 12th | B94: =$B$7*$G$94 -> 50.3 | C94: =$C$7*$G$94 -> 43.9 | D94: =$D$7*$G$94 -> 31.1 | E94: =$E$7*$G$94 -> 24.7 | F94: è | G94: 0.02
A95: Totals | B95: =SUM(B83:B94) -> 2515 | C95: =SUM(C83:C94) -> 2195 | D95: 1555 | E95: 1235 | F95: =B95+C95+D95+E95 -> 7500 | G95: =SUM(G83:G94) -> 1
A97: For 501-750 riders 15 places
A98: Placings | B98: 1D | C98: 2D | D98: 3D | E98: 4D
A99: 1st | B99: =$B$7*$G$99 -> 452.7 | C99: =$C$7*$G$99 -> 395.1 | D99: =$D$7*$G$99 -> 279.9 | E99: =$E$7*$G$99 -> 222.3 | F99: è | G99: 0.18
A100: 2nd | B100: =$B$7*$G$100 -> 377.25 | C100: =$C$7*$G$100 -> 329.25 | D100: =$D$7*$G$100 -> 233.25 | E100: =$E$7*$G$100 -> 185.25 | F100: è | G100: 0.15
A101: 3rd | B101: =$B$7*$G$101 -> 301.8 | C101: =$C$7*$G$101 -> 263.4 | D101: =$D$7*$G$101 -> 186.6 | E101: =$E$7*$G$101 -> 148.2 | F101: è | G101: 0.12
A102: 4th | B102: =$B$7*$G$102 -> 251.5 | C102: =$C$7*$G$102 -> 219.5 | D102: =$D$7*$G$102 -> 155.5 | E102: =$E$7*$G$102 -> 123.5 | F102: è | G102: 0.1
A103: 5th | B103: =$B$7*$G$103 -> 213.775 | C103: =$C$7*$G$103 -> 186.575 | D103: =$D$7*$G$103 -> 132.175 | E103: =$E$7*$G$103 -> 104.975 | F103: è | G103: 0.085
A104: 6th | B104: =$B$7*$G$104 -> 176.05 | C104: =$C$7*$G$104 -> 153.65 | D104: =$D$7*$G$104 -> 108.85 | E104: =$E$7*$G$104 -> 86.45 | F104: è | G104: 0.07
A105: 7th | B105: =$B$7*$G$105 -> 150.9 | C105: =$C$7*$G$105 -> 131.7 | D105: =$D$7*$G$105 -> 93.3 | E105: =$E$7*$G$105 -> 74.1 | F105: è | G105: 0.06
A106: 8th | B106: =$B$7*$G$106 -> 125.75 | C106: =$C$7*$G$106 -> 109.75 | D106: =$D$7*$G$106 -> 77.75 | E106: =$E$7*$G$106 -> 61.75 | F106: è | G106: 0.05
A107: 9th | B107: =$B$7*$G$107 -> 106.8875 | C107: =$C$7*$G$107 -> 93.2875 | D107: =$D$7*$G$107 -> 66.0875 | E107: =$E$7*$G$107 -> 52.4875 | F107: è | G107: 0.0425
A108: 10th | B108: =$B$7*$G$108 -> 88.025 | C108: =$C$7*$G$108 -> 76.825 | D108: =$D$7*$G$108 -> 54.425 | E108: =$E$7*$G$108 -> 43.225 | F108: è | G108: 0.035
A109: 11th | B109: =$B$7*$G$109 -> 75.45 | C109: =$C$7*$G$109 -> 65.85 | D109: =$D$7*$G$109 -> 46.65 | E109: =$E$7*$G$109 -> 37.05 | F109: è | G109: 0.03
A110: 12th | B110: =$B$7*$G$110 -> 62.875 | C110: =$C$7*$G$110 -> 54.875 | D110: =$D$7*$G$110 -> 38.875 | E110: =$E$7*$G$110 -> 30.875 | F110: è | G110: 0.025
A111: 13th | B111: =$B$7*$G$111 -> 50.3 | C111: =$C$7*$G$111 -> 43.9 | D111: =$D$7*$G$111 -> 31.1 | E111: =$E$7*$G$111 -> 24.7 | F111: è | G111: 0.02
A112: 14th | B112: =$B$7*$G$112 -> 44.0125 | C112: =$C$7*$G$112 -> 38.4125 | D112: =$D$7*$G$112 -> 27.2125 | E112: =$E$7*$G$112 -> 21.6125 | F112: è | G112: 0.0175
A113: 15th | B113: =$B$7*$G$113 -> 37.725 | C113: =$C$7*$G$113 -> 32.925 | D113: =$D$7*$G$113 -> 23.325 | E113: =$E$7*$G$113 -> 18.525 | F113: è | G113: 0.015
A114: Totals | B114: =SUM(B99:B113) -> 2515 | C114: =SUM(C99:C113) -> 2195 | D114: 1555 | E114: 1235 | F114: =B114+C114+D114+E114 -> 7500 | G114: =SUM(G99:G113) -> 1
A116: For 751-1200 riders 20 places
A117: Placings | B117: 1D | C117: 2D | D117: 3D | E117: 4D
A118: 1st | B118: =$B$7*$G$118 -> 352.1 | C118: =$C$7*$G$118 -> 307.3 | D118: =$D$7*$G$118 -> 217.7 | E118: =$E$7*$G$118 -> 172.9 | F118: è | G118: 0.14
A119: 2nd | B119: =$B$7*$G$119 -> 276.65 | C119: =$C$7*$G$119 -> 241.45 | D119: =$D$7*$G$119 -> 171.05 | E119: =$E$7*$G$119 -> 135.85 | F119: è | G119: 0.11
A120: 3rd | B120: =$B$7*$G$120 -> 226.35 | C120: =$C$7*$G$120 -> 197.55 | D120: =$D$7*$G$120 -> 139.95 | E120: =$E$7*$G$120 -> 111.15 | F120: è | G120: 0.09
A121: 4th | B121: =$B$7*$G$121 -> 193.655 | C121: =$C$7*$G$121 -> 169.015 | D121: =$D$7*$G$121 -> 119.735 | E121: =$E$7*$G$121 -> 95.095 | F121: è | G121: 0.077
A122: 5th | B122: =$B$7*$G$122 -> 176.05 | C122: =$C$7*$G$122 -> 153.65 | D122: =$D$7*$G$122 -> 108.85 | E122: =$E$7*$G$122 -> 86.45 | F122: è | G122: 0.07
A123: 6th | B123: =$B$7*$G$123 -> 163.475 | C123: =$C$7*$G$123 -> 142.675 | D123: =$D$7*$G$123 -> 101.075 | E123: =$E$7*$G$123 -> 80.275 | F123: è | G123: 0.065
A124: 7th | B124: =$B$7*$G$124 -> 150.9 | C124: =$C$7*$G$124 -> 131.7 | D124: =$D$7*$G$124 -> 93.3 | E124: =$E$7*$G$124 -> 74.1 | F124: è | G124: 0.06
A125: 8th | B125: =$B$7*$G$125 -> 138.325 | C125: =$C$7*$G$125 -> 120.725 | D125: =$D$7*$G$125 -> 85.525 | E125: =$E$7*$G$125 -> 67.925 | F125: è | G125: 0.055
A126: 9th | B126: =$B$7*$G$126 -> 125.75 | C126: =$C$7*$G$126 -> 109.75 | D126: =$D$7*$G$126 -> 77.75 | E126: =$E$7*$G$126 -> 61.75 | F126: è | G126: 0.05
A127: 10th | B127: =$B$7*$G$127 -> 113.175 | C127: =$C$7*$G$127 -> 98.775 | D127: =$D$7*$G$127 -> 69.975 | E127: =$E$7*$G$127 -> 55.575 | F127: è | G127: 0.045
A128: 11th | B128: =$B$7*$G$128 -> 100.6 | C128: =$C$7*$G$128 -> 87.8 | D128: =$D$7*$G$128 -> 62.2 | E128: =$E$7*$G$128 -> 49.4 | F128: è | G128: 0.04
A129: 12th | B129: =$B$7*$G$129 -> 93.055 | C129: =$C$7*$G$129 -> 81.215 | D129: =$D$7*$G$129 -> 57.535 | E129: =$E$7*$G$129 -> 45.695 | F129: è | G129: 0.037
A130: 13th | B130: =$B$7*$G$130 -> 82.995 | C130: =$C$7*$G$130 -> 72.435 | D130: =$D$7*$G$130 -> 51.315 | E130: =$E$7*$G$130 -> 40.755 | F130: è | G130: 0.033
A131: 14th | B131: =$B$7*$G$131 -> 72.935 | C131: =$C$7*$G$131 -> 63.655 | D131: =$D$7*$G$131 -> 45.095 | E131: =$E$7*$G$131 -> 35.815 | F131: è | G131: 0.029
A132: 15th | B132: =$B$7*$G$132 -> 62.875 | C132: =$C$7*$G$132 -> 54.875 | D132: =$D$7*$G$132 -> 38.875 | E132: =$E$7*$G$132 -> 30.875 | F132: è | G132: 0.025
A133: 16th | B133: =$B$7*$G$133 -> 52.815 | C133: =$C$7*$G$133 -> 46.095 | D133: =$D$7*$G$133 -> 32.655 | E133: =$E$7*$G$133 -> 25.935 | F133: è | G133: 0.021
A134: 17th | B134: =$B$7*$G$134 -> 42.755 | C134: =$C$7*$G$134 -> 37.315 | D134: =$D$7*$G$134 -> 26.435 | E134: =$E$7*$G$134 -> 20.995 | F134: è | G134: 0.017
A135: 18th | B135: =$B$7*$G$135 -> 35.21 | C135: =$C$7*$G$135 -> 30.73 | D135: =$D$7*$G$135 -> 21.77 | E135: =$E$7*$G$135 -> 17.29 | F135: è | G135: 0.014
A136: 19th | B136: =$B$7*$G$136 -> 30.18 | C136: =$C$7*$G$136 -> 26.34 | D136: =$D$7*$G$136 -> 18.66 | E136: =$E$7*$G$136 -> 14.82 | F136: è | G136: 0.012
A137: 20th | B137: =$B$7*$G$137 -> 25.15 | C137: =$C$7*$G$137 -> 21.95 | D137: =$D$7*$G$137 -> 15.55 | E137: =$E$7*$G$137 -> 12.35 | F137: è | G137: 0.01
A138: Totals | B138: =SUM(B118:B137) -> 2515 | C138: =SUM(C118:C137) -> 2195 | D138: 1555 | E138: 1235 | F138: =B138+C138+D138+E138 -> 7500 | G138: =SUM(G118:G137) -> 1
A140: For 1201 or More riders 30 places
A141: Placings | B141: 1D | C141: 2D | D141: 3D | E141: 4D
A142: 1st | B142: =$B$7*$G$142 -> 301.8 | C142: =$C$7*$G$142 -> 263.4 | D142: =$D$7*$G$142 -> 186.6 | E142: =$E$7*$G$142 -> 148.2 | F142: è | G142: 0.12
A143: 2nd | B143: =$B$7*$G$143 -> 238.925 | C143: =$C$7*$G$143 -> 208.525 | D143: =$D$7*$G$143 -> 147.725 | E143: =$E$7*$G$143 -> 117.325 | F143: è | G143: 0.095
A144: 3rd | B144: =$B$7*$G$144 -> 183.595 | C144: =$C$7*$G$144 -> 160.235 | D144: =$D$7*$G$144 -> 113.515 | E144: =$E$7*$G$144 -> 90.155 | F144: è | G144: 0.073
A145: 4th | B145: =$B$7*$G$145 -> 155.93 | C145: =$C$7*$G$145 -> 136.09 | D145: =$D$7*$G$145 -> 96.41 | E145: =$E$7*$G$145 -> 76.57 | F145: è | G145: 0.062
A146: 5th | B146: =$B$7*$G$146 -> 125.75 | C146: =$C$7*$G$146 -> 109.75 | D146: =$D$7*$G$146 -> 77.75 | E146: =$E$7*$G$146 -> 61.75 | F146: è | G146: 0.05
A147: 6th | B147: =$B$7*$G$147 -> 113.175 | C147: =$C$7*$G$147 -> 98.775 | D147: =$D$7*$G$147 -> 69.975 | E147: =$E$7*$G$147 -> 55.575 | F147: è | G147: 0.045
A148: 7th | B148: =$B$7*$G$148 -> 108.145 | C148: =$C$7*$G$148 -> 94.385 | D148: =$D$7*$G$148 -> 66.865 | E148: =$E$7*$G$148 -> 53.105 | F148: è | G148: 0.043
A149: 8th | B149: =$B$7*$G$149 -> 100.6 | C149: =$C$7*$G$149 -> 87.8 | D149: =$D$7*$G$149 -> 62.2 | E149: =$E$7*$G$149 -> 49.4 | F149: è | G149: 0.04
A150: 9th | B150: =$B$7*$G$150 -> 93.055 | C150: =$C$7*$G$150 -> 81.215 | D150: =$D$7*$G$150 -> 57.535 | E150: =$E$7*$G$150 -> 45.695 | F150: è | G150: 0.037
A151: 10th | B151: =$B$7*$G$151 -> 88.025 | C151: =$C$7*$G$151 -> 76.825 | D151: =$D$7*$G$151 -> 54.425 | E151: =$E$7*$G$151 -> 43.225 | F151: è | G151: 0.035
A152: 11th | B152: =$B$7*$G$152 -> 82.995 | C152: =$C$7*$G$152 -> 72.435 | D152: =$D$7*$G$152 -> 51.315 | E152: =$E$7*$G$152 -> 40.755 | F152: è | G152: 0.033
A153: 12th | B153: =$B$7*$G$153 -> 77.965 | C153: =$C$7*$G$153 -> 68.045 | D153: =$D$7*$G$153 -> 48.205 | E153: =$E$7*$G$153 -> 38.285 | F153: è | G153: 0.031
A154: 13th | B154: =$B$7*$G$154 -> 72.935 | C154: =$C$7*$G$154 -> 63.655 | D154: =$D$7*$G$154 -> 45.095 | E154: =$E$7*$G$154 -> 35.815 | F154: è | G154: 0.029
A155: 14th | B155: =$B$7*$G$155 -> 67.905 | C155: =$C$7*$G$155 -> 59.265 | D155: =$D$7*$G$155 -> 41.985 | E155: =$E$7*$G$155 -> 33.345 | F155: è | G155: 0.027
A156: 15th | B156: =$B$7*$G$156 -> 62.875 | C156: =$C$7*$G$156 -> 54.875 | D156: =$D$7*$G$156 -> 38.875 | E156: =$E$7*$G$156 -> 30.875 | F156: è | G156: 0.025
A157: 16th | B157: =$B$7*$G$157 -> 60.36 | C157: =$C$7*$G$157 -> 52.68 | D157: =$D$7*$G$157 -> 37.32 | E157: =$E$7*$G$157 -> 29.64 | F157: è | G157: 0.024
A158: 17th | B158: =$B$7*$G$158 -> 57.845 | C158: =$C$7*$G$158 -> 50.485 | D158: =$D$7*$G$158 -> 35.765 | E158: =$E$7*$G$158 -> 28.405 | F158: è | G158: 0.023
A159: 18th | B159: =$B$7*$G$159 -> 55.33 | C159: =$C$7*$G$159 -> 48.29 | D159: =$D$7*$G$159 -> 34.21 | E159: =$E$7*$G$159 -> 27.17 | F159: è | G159: 0.022
A160: 19th | B160: =$B$7*$G$160 -> 52.815 | C160: =$C$7*$G$160 -> 46.095 | D160: =$D$7*$G$160 -> 32.655 | E160: =$E$7*$G$160 -> 25.935 | F160: è | G160: 0.021
A161: 20th | B161: =$B$7*$G$161 -> 50.3 | C161: =$C$7*$G$161 -> 43.9 | D161: =$D$7*$G$161 -> 31.1 | E161: =$E$7*$G$161 -> 24.7 | F161: è | G161: 0.02
A162: 21st | B162: =$B$7*$G$162 -> 47.785 | C162: =$C$7*$G$162 -> 41.705 | D162: =$D$7*$G$162 -> 29.545 | E162: =$E$7*$G$162 -> 23.465 | F162: è | G162: 0.019
A163: 22nd | B163: =$B$7*$G$163 -> 45.27 | C163: =$C$7*$G$163 -> 39.51 | D163: =$D$7*$G$163 -> 27.99 | E163: =$E$7*$G$163 -> 22.23 | F163: è | G163: 0.018
A164: 23rd | B164: =$B$7*$G$164 -> 42.755 | C164: =$C$7*$G$164 -> 37.315 | D164: =$D$7*$G$164 -> 26.435 | E164: =$E$7*$G$164 -> 20.995 | F164: è | G164: 0.017
A165: 24th | B165: =$B$7*$G$165 -> 40.24 | C165: =$C$7*$G$165 -> 35.12 | D165: =$D$7*$G$165 -> 24.88 | E165: =$E$7*$G$165 -> 19.76 | F165: è | G165: 0.016
A166: 25th | B166: =$B$7*$G$166 -> 37.725 | C166: =$C$7*$G$166 -> 32.925 | D166: =$D$7*$G$166 -> 23.325 | E166: =$E$7*$G$166 -> 18.525 | F166: è | G166: 0.015
A167: 26th | B167: =$B$7*$G$167 -> 35.21 | C167: =$C$7*$G$167 -> 30.73 | D167: =$D$7*$G$167 -> 21.77 | E167: =$E$7*$G$167 -> 17.29 | F167: è | G167: 0.014
A168: 27th | B168: =$B$7*$G$168 -> 32.695 | C168: =$C$7*$G$168 -> 28.535 | D168: =$D$7*$G$168 -> 20.215 | E168: =$E$7*$G$168 -> 16.055 | F168: è | G168: 0.013
A169: 28th | B169: =$B$7*$G$169 -> 30.18 | C169: =$C$7*$G$169 -> 26.34 | D169: =$D$7*$G$169 -> 18.66 | E169: =$E$7*$G$169 -> 14.82 | F169: è | G169: 0.012
A170: 29th | B170: =$B$7*$G$170 -> 27.665 | C170: =$C$7*$G$170 -> 24.145 | D170: =$D$7*$G$170 -> 17.105 | E170: =$E$7*$G$170 -> 13.585 | F170: è | G170: 0.011
A171: 30th | B171: =$B$7*$G$171 -> 25.15 | C171: =$C$7*$G$171 -> 21.95 | D171: =$D$7*$G$171 -> 15.55 | E171: =$E$7*$G$171 -> 12.35 | F171: è | G171: 0.01
A172: Totals | B172: =SUM(B142:B171) -> 2515 | C172: =SUM(C142:C171) -> 2195 | D172: =SUM(D142:D171) -> 1555 | E172: =SUM(E142:E171) -> 1235 | F172: =B172+C172+D172+E172 -> 7500 | G172: =SUM(G142:G171) -> 1

Sheet 5D Payout BBR
A1: 5D Payout BBR
A2: Entry Fee | B2: # Entries | C2: % Payback | D2: $ From Entry | E2: Added $ | F2: Total Payout | G2: Total $ Held
A3: 100 | B3: 33 | C3: 0.8 | D3: =$A$3*$C$3*$B$3 -> 2640 | F3: =($A$3*$C$3)*$B$3+$E$3 -> 2640 | G3: =$A$3*(100%-$C$3)*$B$3 -> 660
A5: % in each D | B5: 0.3 | C5: 0.25 | D5: 0.2 | E5: 0.15 | F5: 0.1 | G5: Total % Payout | H5: =SUM(B5:F5) -> 1
B6: 1D | C6: 2D | D6: 3D | E6: 4D | F6: 5D
B7: =(($A$3*$B$3*$C$3*$B$5)+($E$3*$B$5)) -> 792 | C7: =(($A$3*$B$3*$C$3*$C$5)+($E$3*$C$5)) -> 660 | D7: =(($A$3*$B$3*$C$3*$D$5)+($E$3*$D$5)) -> 528 | E7: =(($A$3*$B$3*$C$3*$E$5)+($E$3*$E$5)) -> 396 | F7: =(($A$3*$B$3*$C$3*$F$5)+($E$3*$F$5)) -> 264
A8: Totals | B8: =SUM(B7) -> 792 | C8: =SUM(C7) -> 660 | D8: 528 | E8: 396 | F8: 264 | G8: =SUM(B8:F8) -> 2640
A10: For 1-25 riders 1 place
A11: Placings | B11: 1D | C11: 2D | D11: 3D | E11: 4D | F11: 5D
A12: 1st | B12: =$B$7*$H$12 -> 792 | C12: =$C$7*$H$12 -> 660 | D12: =$D$7*$H$12 -> 528 | E12: =$E$7*$H$12 -> 396 | F12: =$F$7*$H$12 -> 264 | G12: è | H12: 1
A13: Totals | B13: =SUM(B12:B12) -> 792 | C13: =SUM(C12:C12) -> 660 | D13: =SUM(D12:D12) -> 528 | E13: =SUM(E12:E12) -> 396 | F13: =SUM(F12) -> 264 | G13: =SUM(B13:F13) -> 2640 | H13: =SUM(H12) -> 1
A15: For 26-50 riders 2 places
A16: Placings | B16: 1D | C16: 2D | D16: 3D | E16: 4D | F16: 5D
A17: 1st | B17: =$B$7*$H$17 -> 475.2 | C17: =$C$7*$H$17 -> 396 | D17: =$D$7*$H$17 -> 316.8 | E17: =$E$7*$H$17 -> 237.6 | F17: =$F$7*$H$17 -> 158.4 | G17: è | H17: 0.6
A18: 2nd | B18: =$B$7*$H$18 -> 316.8 | C18: =$C$7*$H$18 -> 264 | D18: =$D$7*$H$18 -> 211.2 | E18: =$E$7*$H$18 -> 158.4 | F18: =$F$7*$H$18 -> 105.6 | G18: è | H18: 0.4
A19: Totals | B19: =SUM(B17:B18) -> 792 | C19: =SUM(C17:C18) -> 660 | D19: =SUM(D17:D18) -> 528 | E19: =SUM(E17:E18) -> 396 | F19: =SUM(F17:F18) -> 264 | G19: =SUM(B19:F19) -> 2640 | H19: =SUM(H17:H18) -> 1
A21: For 51-100 riders 3 places
A22: Placings | B22: 1D | C22: 2D | D22: 3D | E22: 4D | F22: 5D
A23: 1st | B23: =$B$7*$H$23 -> 396 | C23: =$C$7*$H$23 -> 330 | D23: =$D$7*$H$23 -> 264 | E23: =$E$7*$H$23 -> 198 | F23: =$F$7*$H$23 -> 132 | G23: è | H23: 0.5
A24: 2nd | B24: =$B$7*$H$24 -> 237.6 | C24: =$C$7*$H$24 -> 198 | D24: =$D$7*$H$24 -> 158.4 | E24: =$E$7*$H$24 -> 118.8 | F24: =$F$7*$H$24 -> 79.2 | G24: è | H24: 0.3
A25: 3rd | B25: =$B$7*$H$25 -> 158.4 | C25: =$C$7*$H$25 -> 132 | D25: =$D$7*$H$25 -> 105.6 | E25: =$E$7*$H$25 -> 79.2 | F25: =$F$7*$H$25 -> 52.8 | G25: è | H25: 0.2
A26: Totals | B26: =SUM(B23:B25) -> 792 | C26: =SUM(C23:C25) -> 660 | D26: =SUM(D23:D25) -> 528 | E26: =SUM(E23:E25) -> 396 | F26: =SUM(F23:F25) -> 264 | G26: =SUM(B26:F26) -> 2640 | H26: =SUM(H23:H25) -> 1
A28: For 101-143 riders 4 places
A29: Placings | B29: 1D | C29: 2D | D29: 3D | E29: 4D | F29: 5D
A30: 1st | B30: =$B$7*$H$30 -> 316.8 | C30: =$C$7*$H$30 -> 264 | D30: =$D$7*$H$30 -> 211.2 | E30: =$E$7*$H$30 -> 158.4 | F30: =$F$7*$H$30 -> 105.6 | G30: è | H30: 0.4
A31: 2nd | B31: =$B$7*$H$31 -> 237.6 | C31: =$C$7*$H$31 -> 198 | D31: =$D$7*$H$31 -> 158.4 | E31: =$E$7*$H$31 -> 118.8 | F31: =$F$7*$H$31 -> 79.2 | G31: è | H31: 0.3
A32: 3rd | B32: =$B$7*$H$32 -> 158.4 | C32: =$C$7*$H$32 -> 132 | D32: =$D$7*$H$32 -> 105.6 | E32: =$E$7*$H$32 -> 79.2 | F32: =$F$7*$H$32 -> 52.8 | G32: è | H32: 0.2
A33: 4th | B33: =$B$7*$H$33 -> 79.2 | C33: =$C$7*$H$33 -> 66 | D33: =$D$7*$H$33 -> 52.8 | E33: =$E$7*$H$33 -> 39.6 | F33: =$F$7*$H$33 -> 26.4 | G33: è | H33: 0.1
A34: Totals | B34: =SUM(B30:B33) -> 792 | C34: =SUM(C30:C33) -> 660 | D34: =SUM(D30:D33) -> 528 | E34: =SUM(E30:E33) -> 396 | F34: =SUM(F30:F33) -> 264 | G34: =SUM(B34:F34) -> 2640 | H34: =SUM(H30:H33) -> 1
A36: For 144-200 riders 5 places
A37: Placings | B37: 1D | C37: 2D | D37: 3D | E37: 4D | F37: 5D
A38: 1st | B38: =$B$7*$H$38 -> 261.36 | C38: =$C$7*$H$38 -> 217.8 | D38: =$D$7*$H$38 -> 174.24 | E38: =$E$7*$H$38 -> 130.68 | F38: =$F$7*$H$38 -> 87.12 | G38: è | H38: 0.33
A39: 2nd | B39: =$B$7*$H$39 -> 213.84 | C39: =$C$7*$H$39 -> 178.2 | D39: =$D$7*$H$39 -> 142.56 | E39: =$E$7*$H$39 -> 106.92 | F39: =$F$7*$H$39 -> 71.28 | G39: è | H39: 0.27
A40: 3rd | B40: =$B$7*$H$40 -> 158.4 | C40: =$C$7*$H$40 -> 132 | D40: =$D$7*$H$40 -> 105.6 | E40: =$E$7*$H$40 -> 79.2 | F40: =$F$7*$H$40 -> 52.8 | G40: è | H40: 0.2
A41: 4th | B41: =$B$7*$H$41 -> 102.96 | C41: =$C$7*$H$41 -> 85.8 | D41: =$D$7*$H$41 -> 68.64 | E41: =$E$7*$H$41 -> 51.48 | F41: =$F$7*$H$41 -> 34.32 | G41: è | H41: 0.13
A42: 5th | B42: =$B$7*$H$42 -> 55.44 | C42: =$C$7*$H$42 -> 46.2 | D42: =$D$7*$H$42 -> 36.96 | E42: =$E$7*$H$42 -> 27.72 | F42: =$F$7*$H$42 -> 18.48 | G42: è | H42: 0.07
A43: Totals | B43: =SUM(B38:B42) -> 792 | C43: =SUM(C38:C42) -> 660 | D43: =SUM(D38:D42) -> 528 | E43: =SUM(E38:E42) -> 396 | F43: =SUM(F38:F42) -> 264 | G43: =SUM(B43:F43) -> 2640 | H43: =SUM(H38:H42) -> 1
A45: For 201-250 riders 6 places
A46: Placings | B46: 1D | C46: 2D | D46: 3D | E46: 4D | F46: 5D
A47: 1st | B47: =$B$7*$H$47 -> 229.68 | C47: =$C$7*$H$47 -> 191.4 | D47: =$D$7*$H$47 -> 153.12 | E47: =$E$7*$H$47 -> 114.84 | F47: =$F$7*$H$47 -> 76.56 | G47: è | H47: 0.29
A48: 2nd | B48: =$B$7*$H$48 -> 190.08 | C48: =$C$7*$H$48 -> 158.4 | D48: =$D$7*$H$48 -> 126.72 | E48: =$E$7*$H$48 -> 95.04 | F48: =$F$7*$H$48 -> 63.36 | G48: è | H48: 0.24
A49: 3rd | B49: =$B$7*$H$49 -> 150.48 | C49: =$C$7*$H$49 -> 125.4 | D49: =$D$7*$H$49 -> 100.32 | E49: =$E$7*$H$49 -> 75.24 | F49: =$F$7*$H$49 -> 50.16 | G49: è | H49: 0.19
A50: 4th | B50: =$B$7*$H$50 -> 110.88 | C50: =$C$7*$H$50 -> 92.4 | D50: =$D$7*$H$50 -> 73.92 | E50: =$E$7*$H$50 -> 55.44 | F50: =$F$7*$H$50 -> 36.96 | G50: è | H50: 0.14
A51: 5th | B51: =$B$7*$H$51 -> 71.28 | C51: =$C$7*$H$51 -> 59.4 | D51: =$D$7*$H$51 -> 47.52 | E51: =$E$7*$H$51 -> 35.64 | F51: =$F$7*$H$51 -> 23.76 | G51: è | H51: 0.09
A52: 6th | B52: =$B$7*$H$52 -> 39.6 | C52: =$C$7*$H$52 -> 33 | D52: =$D$7*$H$52 -> 26.4 | E52: =$E$7*$H$52 -> 19.8 | F52: =$F$7*$H$52 -> 13.2 | G52: è | H52: 0.05
A53: Totals | B53: =SUM(B47:B52) -> 792 | C53: =SUM(C47:C52) -> 660 | D53: =SUM(D47:D52) -> 528 | E53: =SUM(E47:E52) -> 396 | F53: =SUM(F47:F52) -> 264 | G53: =SUM(B53:F53) -> 2640 | H53: =SUM(H47:H52) -> 1
A55: For 251-333 riders 8 places
A56: Placings | B56: 1D | C56: 2D | D56: 3D | E56: 4D | F56: 5D
A57: 1st | B57: =$B$7*$H$57 -> 190.08 | C57: =$C$7*$H$57 -> 158.4 | D57: =$D$7*$H$57 -> 126.72 | E57: =$E$7*$H$57 -> 95.04 | F57: =$F$7*$H$57 -> 63.36 | G57: è | H57: 0.24
A58: 2nd | B58: =$B$7*$H$58 -> 158.4 | C58: =$C$7*$H$58 -> 132 | D58: =$D$7*$H$58 -> 105.6 | E58: =$E$7*$H$58 -> 79.2 | F58: =$F$7*$H$58 -> 52.8 | G58: è | H58: 0.2
A59: 3rd | B59: =$B$7*$H$59 -> 134.64 | C59: =$C$7*$H$59 -> 112.2 | D59: =$D$7*$H$59 -> 89.76 | E59: =$E$7*$H$59 -> 67.32 | F59: =$F$7*$H$59 -> 44.88 | G59: è | H59: 0.17
A60: 4th | B60: =$B$7*$H$60 -> 102.96 | C60: =$C$7*$H$60 -> 85.8 | D60: =$D$7*$H$60 -> 68.64 | E60: =$E$7*$H$60 -> 51.48 | F60: =$F$7*$H$60 -> 34.32 | G60: è | H60: 0.13
A61: 5th | B61: =$B$7*$H$61 -> 79.2 | C61: =$C$7*$H$61 -> 66 | D61: =$D$7*$H$61 -> 52.8 | E61: =$E$7*$H$61 -> 39.6 | F61: =$F$7*$H$61 -> 26.4 | G61: è | H61: 0.1
A62: 6th | B62: =$B$7*$H$62 -> 55.44 | C62: =$C$7*$H$62 -> 46.2 | D62: =$D$7*$H$62 -> 36.96 | E62: =$E$7*$H$62 -> 27.72 | F62: =$F$7*$H$62 -> 18.48 | G62: è | H62: 0.07
A63: 7th | B63: =$B$7*$H$63 -> 39.6 | C63: =$C$7*$H$63 -> 33 | D63: =$D$7*$H$63 -> 26.4 | E63: =$E$7*$H$63 -> 19.8 | F63: =$F$7*$H$63 -> 13.2 | G63: è | H63: 0.05
A64: 8th | B64: =$B$7*$H$64 -> 31.68 | C64: =$C$7*$H$64 -> 26.4 | D64: =$D$7*$H$64 -> 21.12 | E64: =$E$7*$H$64 -> 15.84 | F64: =$F$7*$H$64 -> 10.56 | G64: è | H64: 0.04
A65: Totals | B65: =SUM(B57:B64) -> 792 | C65: =SUM(C57:C64) -> 660 | D65: =SUM(D57:D64) -> 528 | E65: =SUM(E57:E64) -> 396 | F65: =SUM(F57:F64) -> 264 | G65: =SUM(B65:F65) -> 2640 | H65: =SUM(H57:H64) -> 1
A67: For 334-500 riders 10 places
A68: Placings | B68: 1D | C68: 2D | D68: 3D | E68: 4D | F68: 5D
A69: 1st | B69: =$B$7*$H$69 -> 166.32 | C69: =$C$7*$H$69 -> 138.6 | D69: =$D$7*$H$69 -> 110.88 | E69: =$E$7*$H$69 -> 83.16 | F69: =$F$7*$H$69 -> 55.44 | G69: è | H69: 0.21
A70: 2nd | B70: =$B$7*$H$70 -> 142.56 | C70: =$C$7*$H$70 -> 118.8 | D70: =$D$7*$H$70 -> 95.04 | E70: =$E$7*$H$70 -> 71.28 | F70: =$F$7*$H$70 -> 47.52 | G70: è | H70: 0.18
A71: 3rd | B71: =$B$7*$H$71 -> 118.8 | C71: =$C$7*$H$71 -> 99 | D71: =$D$7*$H$71 -> 79.2 | E71: =$E$7*$H$71 -> 59.4 | F71: =$F$7*$H$71 -> 39.6 | G71: è | H71: 0.15
A72: 4th | B72: =$B$7*$H$72 -> 95.04 | C72: =$C$7*$H$72 -> 79.2 | D72: =$D$7*$H$72 -> 63.36 | E72: =$E$7*$H$72 -> 47.52 | F72: =$F$7*$H$72 -> 31.68 | G72: è | H72: 0.12
A73: 5th | B73: =$B$7*$H$73 -> 71.28 | C73: =$C$7*$H$73 -> 59.4 | D73: =$D$7*$H$73 -> 47.52 | E73: =$E$7*$H$73 -> 35.64 | F73: =$F$7*$H$73 -> 23.76 | G73: è | H73: 0.09
A74: 6th | B74: =$B$7*$H$74 -> 55.44 | C74: =$C$7*$H$74 -> 46.2 | D74: =$D$7*$H$74 -> 36.96 | E74: =$E$7*$H$74 -> 27.72 | F74: =$F$7*$H$74 -> 18.48 | G74: è | H74: 0.07
A75: 7th | B75: =$B$7*$H$75 -> 47.52 | C75: =$C$7*$H$75 -> 39.6 | D75: =$D$7*$H$75 -> 31.68 | E75: =$E$7*$H$75 -> 23.76 | F75: =$F$7*$H$75 -> 15.84 | G75: è | H75: 0.06
A76: 8th | B76: =$B$7*$H$76 -> 39.6 | C76: =$C$7*$H$76 -> 33 | D76: =$D$7*$H$76 -> 26.4 | E76: =$E$7*$H$76 -> 19.8 | F76: =$F$7*$H$76 -> 13.2 | G76: è | H76: 0.05
A77: 9th | B77: =$B$7*$H$77 -> 31.68 | C77: =$C$7*$H$77 -> 26.4 | D77: =$D$7*$H$77 -> 21.12 | E77: =$E$7*$H$77 -> 15.84 | F77: =$F$7*$H$77 -> 10.56 | G77: è | H77: 0.04
A78: 10th | B78: =$B$7*$H$78 -> 23.76 | C78: =$C$7*$H$78 -> 19.8 | D78: =$D$7*$H$78 -> 15.84 | E78: =$E$7*$H$78 -> 11.88 | F78: =$F$7*$H$78 -> 7.92 | G78: è | H78: 0.03
A79: Totals | B79: =SUM(B69:B78) -> 792 | C79: =SUM(C69:C78) -> 660 | D79: 528 | E79: 396 | F79: 264 | G79: =SUM(B79:F79) -> 2640 | H79: =SUM(H69:H78) -> 1
A81: For 501-666 riders 12 places
A82: Placings | B82: 1D | C82: 2D | D82: 3D | E82: 4D | F82: 5D
A83: 1st | B83: =$B$7*$H$83 -> 150.48 | C83: =$C$7*$H$83 -> 125.4 | D83: =$D$7*$H$83 -> 100.32 | E83: =$E$7*$H$83 -> 75.24 | F83: =$F$7*$H$83 -> 50.16 | G83: è | H83: 0.19
A84: 2nd | B84: =$B$7*$H$84 -> 118.8 | C84: =$C$7*$H$84 -> 99 | D84: =$D$7*$H$84 -> 79.2 | E84: =$E$7*$H$84 -> 59.4 | F84: =$F$7*$H$84 -> 39.6 | G84: è | H84: 0.15
A85: 3rd | B85: =$B$7*$H$85 -> 95.04 | C85: =$C$7*$H$85 -> 79.2 | D85: =$D$7*$H$85 -> 63.36 | E85: =$E$7*$H$85 -> 47.52 | F85: =$F$7*$H$85 -> 31.68 | G85: è | H85: 0.12
A86: 4th | B86: =$B$7*$H$86 -> 79.2 | C86: =$C$7*$H$86 -> 66 | D86: =$D$7*$H$86 -> 52.8 | E86: =$E$7*$H$86 -> 39.6 | F86: =$F$7*$H$86 -> 26.4 | G86: è | H86: 0.1
A87: 5th | B87: =$B$7*$H$87 -> 71.28 | C87: =$C$7*$H$87 -> 59.4 | D87: =$D$7*$H$87 -> 47.52 | E87: =$E$7*$H$87 -> 35.64 | F87: =$F$7*$H$87 -> 23.76 | G87: è | H87: 0.09
A88: 6th | B88: =$B$7*$H$88 -> 63.36 | C88: =$C$7*$H$88 -> 52.8 | D88: =$D$7*$H$88 -> 42.24 | E88: =$E$7*$H$88 -> 31.68 | F88: =$F$7*$H$88 -> 21.12 | G88: è | H88: 0.08
A89: 7th | B89: =$B$7*$H$89 -> 55.44 | C89: =$C$7*$H$89 -> 46.2 | D89: =$D$7*$H$89 -> 36.96 | E89: =$E$7*$H$89 -> 27.72 | F89: =$F$7*$H$89 -> 18.48 | G89: è | H89: 0.07
A90: 8th | B90: =$B$7*$H$90 -> 47.52 | C90: =$C$7*$H$90 -> 39.6 | D90: =$D$7*$H$90 -> 31.68 | E90: =$E$7*$H$90 -> 23.76 | F90: =$F$7*$H$90 -> 15.84 | G90: è | H90: 0.06
A91: 9th | B91: =$B$7*$H$91 -> 39.6 | C91: =$C$7*$H$91 -> 33 | D91: =$D$7*$H$91 -> 26.4 | E91: =$E$7*$H$91 -> 19.8 | F91: =$F$7*$H$91 -> 13.2 | G91: è | H91: 0.05
A92: 10th | B92: =$B$7*$H$92 -> 31.68 | C92: =$C$7*$H$92 -> 26.4 | D92: =$D$7*$H$92 -> 21.12 | E92: =$E$7*$H$92 -> 15.84 | F92: =$F$7*$H$92 -> 10.56 | G92: è | H92: 0.04
A93: 11th | B93: =$B$7*$H$93 -> 23.76 | C93: =$C$7*$H$93 -> 19.8 | D93: =$D$7*$H$93 -> 15.84 | E93: =$E$7*$H$93 -> 11.88 | F93: =$F$7*$H$93 -> 7.92 | G93: è | H93: 0.03
A94: 12th | B94: =$B$7*$H$94 -> 15.84 | C94: =$C$7*$H$94 -> 13.2 | D94: =$D$7*$H$94 -> 10.56 | E94: =$E$7*$H$94 -> 7.92 | F94: =$F$7*$H$94 -> 5.28 | G94: è | H94: 0.02
A95: Totals | B95: =SUM(B83:B94) -> 792 | C95: =SUM(C83:C94) -> 660 | D95: =SUM(D83:D94) -> 528 | E95: =SUM(E83:E94) -> 396 | F95: =SUM(F83:F94) -> 264 | G95: =SUM(B95:F95) -> 2640 | H95: =SUM(H83:H94) -> 1
A97: For 667-1000 riders 15 places
A98: Placings | B98: 1D | C98: 2D | D98: 3D | E98: 4D | F98: 5D
A99: 1st | B99: =$B$7*$H$99 -> 142.56 | C99: =$C$7*$H$99 -> 118.8 | D99: =$D$7*$H$99 -> 95.04 | E99: =$E$7*$H$99 -> 71.28 | F99: =$F$7*$H$99 -> 47.52 | G99: è | H99: 0.18
A100: 2nd | B100: =$B$7*$H$100 -> 118.8 | C100: =$C$7*$H$100 -> 99 | D100: =$D$7*$H$100 -> 79.2 | E100: =$E$7*$H$100 -> 59.4 | F100: =$F$7*$H$100 -> 39.6 | G100: è | H100: 0.15
A101: 3rd | B101: =$B$7*$H$101 -> 95.04 | C101: =$C$7*$H$101 -> 79.2 | D101: =$D$7*$H$101 -> 63.36 | E101: =$E$7*$H$101 -> 47.52 | F101: =$F$7*$H$101 -> 31.68 | G101: è | H101: 0.12
A102: 4th | B102: =$B$7*$H$102 -> 79.2 | C102: =$C$7*$H$102 -> 66 | D102: =$D$7*$H$102 -> 52.8 | E102: =$E$7*$H$102 -> 39.6 | F102: =$F$7*$H$102 -> 26.4 | G102: è | H102: 0.1
A103: 5th | B103: =$B$7*$H$103 -> 67.32 | C103: =$C$7*$H$103 -> 56.1 | D103: =$D$7*$H$103 -> 44.88 | E103: =$E$7*$H$103 -> 33.66 | F103: =$F$7*$H$103 -> 22.44 | G103: è | H103: 0.085
A104: 6th | B104: =$B$7*$H$104 -> 55.44 | C104: =$C$7*$H$104 -> 46.2 | D104: =$D$7*$H$104 -> 36.96 | E104: =$E$7*$H$104 -> 27.72 | F104: =$F$7*$H$104 -> 18.48 | G104: è | H104: 0.07
A105: 7th | B105: =$B$7*$H$105 -> 47.52 | C105: =$C$7*$H$105 -> 39.6 | D105: =$D$7*$H$105 -> 31.68 | E105: =$E$7*$H$105 -> 23.76 | F105: =$F$7*$H$105 -> 15.84 | G105: è | H105: 0.06
A106: 8th | B106: =$B$7*$H$106 -> 39.6 | C106: =$C$7*$H$106 -> 33 | D106: =$D$7*$H$106 -> 26.4 | E106: =$E$7*$H$106 -> 19.8 | F106: =$F$7*$H$106 -> 13.2 | G106: è | H106: 0.05
A107: 9th | B107: =$B$7*$H$107 -> 33.66 | C107: =$C$7*$H$107 -> 28.05 | D107: =$D$7*$H$107 -> 22.44 | E107: =$E$7*$H$107 -> 16.83 | F107: =$F$7*$H$107 -> 11.22 | G107: è | H107: 0.0425
A108: 10th | B108: =$B$7*$H$108 -> 27.72 | C108: =$C$7*$H$108 -> 23.1 | D108: =$D$7*$H$108 -> 18.48 | E108: =$E$7*$H$108 -> 13.86 | F108: =$F$7*$H$108 -> 9.24 | G108: è | H108: 0.035
A109: 11th | B109: =$B$7*$H$109 -> 23.76 | C109: =$C$7*$H$109 -> 19.8 | D109: =$D$7*$H$109 -> 15.84 | E109: =$E$7*$H$109 -> 11.88 | F109: =$F$7*$H$109 -> 7.92 | G109: è | H109: 0.03
A110: 12th | B110: =$B$7*$H$110 -> 19.8 | C110: =$C$7*$H$110 -> 16.5 | D110: =$D$7*$H$110 -> 13.2 | E110: =$E$7*$H$110 -> 9.9 | F110: =$F$7*$H$110 -> 6.6 | G110: è | H110: 0.025
A111: 13th | B111: =$B$7*$H$111 -> 15.84 | C111: =$C$7*$H$111 -> 13.2 | D111: =$D$7*$H$111 -> 10.56 | E111: =$E$7*$H$111 -> 7.92 | F111: =$F$7*$H$111 -> 5.28 | G111: è | H111: 0.02
A112: 14th | B112: =$B$7*$H$112 -> 13.86 | C112: =$C$7*$H$112 -> 11.55 | D112: =$D$7*$H$112 -> 9.24 | E112: =$E$7*$H$112 -> 6.93 | F112: =$F$7*$H$112 -> 4.62 | G112: è | H112: 0.0175
A113: 15th | B113: =$B$7*$H$113 -> 11.88 | C113: =$C$7*$H$113 -> 9.9 | D113: =$D$7*$H$113 -> 7.92 | E113: =$E$7*$H$113 -> 5.94 | F113: =$F$7*$H$113 -> 3.96 | G113: è | H113: 0.015
A114: Totals | B114: =SUM(B99:B113) -> 792 | C114: =SUM(C99:C113) -> 660 | D114: =SUM(D99:D113) -> 528 | E114: =SUM(E99:E113) -> 396 | F114: =SUM(F99:F113) -> 264 | G114: =SUM(B114:F114) -> 2640 | H114: =SUM(H99:H113) -> 1
A116: For 1001-1500 riders 20 places
A117: Placings | B117: 1D | C117: 2D | D117: 3D | E117: 4D | F117: 5D
A118: 1st | B118: =$B$7*$H$118 -> 110.88 | C118: =$C$7*$H$118 -> 92.4 | D118: =$D$7*$H$118 -> 73.92 | E118: =$E$7*$H$118 -> 55.44 | F118: =$F$7*$H$118 -> 36.96 | G118: è | H118: 0.14
A119: 2nd | B119: =$B$7*$H$119 -> 87.12 | C119: =$C$7*$H$119 -> 72.6 | D119: =$D$7*$H$119 -> 58.08 | E119: =$E$7*$H$119 -> 43.56 | F119: =$F$7*$H$119 -> 29.04 | G119: è | H119: 0.11
A120: 3rd | B120: =$B$7*$H$120 -> 71.28 | C120: =$C$7*$H$120 -> 59.4 | D120: =$D$7*$H$120 -> 47.52 | E120: =$E$7*$H$120 -> 35.64 | F120: =$F$7*$H$120 -> 23.76 | G120: è | H120: 0.09
A121: 4th | B121: =$B$7*$H$121 -> 60.984 | C121: =$C$7*$H$121 -> 50.82 | D121: =$D$7*$H$121 -> 40.656 | E121: =$E$7*$H$121 -> 30.492 | F121: =$F$7*$H$121 -> 20.328 | G121: è | H121: 0.077
A122: 5th | B122: =$B$7*$H$122 -> 55.44 | C122: =$C$7*$H$122 -> 46.2 | D122: =$D$7*$H$122 -> 36.96 | E122: =$E$7*$H$122 -> 27.72 | F122: =$F$7*$H$122 -> 18.48 | G122: è | H122: 0.07
A123: 6th | B123: =$B$7*$H$123 -> 51.48 | C123: =$C$7*$H$123 -> 42.9 | D123: =$D$7*$H$123 -> 34.32 | E123: =$E$7*$H$123 -> 25.74 | F123: =$F$7*$H$123 -> 17.16 | G123: è | H123: 0.065
A124: 7th | B124: =$B$7*$H$124 -> 47.52 | C124: =$C$7*$H$124 -> 39.6 | D124: =$D$7*$H$124 -> 31.68 | E124: =$E$7*$H$124 -> 23.76 | F124: =$F$7*$H$124 -> 15.84 | G124: è | H124: 0.06
A125: 8th | B125: =$B$7*$H$125 -> 43.56 | C125: =$C$7*$H$125 -> 36.3 | D125: =$D$7*$H$125 -> 29.04 | E125: =$E$7*$H$125 -> 21.78 | F125: =$F$7*$H$125 -> 14.52 | G125: è | H125: 0.055
A126: 9th | B126: =$B$7*$H$126 -> 39.6 | C126: =$C$7*$H$126 -> 33 | D126: =$D$7*$H$126 -> 26.4 | E126: =$E$7*$H$126 -> 19.8 | F126: =$F$7*$H$126 -> 13.2 | G126: è | H126: 0.05
A127: 10th | B127: =$B$7*$H$127 -> 35.64 | C127: =$C$7*$H$127 -> 29.7 | D127: =$D$7*$H$127 -> 23.76 | E127: =$E$7*$H$127 -> 17.82 | F127: =$F$7*$H$127 -> 11.88 | G127: è | H127: 0.045
A128: 11th | B128: =$B$7*$H$128 -> 31.68 | C128: =$C$7*$H$128 -> 26.4 | D128: =$D$7*$H$128 -> 21.12 | E128: =$E$7*$H$128 -> 15.84 | F128: =$F$7*$H$128 -> 10.56 | G128: è | H128: 0.04
A129: 12th | B129: =$B$7*$H$129 -> 29.304 | C129: =$C$7*$H$129 -> 24.42 | D129: =$D$7*$H$129 -> 19.536 | E129: =$E$7*$H$129 -> 14.652 | F129: =$F$7*$H$129 -> 9.768 | G129: è | H129: 0.037
A130: 13th | B130: =$B$7*$H$130 -> 26.136 | C130: =$C$7*$H$130 -> 21.78 | D130: =$D$7*$H$130 -> 17.424 | E130: =$E$7*$H$130 -> 13.068 | F130: =$F$7*$H$130 -> 8.712 | G130: è | H130: 0.033
A131: 14th | B131: =$B$7*$H$131 -> 22.968 | C131: =$C$7*$H$131 -> 19.14 | D131: =$D$7*$H$131 -> 15.312 | E131: =$E$7*$H$131 -> 11.484 | F131: =$F$7*$H$131 -> 7.656 | G131: è | H131: 0.029
A132: 15th | B132: =$B$7*$H$132 -> 19.8 | C132: =$C$7*$H$132 -> 16.5 | D132: =$D$7*$H$132 -> 13.2 | E132: =$E$7*$H$132 -> 9.9 | F132: =$F$7*$H$132 -> 6.6 | G132: è | H132: 0.025
A133: 16th | B133: =$B$7*$H$133 -> 16.632 | C133: =$C$7*$H$133 -> 13.86 | D133: =$D$7*$H$133 -> 11.088 | E133: =$E$7*$H$133 -> 8.316 | F133: =$F$7*$H$133 -> 5.544 | G133: è | H133: 0.021
A134: 17th | B134: =$B$7*$H$134 -> 13.464 | C134: =$C$7*$H$134 -> 11.22 | D134: =$D$7*$H$134 -> 8.976 | E134: =$E$7*$H$134 -> 6.732 | F134: =$F$7*$H$134 -> 4.488 | G134: è | H134: 0.017
A135: 18th | B135: =$B$7*$H$135 -> 11.088 | C135: =$C$7*$H$135 -> 9.24 | D135: =$D$7*$H$135 -> 7.392 | E135: =$E$7*$H$135 -> 5.544 | F135: =$F$7*$H$135 -> 3.696 | G135: è | H135: 0.014
A136: 19th | B136: =$B$7*$H$136 -> 9.504 | C136: =$C$7*$H$136 -> 7.92 | D136: =$D$7*$H$136 -> 6.336 | E136: =$E$7*$H$136 -> 4.752 | F136: =$F$7*$H$136 -> 3.168 | G136: è | H136: 0.012
A137: 20th | B137: =$B$7*$H$137 -> 7.92 | C137: =$C$7*$H$137 -> 6.6 | D137: =$D$7*$H$137 -> 5.28 | E137: =$E$7*$H$137 -> 3.96 | F137: =$F$7*$H$137 -> 2.64 | G137: è | H137: 0.01
A138: Totals | B138: =SUM(B118:B137) -> 792 | C138: =SUM(C118:C137) -> 660 | D138: 528 | E138: 396 | F138: 264 | G138: =SUM(B138:F138) -> 2640 | H138: =SUM(H118:H137) -> 1
A140: For 1501 or More riders 30 places
A141: Placings | B141: 1D | C141: 2D | D141: 3D | E141: 4D | F141: 5D
A142: 1st | B142: =$B$7*$H142 -> 95.04 | C142: =$C$7*$H142 -> 79.2 | D142: =$D$7*$H142 -> 63.36 | E142: =$E$7*$H142 -> 47.52 | F142: =$F$7*$H142 -> 31.68 | G142: è | H142: 0.12
A143: 2nd | B143: =$B$7*$H143 -> 75.24 | C143: 62.7 | D143: 50.16 | E143: 37.62 | F143: 25.08 | G143: è | H143: 0.095
A144: 3rd | B144: =$B$7*$H144 -> 57.816 | C144: 48.18 | D144: 38.544 | E144: 28.908 | F144: 19.272 | G144: è | H144: 0.073
A145: 4th | B145: =$B$7*$H145 -> 49.104 | C145: 40.92 | D145: 32.736 | E145: 24.552 | F145: 16.368 | G145: è | H145: 0.062
A146: 5th | B146: 39.6 | C146: 33 | D146: 26.4 | E146: 19.8 | F146: 13.2 | G146: è | H146: 0.05
A147: 6th | B147: 35.64 | C147: 29.7 | D147: 23.76 | E147: 17.82 | F147: 11.88 | G147: è | H147: 0.045
A148: 7th | B148: 34.056 | C148: 28.38 | D148: 22.704 | E148: 17.028 | F148: 11.352 | G148: è | H148: 0.043
A149: 8th | B149: 31.68 | C149: 26.4 | D149: 21.12 | E149: 15.84 | F149: 10.56 | G149: è | H149: 0.04
A150: 9th | B150: 29.304 | C150: 24.42 | D150: 19.536 | E150: 14.652 | F150: 9.768 | G150: è | H150: 0.037
A151: 10th | B151: 27.72 | C151: 23.1 | D151: 18.48 | E151: 13.86 | F151: 9.24 | G151: è | H151: 0.035
A152: 11th | B152: 26.136 | C152: 21.78 | D152: 17.424 | E152: 13.068 | F152: 8.712 | G152: è | H152: 0.033
A153: 12th | B153: 24.552 | C153: 20.46 | D153: 16.368 | E153: 12.276 | F153: 8.184 | G153: è | H153: 0.031
A154: 13th | B154: 22.968 | C154: 19.14 | D154: 15.312 | E154: 11.484 | F154: 7.656 | G154: è | H154: 0.029
A155: 14th | B155: 21.384 | C155: 17.82 | D155: 14.256 | E155: 10.692 | F155: 7.128 | G155: è | H155: 0.027
A156: 15th | B156: 19.8 | C156: 16.5 | D156: 13.2 | E156: 9.9 | F156: 6.6 | G156: è | H156: 0.025
A157: 16th | B157: 19.008 | C157: 15.84 | D157: 12.672 | E157: 9.504 | F157: 6.336 | G157: è | H157: 0.024
A158: 17th | B158: 18.216 | C158: 15.18 | D158: 12.144 | E158: 9.108 | F158: 6.072 | G158: è | H158: 0.023
A159: 18th | B159: 17.424 | C159: 14.52 | D159: 11.616 | E159: 8.712 | F159: 5.808 | G159: è | H159: 0.022
A160: 19th | B160: 16.632 | C160: 13.86 | D160: 11.088 | E160: 8.316 | F160: 5.544 | G160: è | H160: 0.021
A161: 20th | B161: 15.84 | C161: 13.2 | D161: 10.56 | E161: 7.92 | F161: 5.28 | G161: è | H161: 0.02
A162: 21st | B162: 15.048 | C162: 12.54 | D162: 10.032 | E162: 7.524 | F162: 5.016 | G162: è | H162: 0.019
A163: 22nd | B163: 14.256 | C163: 11.88 | D163: 9.504 | E163: 7.128 | F163: 4.752 | G163: è | H163: 0.018
A164: 23rd | B164: 13.464 | C164: 11.22 | D164: 8.976 | E164: 6.732 | F164: 4.488 | G164: è | H164: 0.017
A165: 24th | B165: 12.672 | C165: 10.56 | D165: 8.448 | E165: 6.336 | F165: 4.224 | G165: è | H165: 0.016
A166: 25th | B166: 11.88 | C166: 9.9 | D166: 7.92 | E166: 5.94 | F166: 3.96 | G166: è | H166: 0.015
A167: 26th | B167: 11.088 | C167: 9.24 | D167: 7.392 | E167: 5.544 | F167: 3.696 | G167: è | H167: 0.014
A168: 27th | B168: 10.296 | C168: 8.58 | D168: 6.864 | E168: 5.148 | F168: 3.432 | G168: è | H168: 0.013
A169: 28th | B169: 9.504 | C169: 7.92 | D169: 6.336 | E169: 4.752 | F169: 3.168 | G169: è | H169: 0.012
A170: 29th | B170: 8.712 | C170: 7.26 | D170: 5.808 | E170: 4.356 | F170: 2.904 | G170: è | H170: 0.011
A171: 30th | B171: 7.92 | C171: 6.6 | D171: 5.28 | E171: 3.96 | F171: 2.64 | G171: è | H171: 0.01
A172: Totals | B172: =SUM(B142:B171) -> 792 | C172: =SUM(C142:C171) -> 660 | D172: 528 | E172: 396 | F172: 264 | G172: =SUM(B172:F172) -> 2640 | H172: =SUM(H142:H171) -> 1

Sheet DON'T TOUCH (hidden)
A2: Yes | C2: S | D2: 5 | E2: X
C3: A | D3: 10
C4: Y | D4: 15
C5: P | D5: BP
D6: SCR
